{"text_format":"3","workbook":"xlsx","n_sheets":2,"sheets":["Dạng xem theo Lịch biểu Lớp","Danh sách lớp học"],"not_rendered":{"defined_names":17},"read":"whole","date_system":"1900"}

{"sheet":"Dạng xem theo Lịch biểu Lớp","index":0,"n_rows":56,"n_cols":9,"rows_kept":56,"merged":[[0,1,1,5],[0,8,1,8]]}
[null,"DẠNG XEM THEO LỊCH BIỂU LỚP",{"$nulls":4},"BẮT ĐẦU LỊCH BIỂU","KHOẢNG THỜI GIAN","Danh sách lớp học"]
[{"$nulls":6},"08:00:00","15 PHÚT"]
[null,"THỜI GIAN","CHỦ NHẬT","THỨ HAI","THỨ BA","THỨ TƯ","THỨ NĂM","THỨ SÁU","THỨ BẢY"]
[null,{"$f":"BẮT_ĐẦU_LỊCH_BIỂU","v":"08:00:00"},{"$f":"IFERROR(INDEX(Danh_sách_lớp_học[],MATCH(SUMPRODUCT((Danh_sách_lớp_học[NGÀY]=Dạng_xem_theo_Lịch_biểu_Lớp[[#Headers],[CHỦ NHẬT]])*(ROUNDDOWN($B4,10)>=ROUNDDOWN(Danh_sách_lớp_học[THỜI GIAN BẮT ĐẦU],10))*($B4<=Danh_sách_lớp_học[THỜI GIAN KẾT THÚC]),Danh_sách_lớp_học[DUY NHẤT]),Danh_sách_lớp_học[DUY NHẤT],0),2),0)","v":0},{"$f":"IFERROR(INDEX(Danh_sách_lớp_học[],MATCH(SUMPRODUCT((Danh_sách_lớp_học[NGÀY]=Dạng_xem_theo_Lịch_biểu_Lớp[[#Headers],[THỨ HAI]])*(ROUNDDOWN($B4,10)>=ROUNDDOWN(Danh_sách_lớp_học[THỜI GIAN BẮT ĐẦU],10))*($B4<=Danh_sách_lớp_học[THỜI GIAN KẾT THÚC]),Danh_sách_lớp_học[DUY NHẤT]),Danh_sách_lớp_học[DUY NHẤT],0),2),0)","v":0},{"$f":"IFERROR(INDEX(Danh_sách_lớp_học[],MATCH(SUMPRODUCT((Danh_sách_lớp_học[NGÀY]=Dạng_xem_theo_Lịch_biểu_Lớp[[#Headers],[THỨ BA]])*(ROUNDDOWN($B4,10)>=ROUNDDOWN(Danh_sách_lớp_học[THỜI GIAN BẮT ĐẦU],10))*($B4<=Danh_sách_lớp_học[THỜI GIAN KẾT THÚC]),Danh_sách_lớp_học[DUY NHẤT]),Danh_sách_lớp_học[DUY NHẤT],0),2),0)","v":0},{"$f":"IFERROR(INDEX(Danh_sách_lớp_học[],MATCH(SUMPRODUCT((Danh_sách_lớp_học[NGÀY]=Dạng_xem_theo_Lịch_biểu_Lớp[[#Headers],[THỨ TƯ]])*(ROUNDDOWN($B4,10)>=ROUNDDOWN(Danh_sách_lớp_học[THỜI GIAN BẮT ĐẦU],10))*($B4<=Danh_sách_lớp_học[THỜI GIAN KẾT THÚC]),Danh_sách_lớp_học[DUY NHẤT]),Danh_sách_lớp_học[DUY NHẤT],0),2),0)","v":0},{"$f":"IFERROR(INDEX(Danh_sách_lớp_học[],MATCH(SUMPRODUCT((Danh_sách_lớp_học[NGÀY]=Dạng_xem_theo_Lịch_biểu_Lớp[[#Headers],[THỨ NĂM]])*(ROUNDDOWN($B4,10)>=ROUNDDOWN(Danh_sách_lớp_học[THỜI GIAN BẮT ĐẦU],10))*($B4<=Danh_sách_lớp_học[THỜI GIAN KẾT THÚC]),Danh_sách_lớp_học[DUY NHẤT]),Danh_sách_lớp_học[DUY NHẤT],0),2),0)","v":0},{"$f":"IFERROR(INDEX(Danh_sách_lớp_học[],MATCH(SUMPRODUCT((Danh_sách_lớp_học[NGÀY]=Dạng_xem_theo_Lịch_biểu_Lớp[[#Headers],[THỨ SÁU]])*(ROUNDDOWN($B4,10)>=ROUNDDOWN(Danh_sách_lớp_học[THỜI GIAN BẮT ĐẦU],10))*($B4<=Danh_sách_lớp_học[THỜI GIAN KẾT THÚC]),Danh_sách_lớp_học[DUY NHẤT]),Danh_sách_lớp_học[DUY NHẤT],0),2),0)","v":0},{"$f":"IFERROR(INDEX(Danh_sách_lớp_học[],MATCH(SUMPRODUCT((Danh_sách_lớp_học[NGÀY]=Dạng_xem_theo_Lịch_biểu_Lớp[[#Headers],[THỨ BẢY]])*(ROUNDDOWN($B4,10)>=ROUNDDOWN(Danh_sách_lớp_học[THỜI GIAN BẮT ĐẦU],10))*($B4<=Danh_sách_lớp_học[THỜI GIAN KẾT THÚC]),Danh_sách_lớp_học[DUY NHẤT]),Danh_sách_lớp_học[DUY NHẤT],0),2),0)","v":0}]
[null,{"$f":"B4+TăngDần","v":"08:15:00"},{"$f":"IFERROR(INDEX(Danh_sách_lớp_học[],MATCH(SUMPRODUCT((Danh_sách_lớp_học[NGÀY]=Dạng_xem_theo_Lịch_biểu_Lớp[[#Headers],[CHỦ NHẬT]])*(ROUNDDOWN($B5,10)>=ROUNDDOWN(Danh_sách_lớp_học[THỜI GIAN BẮT ĐẦU],10))*($B5<=Danh_sách_lớp_học[THỜI GIAN KẾT THÚC]),Danh_sách_lớp_học[DUY NHẤT]),Danh_sách_lớp_học[DUY NHẤT],0),2),0)","v":0},{"$f":"IFERROR(INDEX(Danh_sách_lớp_học[],MATCH(SUMPRODUCT((Danh_sách_lớp_học[NGÀY]=Dạng_xem_theo_Lịch_biểu_Lớp[[#Headers],[THỨ HAI]])*(ROUNDDOWN($B5,10)>=ROUNDDOWN(Danh_sách_lớp_học[THỜI GIAN BẮT ĐẦU],10))*($B5<=Danh_sách_lớp_học[THỜI GIAN KẾT THÚC]),Danh_sách_lớp_học[DUY NHẤT]),Danh_sách_lớp_học[DUY NHẤT],0),2),0)","v":"MTH-113"},{"$f":"IFERROR(INDEX(Danh_sách_lớp_học[],MATCH(SUMPRODUCT((Danh_sách_lớp_học[NGÀY]=Dạng_xem_theo_Lịch_biểu_Lớp[[#Headers],[THỨ BA]])*(ROUNDDOWN($B5,10)>=ROUNDDOWN(Danh_sách_lớp_học[THỜI GIAN BẮT ĐẦU],10))*($B5<=Danh_sách_lớp_học[THỜI GIAN KẾT THÚC]),Danh_sách_lớp_học[DUY NHẤT]),Danh_sách_lớp_học[DUY NHẤT],0),2),0)","v":0},{"$f":"IFERROR(INDEX(Danh_sách_lớp_học[],MATCH(SUMPRODUCT((Danh_sách_lớp_học[NGÀY]=Dạng_xem_theo_Lịch_biểu_Lớp[[#Headers],[THỨ TƯ]])*(ROUNDDOWN($B5,10)>=ROUNDDOWN(Danh_sách_lớp_học[THỜI GIAN BẮT ĐẦU],10))*($B5<=Danh_sách_lớp_học[THỜI GIAN KẾT THÚC]),Danh_sách_lớp_học[DUY NHẤT]),Danh_sách_lớp_học[DUY NHẤT],0),2),0)","v":"MTH-113"},{"$f":"IFERROR(INDEX(Danh_sách_lớp_học[],MATCH(SUMPRODUCT((Danh_sách_lớp_học[NGÀY]=Dạng_xem_theo_Lịch_biểu_Lớp[[#Headers],[THỨ NĂM]])*(ROUNDDOWN($B5,10)>=ROUNDDOWN(Danh_sách_lớp_học[THỜI GIAN BẮT ĐẦU],10))*($B5<=Danh_sách_lớp_học[THỜI GIAN KẾT THÚC]),Danh_sách_lớp_học[DUY NHẤT]),Danh_sách_lớp_học[DUY NHẤT],0),2),0)","v":0},{"$f":"IFERROR(INDEX(Danh_sách_lớp_học[],MATCH(SUMPRODUCT((Danh_sách_lớp_học[NGÀY]=Dạng_xem_theo_Lịch_biểu_Lớp[[#Headers],[THỨ SÁU]])*(ROUNDDOWN($B5,10)>=ROUNDDOWN(Danh_sách_lớp_học[THỜI GIAN BẮT ĐẦU],10))*($B5<=Danh_sách_lớp_học[THỜI GIAN KẾT THÚC]),Danh_sách_lớp_học[DUY NHẤT]),Danh_sách_lớp_học[DUY NHẤT],0),2),0)","v":"MTH-113"},{"$f":"IFERROR(INDEX(Danh_sách_lớp_học[],MATCH(SUMPRODUCT((Danh_sách_lớp_học[NGÀY]=Dạng_xem_theo_Lịch_biểu_Lớp[[#Headers],[THỨ BẢY]])*(ROUNDDOWN($B5,10)>=ROUNDDOWN(Danh_sách_lớp_học[THỜI GIAN BẮT ĐẦU],10))*($B5<=Danh_sách_lớp_học[THỜI GIAN KẾT THÚC]),Danh_sách_lớp_học[DUY NHẤT]),Danh_sách_lớp_học[DUY NHẤT],0),2),0)","v":0}]
[null,"08:30:00",{"$f":"IFERROR(INDEX(Danh_sách_lớp_học[],MATCH(SUMPRODUCT((Danh_sách_lớp_học[NGÀY]=Dạng_xem_theo_Lịch_biểu_Lớp[[#Headers],[CHỦ NHẬT]])*(ROUNDDOWN($B6,10)>=ROUNDDOWN(Danh_sách_lớp_học[THỜI GIAN BẮT ĐẦU],10))*($B6<=Danh_sách_lớp_học[THỜI GIAN KẾT THÚC]),Danh_sách_lớp_học[DUY NHẤT]),Danh_sách_lớp_học[DUY NHẤT],0),2),0)","v":0},{"$f":"IFERROR(INDEX(Danh_sách_lớp_học[],MATCH(SUMPRODUCT((Danh_sách_lớp_học[NGÀY]=Dạng_xem_theo_Lịch_biểu_Lớp[[#Headers],[THỨ HAI]])*(ROUNDDOWN($B6,10)>=ROUNDDOWN(Danh_sách_lớp_học[THỜI GIAN BẮT ĐẦU],10))*($B6<=Danh_sách_lớp_học[THỜI GIAN KẾT THÚC]),Danh_sách_lớp_học[DUY NHẤT]),Danh_sách_lớp_học[DUY NHẤT],0),2),0)","v":"MTH-113"},{"$f":"IFERROR(INDEX(Danh_sách_lớp_học[],MATCH(SUMPRODUCT((Danh_sách_lớp_học[NGÀY]=Dạng_xem_theo_Lịch_biểu_Lớp[[#Headers],[THỨ BA]])*(ROUNDDOWN($B6,10)>=ROUNDDOWN(Danh_sách_lớp_học[THỜI GIAN BẮT ĐẦU],10))*($B6<=Danh_sách_lớp_học[THỜI GIAN KẾT THÚC]),Danh_sách_lớp_học[DUY NHẤT]),Danh_sách_lớp_học[DUY NHẤT],0),2),0)","v":0},{"$f":"IFERROR(INDEX(Danh_sách_lớp_học[],MATCH(SUMPRODUCT((Danh_sách_lớp_học[NGÀY]=Dạng_xem_theo_Lịch_biểu_Lớp[[#Headers],[THỨ TƯ]])*(ROUNDDOWN($B6,10)>=ROUNDDOWN(Danh_sách_lớp_học[THỜI GIAN BẮT ĐẦU],10))*($B6<=Danh_sách_lớp_học[THỜI GIAN KẾT THÚC]),Danh_sách_lớp_học[DUY NHẤT]),Danh_sách_lớp_học[DUY NHẤT],0),2),0)","v":"MTH-113"},{"$f":"IFERROR(INDEX(Danh_sách_lớp_học[],MATCH(SUMPRODUCT((Danh_sách_lớp_học[NGÀY]=Dạng_xem_theo_Lịch_biểu_Lớp[[#Headers],[THỨ NĂM]])*(ROUNDDOWN($B6,10)>=ROUNDDOWN(Danh_sách_lớp_học[THỜI GIAN BẮT ĐẦU],10))*($B6<=Danh_sách_lớp_học[THỜI GIAN KẾT THÚC]),Danh_sách_lớp_học[DUY NHẤT]),Danh_sách_lớp_học[DUY NHẤT],0),2),0)","v":0},{"$f":"IFERROR(INDEX(Danh_sách_lớp_học[],MATCH(SUMPRODUCT((Danh_sách_lớp_học[NGÀY]=Dạng_xem_theo_Lịch_biểu_Lớp[[#Headers],[THỨ SÁU]])*(ROUNDDOWN($B6,10)>=ROUNDDOWN(Danh_sách_lớp_học[THỜI GIAN BẮT ĐẦU],10))*($B6<=Danh_sách_lớp_học[THỜI GIAN KẾT THÚC]),Danh_sách_lớp_học[DUY NHẤT]),Danh_sách_lớp_học[DUY NHẤT],0),2),0)","v":"MTH-113"},{"$f":"IFERROR(INDEX(Danh_sách_lớp_học[],MATCH(SUMPRODUCT((Danh_sách_lớp_học[NGÀY]=Dạng_xem_theo_Lịch_biểu_Lớp[[#Headers],[THỨ BẢY]])*(ROUNDDOWN($B6,10)>=ROUNDDOWN(Danh_sách_lớp_học[THỜI GIAN BẮT ĐẦU],10))*($B6<=Danh_sách_lớp_học[THỜI GIAN KẾT THÚC]),Danh_sách_lớp_học[DUY NHẤT]),Danh_sách_lớp_học[DUY NHẤT],0),2),0)","v":0}]
[null,"08:45:00",{"$f":"IFERROR(INDEX(Danh_sách_lớp_học[],MATCH(SUMPRODUCT((Danh_sách_lớp_học[NGÀY]=Dạng_xem_theo_Lịch_biểu_Lớp[[#Headers],[CHỦ NHẬT]])*(ROUNDDOWN($B7,10)>=ROUNDDOWN(Danh_sách_lớp_học[THỜI GIAN BẮT ĐẦU],10))*($B7<=Danh_sách_lớp_học[THỜI GIAN KẾT THÚC]),Danh_sách_lớp_học[DUY NHẤT]),Danh_sách_lớp_học[DUY NHẤT],0),2),0)","v":0},{"$f":"IFERROR(INDEX(Danh_sách_lớp_học[],MATCH(SUMPRODUCT((Danh_sách_lớp_học[NGÀY]=Dạng_xem_theo_Lịch_biểu_Lớp[[#Headers],[THỨ HAI]])*(ROUNDDOWN($B7,10)>=ROUNDDOWN(Danh_sách_lớp_học[THỜI GIAN BẮT ĐẦU],10))*($B7<=Danh_sách_lớp_học[THỜI GIAN KẾT THÚC]),Danh_sách_lớp_học[DUY NHẤT]),Danh_sách_lớp_học[DUY NHẤT],0),2),0)","v":"MTH-113"},{"$f":"IFERROR(INDEX(Danh_sách_lớp_học[],MATCH(SUMPRODUCT((Danh_sách_lớp_học[NGÀY]=Dạng_xem_theo_Lịch_biểu_Lớp[[#Headers],[THỨ BA]])*(ROUNDDOWN($B7,10)>=ROUNDDOWN(Danh_sách_lớp_học[THỜI GIAN BẮT ĐẦU],10))*($B7<=Danh_sách_lớp_học[THỜI GIAN KẾT THÚC]),Danh_sách_lớp_học[DUY NHẤT]),Danh_sách_lớp_học[DUY NHẤT],0),2),0)","v":0},{"$f":"IFERROR(INDEX(Danh_sách_lớp_học[],MATCH(SUMPRODUCT((Danh_sách_lớp_học[NGÀY]=Dạng_xem_theo_Lịch_biểu_Lớp[[#Headers],[THỨ TƯ]])*(ROUNDDOWN($B7,10)>=ROUNDDOWN(Danh_sách_lớp_học[THỜI GIAN BẮT ĐẦU],10))*($B7<=Danh_sách_lớp_học[THỜI GIAN KẾT THÚC]),Danh_sách_lớp_học[DUY NHẤT]),Danh_sách_lớp_học[DUY NHẤT],0),2),0)","v":"MTH-113"},{"$f":"IFERROR(INDEX(Danh_sách_lớp_học[],MATCH(SUMPRODUCT((Danh_sách_lớp_học[NGÀY]=Dạng_xem_theo_Lịch_biểu_Lớp[[#Headers],[THỨ NĂM]])*(ROUNDDOWN($B7,10)>=ROUNDDOWN(Danh_sách_lớp_học[THỜI GIAN BẮT ĐẦU],10))*($B7<=Danh_sách_lớp_học[THỜI GIAN KẾT THÚC]),Danh_sách_lớp_học[DUY NHẤT]),Danh_sách_lớp_học[DUY NHẤT],0),2),0)","v":0},{"$f":"IFERROR(INDEX(Danh_sách_lớp_học[],MATCH(SUMPRODUCT((Danh_sách_lớp_học[NGÀY]=Dạng_xem_theo_Lịch_biểu_Lớp[[#Headers],[THỨ SÁU]])*(ROUNDDOWN($B7,10)>=ROUNDDOWN(Danh_sách_lớp_học[THỜI GIAN BẮT ĐẦU],10))*($B7<=Danh_sách_lớp_học[THỜI GIAN KẾT THÚC]),Danh_sách_lớp_học[DUY NHẤT]),Danh_sách_lớp_học[DUY NHẤT],0),2),0)","v":"MTH-113"},{"$f":"IFERROR(INDEX(Danh_sách_lớp_học[],MATCH(SUMPRODUCT((Danh_sách_lớp_học[NGÀY]=Dạng_xem_theo_Lịch_biểu_Lớp[[#Headers],[THỨ BẢY]])*(ROUNDDOWN($B7,10)>=ROUNDDOWN(Danh_sách_lớp_học[THỜI GIAN BẮT ĐẦU],10))*($B7<=Danh_sách_lớp_học[THỜI GIAN KẾT THÚC]),Danh_sách_lớp_học[DUY NHẤT]),Danh_sách_lớp_học[DUY NHẤT],0),2),0)","v":0}]
[null,"09:00:00",{"$f":"IFERROR(INDEX(Danh_sách_lớp_học[],MATCH(SUMPRODUCT((Danh_sách_lớp_học[NGÀY]=Dạng_xem_theo_Lịch_biểu_Lớp[[#Headers],[CHỦ NHẬT]])*(ROUNDDOWN($B8,10)>=ROUNDDOWN(Danh_sách_lớp_học[THỜI GIAN BẮT ĐẦU],10))*($B8<=Danh_sách_lớp_học[THỜI GIAN KẾT THÚC]),Danh_sách_lớp_học[DUY NHẤT]),Danh_sách_lớp_học[DUY NHẤT],0),2),0)","v":0},{"$f":"IFERROR(INDEX(Danh_sách_lớp_học[],MATCH(SUMPRODUCT((Danh_sách_lớp_học[NGÀY]=Dạng_xem_theo_Lịch_biểu_Lớp[[#Headers],[THỨ HAI]])*(ROUNDDOWN($B8,10)>=ROUNDDOWN(Danh_sách_lớp_học[THỜI GIAN BẮT ĐẦU],10))*($B8<=Danh_sách_lớp_học[THỜI GIAN KẾT THÚC]),Danh_sách_lớp_học[DUY NHẤT]),Danh_sách_lớp_học[DUY NHẤT],0),2),0)","v":"MTH-113"},{"$f":"IFERROR(INDEX(Danh_sách_lớp_học[],MATCH(SUMPRODUCT((Danh_sách_lớp_học[NGÀY]=Dạng_xem_theo_Lịch_biểu_Lớp[[#Headers],[THỨ BA]])*(ROUNDDOWN($B8,10)>=ROUNDDOWN(Danh_sách_lớp_học[THỜI GIAN BẮT ĐẦU],10))*($B8<=Danh_sách_lớp_học[THỜI GIAN KẾT THÚC]),Danh_sách_lớp_học[DUY NHẤT]),Danh_sách_lớp_học[DUY NHẤT],0),2),0)","v":0},{"$f":"IFERROR(INDEX(Danh_sách_lớp_học[],MATCH(SUMPRODUCT((Danh_sách_lớp_học[NGÀY]=Dạng_xem_theo_Lịch_biểu_Lớp[[#Headers],[THỨ TƯ]])*(ROUNDDOWN($B8,10)>=ROUNDDOWN(Danh_sách_lớp_học[THỜI GIAN BẮT ĐẦU],10))*($B8<=Danh_sách_lớp_học[THỜI GIAN KẾT THÚC]),Danh_sách_lớp_học[DUY NHẤT]),Danh_sách_lớp_học[DUY NHẤT],0),2),0)","v":"MTH-113"},{"$f":"IFERROR(INDEX(Danh_sách_lớp_học[],MATCH(SUMPRODUCT((Danh_sách_lớp_học[NGÀY]=Dạng_xem_theo_Lịch_biểu_Lớp[[#Headers],[THỨ NĂM]])*(ROUNDDOWN($B8,10)>=ROUNDDOWN(Danh_sách_lớp_học[THỜI GIAN BẮT ĐẦU],10))*($B8<=Danh_sách_lớp_học[THỜI GIAN KẾT THÚC]),Danh_sách_lớp_học[DUY NHẤT]),Danh_sách_lớp_học[DUY NHẤT],0),2),0)","v":0},{"$f":"IFERROR(INDEX(Danh_sách_lớp_học[],MATCH(SUMPRODUCT((Danh_sách_lớp_học[NGÀY]=Dạng_xem_theo_Lịch_biểu_Lớp[[#Headers],[THỨ SÁU]])*(ROUNDDOWN($B8,10)>=ROUNDDOWN(Danh_sách_lớp_học[THỜI GIAN BẮT ĐẦU],10))*($B8<=Danh_sách_lớp_học[THỜI GIAN KẾT THÚC]),Danh_sách_lớp_học[DUY NHẤT]),Danh_sách_lớp_học[DUY NHẤT],0),2),0)","v":"MTH-113"},{"$f":"IFERROR(INDEX(Danh_sách_lớp_học[],MATCH(SUMPRODUCT((Danh_sách_lớp_học[NGÀY]=Dạng_xem_theo_Lịch_biểu_Lớp[[#Headers],[THỨ BẢY]])*(ROUNDDOWN($B8,10)>=ROUNDDOWN(Danh_sách_lớp_học[THỜI GIAN BẮT ĐẦU],10))*($B8<=Danh_sách_lớp_học[THỜI GIAN KẾT THÚC]),Danh_sách_lớp_học[DUY NHẤT]),Danh_sách_lớp_học[DUY NHẤT],0),2),0)","v":0}]
[null,"09:15:00",{"$f":"IFERROR(INDEX(Danh_sách_lớp_học[],MATCH(SUMPRODUCT((Danh_sách_lớp_học[NGÀY]=Dạng_xem_theo_Lịch_biểu_Lớp[[#Headers],[CHỦ NHẬT]])*(ROUNDDOWN($B9,10)>=ROUNDDOWN(Danh_sách_lớp_học[THỜI GIAN BẮT ĐẦU],10))*($B9<=Danh_sách_lớp_học[THỜI GIAN KẾT THÚC]),Danh_sách_lớp_học[DUY NHẤT]),Danh_sách_lớp_học[DUY NHẤT],0),2),0)","v":0},{"$f":"IFERROR(INDEX(Danh_sách_lớp_học[],MATCH(SUMPRODUCT((Danh_sách_lớp_học[NGÀY]=Dạng_xem_theo_Lịch_biểu_Lớp[[#Headers],[THỨ HAI]])*(ROUNDDOWN($B9,10)>=ROUNDDOWN(Danh_sách_lớp_học[THỜI GIAN BẮT ĐẦU],10))*($B9<=Danh_sách_lớp_học[THỜI GIAN KẾT THÚC]),Danh_sách_lớp_học[DUY NHẤT]),Danh_sách_lớp_học[DUY NHẤT],0),2),0)","v":"MTH-113"},{"$f":"IFERROR(INDEX(Danh_sách_lớp_học[],MATCH(SUMPRODUCT((Danh_sách_lớp_học[NGÀY]=Dạng_xem_theo_Lịch_biểu_Lớp[[#Headers],[THỨ BA]])*(ROUNDDOWN($B9,10)>=ROUNDDOWN(Danh_sách_lớp_học[THỜI GIAN BẮT ĐẦU],10))*($B9<=Danh_sách_lớp_học[THỜI GIAN KẾT THÚC]),Danh_sách_lớp_học[DUY NHẤT]),Danh_sách_lớp_học[DUY NHẤT],0),2),0)","v":0},{"$f":"IFERROR(INDEX(Danh_sách_lớp_học[],MATCH(SUMPRODUCT((Danh_sách_lớp_học[NGÀY]=Dạng_xem_theo_Lịch_biểu_Lớp[[#Headers],[THỨ TƯ]])*(ROUNDDOWN($B9,10)>=ROUNDDOWN(Danh_sách_lớp_học[THỜI GIAN BẮT ĐẦU],10))*($B9<=Danh_sách_lớp_học[THỜI GIAN KẾT THÚC]),Danh_sách_lớp_học[DUY NHẤT]),Danh_sách_lớp_học[DUY NHẤT],0),2),0)","v":"MTH-113"},{"$f":"IFERROR(INDEX(Danh_sách_lớp_học[],MATCH(SUMPRODUCT((Danh_sách_lớp_học[NGÀY]=Dạng_xem_theo_Lịch_biểu_Lớp[[#Headers],[THỨ NĂM]])*(ROUNDDOWN($B9,10)>=ROUNDDOWN(Danh_sách_lớp_học[THỜI GIAN BẮT ĐẦU],10))*($B9<=Danh_sách_lớp_học[THỜI GIAN KẾT THÚC]),Danh_sách_lớp_học[DUY NHẤT]),Danh_sách_lớp_học[DUY NHẤT],0),2),0)","v":0},{"$f":"IFERROR(INDEX(Danh_sách_lớp_học[],MATCH(SUMPRODUCT((Danh_sách_lớp_học[NGÀY]=Dạng_xem_theo_Lịch_biểu_Lớp[[#Headers],[THỨ SÁU]])*(ROUNDDOWN($B9,10)>=ROUNDDOWN(Danh_sách_lớp_học[THỜI GIAN BẮT ĐẦU],10))*($B9<=Danh_sách_lớp_học[THỜI GIAN KẾT THÚC]),Danh_sách_lớp_học[DUY NHẤT]),Danh_sách_lớp_học[DUY NHẤT],0),2),0)","v":"MTH-113"},{"$f":"IFERROR(INDEX(Danh_sách_lớp_học[],MATCH(SUMPRODUCT((Danh_sách_lớp_học[NGÀY]=Dạng_xem_theo_Lịch_biểu_Lớp[[#Headers],[THỨ BẢY]])*(ROUNDDOWN($B9,10)>=ROUNDDOWN(Danh_sách_lớp_học[THỜI GIAN BẮT ĐẦU],10))*($B9<=Danh_sách_lớp_học[THỜI GIAN KẾT THÚC]),Danh_sách_lớp_học[DUY NHẤT]),Danh_sách_lớp_học[DUY NHẤT],0),2),0)","v":0}]
[null,"09:30:00",{"$f":"IFERROR(INDEX(Danh_sách_lớp_học[],MATCH(SUMPRODUCT((Danh_sách_lớp_học[NGÀY]=Dạng_xem_theo_Lịch_biểu_Lớp[[#Headers],[CHỦ NHẬT]])*(ROUNDDOWN($B10,10)>=ROUNDDOWN(Danh_sách_lớp_học[THỜI GIAN BẮT ĐẦU],10))*($B10<=Danh_sách_lớp_học[THỜI GIAN KẾT THÚC]),Danh_sách_lớp_học[DUY NHẤT]),Danh_sách_lớp_học[DUY NHẤT],0),2),0)","v":0},{"$f":"IFERROR(INDEX(Danh_sách_lớp_học[],MATCH(SUMPRODUCT((Danh_sách_lớp_học[NGÀY]=Dạng_xem_theo_Lịch_biểu_Lớp[[#Headers],[THỨ HAI]])*(ROUNDDOWN($B10,10)>=ROUNDDOWN(Danh_sách_lớp_học[THỜI GIAN BẮT ĐẦU],10))*($B10<=Danh_sách_lớp_học[THỜI GIAN KẾT THÚC]),Danh_sách_lớp_học[DUY NHẤT]),Danh_sách_lớp_học[DUY NHẤT],0),2),0)","v":0},{"$f":"IFERROR(INDEX(Danh_sách_lớp_học[],MATCH(SUMPRODUCT((Danh_sách_lớp_học[NGÀY]=Dạng_xem_theo_Lịch_biểu_Lớp[[#Headers],[THỨ BA]])*(ROUNDDOWN($B10,10)>=ROUNDDOWN(Danh_sách_lớp_học[THỜI GIAN BẮT ĐẦU],10))*($B10<=Danh_sách_lớp_học[THỜI GIAN KẾT THÚC]),Danh_sách_lớp_học[DUY NHẤT]),Danh_sách_lớp_học[DUY NHẤT],0),2),0)","v":0},{"$f":"IFERROR(INDEX(Danh_sách_lớp_học[],MATCH(SUMPRODUCT((Danh_sách_lớp_học[NGÀY]=Dạng_xem_theo_Lịch_biểu_Lớp[[#Headers],[THỨ TƯ]])*(ROUNDDOWN($B10,10)>=ROUNDDOWN(Danh_sách_lớp_học[THỜI GIAN BẮT ĐẦU],10))*($B10<=Danh_sách_lớp_học[THỜI GIAN KẾT THÚC]),Danh_sách_lớp_học[DUY NHẤT]),Danh_sách_lớp_học[DUY NHẤT],0),2),0)","v":0},{"$f":"IFERROR(INDEX(Danh_sách_lớp_học[],MATCH(SUMPRODUCT((Danh_sách_lớp_học[NGÀY]=Dạng_xem_theo_Lịch_biểu_Lớp[[#Headers],[THỨ NĂM]])*(ROUNDDOWN($B10,10)>=ROUNDDOWN(Danh_sách_lớp_học[THỜI GIAN BẮT ĐẦU],10))*($B10<=Danh_sách_lớp_học[THỜI GIAN KẾT THÚC]),Danh_sách_lớp_học[DUY NHẤT]),Danh_sách_lớp_học[DUY NHẤT],0),2),0)","v":0},{"$f":"IFERROR(INDEX(Danh_sách_lớp_học[],MATCH(SUMPRODUCT((Danh_sách_lớp_học[NGÀY]=Dạng_xem_theo_Lịch_biểu_Lớp[[#Headers],[THỨ SÁU]])*(ROUNDDOWN($B10,10)>=ROUNDDOWN(Danh_sách_lớp_học[THỜI GIAN BẮT ĐẦU],10))*($B10<=Danh_sách_lớp_học[THỜI GIAN KẾT THÚC]),Danh_sách_lớp_học[DUY NHẤT]),Danh_sách_lớp_học[DUY NHẤT],0),2),0)","v":0},{"$f":"IFERROR(INDEX(Danh_sách_lớp_học[],MATCH(SUMPRODUCT((Danh_sách_lớp_học[NGÀY]=Dạng_xem_theo_Lịch_biểu_Lớp[[#Headers],[THỨ BẢY]])*(ROUNDDOWN($B10,10)>=ROUNDDOWN(Danh_sách_lớp_học[THỜI GIAN BẮT ĐẦU],10))*($B10<=Danh_sách_lớp_học[THỜI GIAN KẾT THÚC]),Danh_sách_lớp_học[DUY NHẤT]),Danh_sách_lớp_học[DUY NHẤT],0),2),0)","v":0}]
[null,"09:45:00",{"$f":"IFERROR(INDEX(Danh_sách_lớp_học[],MATCH(SUMPRODUCT((Danh_sách_lớp_học[NGÀY]=Dạng_xem_theo_Lịch_biểu_Lớp[[#Headers],[CHỦ NHẬT]])*(ROUNDDOWN($B11,10)>=ROUNDDOWN(Danh_sách_lớp_học[THỜI GIAN BẮT ĐẦU],10))*($B11<=Danh_sách_lớp_học[THỜI GIAN KẾT THÚC]),Danh_sách_lớp_học[DUY NHẤT]),Danh_sách_lớp_học[DUY NHẤT],0),2),0)","v":0},{"$f":"IFERROR(INDEX(Danh_sách_lớp_học[],MATCH(SUMPRODUCT((Danh_sách_lớp_học[NGÀY]=Dạng_xem_theo_Lịch_biểu_Lớp[[#Headers],[THỨ HAI]])*(ROUNDDOWN($B11,10)>=ROUNDDOWN(Danh_sách_lớp_học[THỜI GIAN BẮT ĐẦU],10))*($B11<=Danh_sách_lớp_học[THỜI GIAN KẾT THÚC]),Danh_sách_lớp_học[DUY NHẤT]),Danh_sách_lớp_học[DUY NHẤT],0),2),0)","v":0},{"$f":"IFERROR(INDEX(Danh_sách_lớp_học[],MATCH(SUMPRODUCT((Danh_sách_lớp_học[NGÀY]=Dạng_xem_theo_Lịch_biểu_Lớp[[#Headers],[THỨ BA]])*(ROUNDDOWN($B11,10)>=ROUNDDOWN(Danh_sách_lớp_học[THỜI GIAN BẮT ĐẦU],10))*($B11<=Danh_sách_lớp_học[THỜI GIAN KẾT THÚC]),Danh_sách_lớp_học[DUY NHẤT]),Danh_sách_lớp_học[DUY NHẤT],0),2),0)","v":0},{"$f":"IFERROR(INDEX(Danh_sách_lớp_học[],MATCH(SUMPRODUCT((Danh_sách_lớp_học[NGÀY]=Dạng_xem_theo_Lịch_biểu_Lớp[[#Headers],[THỨ TƯ]])*(ROUNDDOWN($B11,10)>=ROUNDDOWN(Danh_sách_lớp_học[THỜI GIAN BẮT ĐẦU],10))*($B11<=Danh_sách_lớp_học[THỜI GIAN KẾT THÚC]),Danh_sách_lớp_học[DUY NHẤT]),Danh_sách_lớp_học[DUY NHẤT],0),2),0)","v":0},{"$f":"IFERROR(INDEX(Danh_sách_lớp_học[],MATCH(SUMPRODUCT((Danh_sách_lớp_học[NGÀY]=Dạng_xem_theo_Lịch_biểu_Lớp[[#Headers],[THỨ NĂM]])*(ROUNDDOWN($B11,10)>=ROUNDDOWN(Danh_sách_lớp_học[THỜI GIAN BẮT ĐẦU],10))*($B11<=Danh_sách_lớp_học[THỜI GIAN KẾT THÚC]),Danh_sách_lớp_học[DUY NHẤT]),Danh_sách_lớp_học[DUY NHẤT],0),2),0)","v":0},{"$f":"IFERROR(INDEX(Danh_sách_lớp_học[],MATCH(SUMPRODUCT((Danh_sách_lớp_học[NGÀY]=Dạng_xem_theo_Lịch_biểu_Lớp[[#Headers],[THỨ SÁU]])*(ROUNDDOWN($B11,10)>=ROUNDDOWN(Danh_sách_lớp_học[THỜI GIAN BẮT ĐẦU],10))*($B11<=Danh_sách_lớp_học[THỜI GIAN KẾT THÚC]),Danh_sách_lớp_học[DUY NHẤT]),Danh_sách_lớp_học[DUY NHẤT],0),2),0)","v":0},{"$f":"IFERROR(INDEX(Danh_sách_lớp_học[],MATCH(SUMPRODUCT((Danh_sách_lớp_học[NGÀY]=Dạng_xem_theo_Lịch_biểu_Lớp[[#Headers],[THỨ BẢY]])*(ROUNDDOWN($B11,10)>=ROUNDDOWN(Danh_sách_lớp_học[THỜI GIAN BẮT ĐẦU],10))*($B11<=Danh_sách_lớp_học[THỜI GIAN KẾT THÚC]),Danh_sách_lớp_học[DUY NHẤT]),Danh_sách_lớp_học[DUY NHẤT],0),2),0)","v":0}]
[null,"10:00:00",{"$f":"IFERROR(INDEX(Danh_sách_lớp_học[],MATCH(SUMPRODUCT((Danh_sách_lớp_học[NGÀY]=Dạng_xem_theo_Lịch_biểu_Lớp[[#Headers],[CHỦ NHẬT]])*(ROUNDDOWN($B12,10)>=ROUNDDOWN(Danh_sách_lớp_học[THỜI GIAN BẮT ĐẦU],10))*($B12<=Danh_sách_lớp_học[THỜI GIAN KẾT THÚC]),Danh_sách_lớp_học[DUY NHẤT]),Danh_sách_lớp_học[DUY NHẤT],0),2),0)","v":0},{"$f":"IFERROR(INDEX(Danh_sách_lớp_học[],MATCH(SUMPRODUCT((Danh_sách_lớp_học[NGÀY]=Dạng_xem_theo_Lịch_biểu_Lớp[[#Headers],[THỨ HAI]])*(ROUNDDOWN($B12,10)>=ROUNDDOWN(Danh_sách_lớp_học[THỜI GIAN BẮT ĐẦU],10))*($B12<=Danh_sách_lớp_học[THỜI GIAN KẾT THÚC]),Danh_sách_lớp_học[DUY NHẤT]),Danh_sách_lớp_học[DUY NHẤT],0),2),0)","v":0},{"$f":"IFERROR(INDEX(Danh_sách_lớp_học[],MATCH(SUMPRODUCT((Danh_sách_lớp_học[NGÀY]=Dạng_xem_theo_Lịch_biểu_Lớp[[#Headers],[THỨ BA]])*(ROUNDDOWN($B12,10)>=ROUNDDOWN(Danh_sách_lớp_học[THỜI GIAN BẮT ĐẦU],10))*($B12<=Danh_sách_lớp_học[THỜI GIAN KẾT THÚC]),Danh_sách_lớp_học[DUY NHẤT]),Danh_sách_lớp_học[DUY NHẤT],0),2),0)","v":0},{"$f":"IFERROR(INDEX(Danh_sách_lớp_học[],MATCH(SUMPRODUCT((Danh_sách_lớp_học[NGÀY]=Dạng_xem_theo_Lịch_biểu_Lớp[[#Headers],[THỨ TƯ]])*(ROUNDDOWN($B12,10)>=ROUNDDOWN(Danh_sách_lớp_học[THỜI GIAN BẮT ĐẦU],10))*($B12<=Danh_sách_lớp_học[THỜI GIAN KẾT THÚC]),Danh_sách_lớp_học[DUY NHẤT]),Danh_sách_lớp_học[DUY NHẤT],0),2),0)","v":0},{"$f":"IFERROR(INDEX(Danh_sách_lớp_học[],MATCH(SUMPRODUCT((Danh_sách_lớp_học[NGÀY]=Dạng_xem_theo_Lịch_biểu_Lớp[[#Headers],[THỨ NĂM]])*(ROUNDDOWN($B12,10)>=ROUNDDOWN(Danh_sách_lớp_học[THỜI GIAN BẮT ĐẦU],10))*($B12<=Danh_sách_lớp_học[THỜI GIAN KẾT THÚC]),Danh_sách_lớp_học[DUY NHẤT]),Danh_sách_lớp_học[DUY NHẤT],0),2),0)","v":0},{"$f":"IFERROR(INDEX(Danh_sách_lớp_học[],MATCH(SUMPRODUCT((Danh_sách_lớp_học[NGÀY]=Dạng_xem_theo_Lịch_biểu_Lớp[[#Headers],[THỨ SÁU]])*(ROUNDDOWN($B12,10)>=ROUNDDOWN(Danh_sách_lớp_học[THỜI GIAN BẮT ĐẦU],10))*($B12<=Danh_sách_lớp_học[THỜI GIAN KẾT THÚC]),Danh_sách_lớp_học[DUY NHẤT]),Danh_sách_lớp_học[DUY NHẤT],0),2),0)","v":0},{"$f":"IFERROR(INDEX(Danh_sách_lớp_học[],MATCH(SUMPRODUCT((Danh_sách_lớp_học[NGÀY]=Dạng_xem_theo_Lịch_biểu_Lớp[[#Headers],[THỨ BẢY]])*(ROUNDDOWN($B12,10)>=ROUNDDOWN(Danh_sách_lớp_học[THỜI GIAN BẮT ĐẦU],10))*($B12<=Danh_sách_lớp_học[THỜI GIAN KẾT THÚC]),Danh_sách_lớp_học[DUY NHẤT]),Danh_sách_lớp_học[DUY NHẤT],0),2),0)","v":0}]
[null,"10:15:00",{"$f":"IFERROR(INDEX(Danh_sách_lớp_học[],MATCH(SUMPRODUCT((Danh_sách_lớp_học[NGÀY]=Dạng_xem_theo_Lịch_biểu_Lớp[[#Headers],[CHỦ NHẬT]])*(ROUNDDOWN($B13,10)>=ROUNDDOWN(Danh_sách_lớp_học[THỜI GIAN BẮT ĐẦU],10))*($B13<=Danh_sách_lớp_học[THỜI GIAN KẾT THÚC]),Danh_sách_lớp_học[DUY NHẤT]),Danh_sách_lớp_học[DUY NHẤT],0),2),0)","v":0},{"$f":"IFERROR(INDEX(Danh_sách_lớp_học[],MATCH(SUMPRODUCT((Danh_sách_lớp_học[NGÀY]=Dạng_xem_theo_Lịch_biểu_Lớp[[#Headers],[THỨ HAI]])*(ROUNDDOWN($B13,10)>=ROUNDDOWN(Danh_sách_lớp_học[THỜI GIAN BẮT ĐẦU],10))*($B13<=Danh_sách_lớp_học[THỜI GIAN KẾT THÚC]),Danh_sách_lớp_học[DUY NHẤT]),Danh_sách_lớp_học[DUY NHẤT],0),2),0)","v":0},{"$f":"IFERROR(INDEX(Danh_sách_lớp_học[],MATCH(SUMPRODUCT((Danh_sách_lớp_học[NGÀY]=Dạng_xem_theo_Lịch_biểu_Lớp[[#Headers],[THỨ BA]])*(ROUNDDOWN($B13,10)>=ROUNDDOWN(Danh_sách_lớp_học[THỜI GIAN BẮT ĐẦU],10))*($B13<=Danh_sách_lớp_học[THỜI GIAN KẾT THÚC]),Danh_sách_lớp_học[DUY NHẤT]),Danh_sách_lớp_học[DUY NHẤT],0),2),0)","v":0},{"$f":"IFERROR(INDEX(Danh_sách_lớp_học[],MATCH(SUMPRODUCT((Danh_sách_lớp_học[NGÀY]=Dạng_xem_theo_Lịch_biểu_Lớp[[#Headers],[THỨ TƯ]])*(ROUNDDOWN($B13,10)>=ROUNDDOWN(Danh_sách_lớp_học[THỜI GIAN BẮT ĐẦU],10))*($B13<=Danh_sách_lớp_học[THỜI GIAN KẾT THÚC]),Danh_sách_lớp_học[DUY NHẤT]),Danh_sách_lớp_học[DUY NHẤT],0),2),0)","v":0},{"$f":"IFERROR(INDEX(Danh_sách_lớp_học[],MATCH(SUMPRODUCT((Danh_sách_lớp_học[NGÀY]=Dạng_xem_theo_Lịch_biểu_Lớp[[#Headers],[THỨ NĂM]])*(ROUNDDOWN($B13,10)>=ROUNDDOWN(Danh_sách_lớp_học[THỜI GIAN BẮT ĐẦU],10))*($B13<=Danh_sách_lớp_học[THỜI GIAN KẾT THÚC]),Danh_sách_lớp_học[DUY NHẤT]),Danh_sách_lớp_học[DUY NHẤT],0),2),0)","v":0},{"$f":"IFERROR(INDEX(Danh_sách_lớp_học[],MATCH(SUMPRODUCT((Danh_sách_lớp_học[NGÀY]=Dạng_xem_theo_Lịch_biểu_Lớp[[#Headers],[THỨ SÁU]])*(ROUNDDOWN($B13,10)>=ROUNDDOWN(Danh_sách_lớp_học[THỜI GIAN BẮT ĐẦU],10))*($B13<=Danh_sách_lớp_học[THỜI GIAN KẾT THÚC]),Danh_sách_lớp_học[DUY NHẤT]),Danh_sách_lớp_học[DUY NHẤT],0),2),0)","v":0},{"$f":"IFERROR(INDEX(Danh_sách_lớp_học[],MATCH(SUMPRODUCT((Danh_sách_lớp_học[NGÀY]=Dạng_xem_theo_Lịch_biểu_Lớp[[#Headers],[THỨ BẢY]])*(ROUNDDOWN($B13,10)>=ROUNDDOWN(Danh_sách_lớp_học[THỜI GIAN BẮT ĐẦU],10))*($B13<=Danh_sách_lớp_học[THỜI GIAN KẾT THÚC]),Danh_sách_lớp_học[DUY NHẤT]),Danh_sách_lớp_học[DUY NHẤT],0),2),0)","v":0}]
[null,"10:30:00",{"$f":"IFERROR(INDEX(Danh_sách_lớp_học[],MATCH(SUMPRODUCT((Danh_sách_lớp_học[NGÀY]=Dạng_xem_theo_Lịch_biểu_Lớp[[#Headers],[CHỦ NHẬT]])*(ROUNDDOWN($B14,10)>=ROUNDDOWN(Danh_sách_lớp_học[THỜI GIAN BẮT ĐẦU],10))*($B14<=Danh_sách_lớp_học[THỜI GIAN KẾT THÚC]),Danh_sách_lớp_học[DUY NHẤT]),Danh_sách_lớp_học[DUY NHẤT],0),2),0)","v":0},{"$f":"IFERROR(INDEX(Danh_sách_lớp_học[],MATCH(SUMPRODUCT((Danh_sách_lớp_học[NGÀY]=Dạng_xem_theo_Lịch_biểu_Lớp[[#Headers],[THỨ HAI]])*(ROUNDDOWN($B14,10)>=ROUNDDOWN(Danh_sách_lớp_học[THỜI GIAN BẮT ĐẦU],10))*($B14<=Danh_sách_lớp_học[THỜI GIAN KẾT THÚC]),Danh_sách_lớp_học[DUY NHẤT]),Danh_sách_lớp_học[DUY NHẤT],0),2),0)","v":0},{"$f":"IFERROR(INDEX(Danh_sách_lớp_học[],MATCH(SUMPRODUCT((Danh_sách_lớp_học[NGÀY]=Dạng_xem_theo_Lịch_biểu_Lớp[[#Headers],[THỨ BA]])*(ROUNDDOWN($B14,10)>=ROUNDDOWN(Danh_sách_lớp_học[THỜI GIAN BẮT ĐẦU],10))*($B14<=Danh_sách_lớp_học[THỜI GIAN KẾT THÚC]),Danh_sách_lớp_học[DUY NHẤT]),Danh_sách_lớp_học[DUY NHẤT],0),2),0)","v":0},{"$f":"IFERROR(INDEX(Danh_sách_lớp_học[],MATCH(SUMPRODUCT((Danh_sách_lớp_học[NGÀY]=Dạng_xem_theo_Lịch_biểu_Lớp[[#Headers],[THỨ TƯ]])*(ROUNDDOWN($B14,10)>=ROUNDDOWN(Danh_sách_lớp_học[THỜI GIAN BẮT ĐẦU],10))*($B14<=Danh_sách_lớp_học[THỜI GIAN KẾT THÚC]),Danh_sách_lớp_học[DUY NHẤT]),Danh_sách_lớp_học[DUY NHẤT],0),2),0)","v":0},{"$f":"IFERROR(INDEX(Danh_sách_lớp_học[],MATCH(SUMPRODUCT((Danh_sách_lớp_học[NGÀY]=Dạng_xem_theo_Lịch_biểu_Lớp[[#Headers],[THỨ NĂM]])*(ROUNDDOWN($B14,10)>=ROUNDDOWN(Danh_sách_lớp_học[THỜI GIAN BẮT ĐẦU],10))*($B14<=Danh_sách_lớp_học[THỜI GIAN KẾT THÚC]),Danh_sách_lớp_học[DUY NHẤT]),Danh_sách_lớp_học[DUY NHẤT],0),2),0)","v":0},{"$f":"IFERROR(INDEX(Danh_sách_lớp_học[],MATCH(SUMPRODUCT((Danh_sách_lớp_học[NGÀY]=Dạng_xem_theo_Lịch_biểu_Lớp[[#Headers],[THỨ SÁU]])*(ROUNDDOWN($B14,10)>=ROUNDDOWN(Danh_sách_lớp_học[THỜI GIAN BẮT ĐẦU],10))*($B14<=Danh_sách_lớp_học[THỜI GIAN KẾT THÚC]),Danh_sách_lớp_học[DUY NHẤT]),Danh_sách_lớp_học[DUY NHẤT],0),2),0)","v":0},{"$f":"IFERROR(INDEX(Danh_sách_lớp_học[],MATCH(SUMPRODUCT((Danh_sách_lớp_học[NGÀY]=Dạng_xem_theo_Lịch_biểu_Lớp[[#Headers],[THỨ BẢY]])*(ROUNDDOWN($B14,10)>=ROUNDDOWN(Danh_sách_lớp_học[THỜI GIAN BẮT ĐẦU],10))*($B14<=Danh_sách_lớp_học[THỜI GIAN KẾT THÚC]),Danh_sách_lớp_học[DUY NHẤT]),Danh_sách_lớp_học[DUY NHẤT],0),2),0)","v":0}]
[null,"10:45:00",{"$f":"IFERROR(INDEX(Danh_sách_lớp_học[],MATCH(SUMPRODUCT((Danh_sách_lớp_học[NGÀY]=Dạng_xem_theo_Lịch_biểu_Lớp[[#Headers],[CHỦ NHẬT]])*(ROUNDDOWN($B15,10)>=ROUNDDOWN(Danh_sách_lớp_học[THỜI GIAN BẮT ĐẦU],10))*($B15<=Danh_sách_lớp_học[THỜI GIAN KẾT THÚC]),Danh_sách_lớp_học[DUY NHẤT]),Danh_sách_lớp_học[DUY NHẤT],0),2),0)","v":0},{"$f":"IFERROR(INDEX(Danh_sách_lớp_học[],MATCH(SUMPRODUCT((Danh_sách_lớp_học[NGÀY]=Dạng_xem_theo_Lịch_biểu_Lớp[[#Headers],[THỨ HAI]])*(ROUNDDOWN($B15,10)>=ROUNDDOWN(Danh_sách_lớp_học[THỜI GIAN BẮT ĐẦU],10))*($B15<=Danh_sách_lớp_học[THỜI GIAN KẾT THÚC]),Danh_sách_lớp_học[DUY NHẤT]),Danh_sách_lớp_học[DUY NHẤT],0),2),0)","v":0},{"$f":"IFERROR(INDEX(Danh_sách_lớp_học[],MATCH(SUMPRODUCT((Danh_sách_lớp_học[NGÀY]=Dạng_xem_theo_Lịch_biểu_Lớp[[#Headers],[THỨ BA]])*(ROUNDDOWN($B15,10)>=ROUNDDOWN(Danh_sách_lớp_học[THỜI GIAN BẮT ĐẦU],10))*($B15<=Danh_sách_lớp_học[THỜI GIAN KẾT THÚC]),Danh_sách_lớp_học[DUY NHẤT]),Danh_sách_lớp_học[DUY NHẤT],0),2),0)","v":0},{"$f":"IFERROR(INDEX(Danh_sách_lớp_học[],MATCH(SUMPRODUCT((Danh_sách_lớp_học[NGÀY]=Dạng_xem_theo_Lịch_biểu_Lớp[[#Headers],[THỨ TƯ]])*(ROUNDDOWN($B15,10)>=ROUNDDOWN(Danh_sách_lớp_học[THỜI GIAN BẮT ĐẦU],10))*($B15<=Danh_sách_lớp_học[THỜI GIAN KẾT THÚC]),Danh_sách_lớp_học[DUY NHẤT]),Danh_sách_lớp_học[DUY NHẤT],0),2),0)","v":0},{"$f":"IFERROR(INDEX(Danh_sách_lớp_học[],MATCH(SUMPRODUCT((Danh_sách_lớp_học[NGÀY]=Dạng_xem_theo_Lịch_biểu_Lớp[[#Headers],[THỨ NĂM]])*(ROUNDDOWN($B15,10)>=ROUNDDOWN(Danh_sách_lớp_học[THỜI GIAN BẮT ĐẦU],10))*($B15<=Danh_sách_lớp_học[THỜI GIAN KẾT THÚC]),Danh_sách_lớp_học[DUY NHẤT]),Danh_sách_lớp_học[DUY NHẤT],0),2),0)","v":0},{"$f":"IFERROR(INDEX(Danh_sách_lớp_học[],MATCH(SUMPRODUCT((Danh_sách_lớp_học[NGÀY]=Dạng_xem_theo_Lịch_biểu_Lớp[[#Headers],[THỨ SÁU]])*(ROUNDDOWN($B15,10)>=ROUNDDOWN(Danh_sách_lớp_học[THỜI GIAN BẮT ĐẦU],10))*($B15<=Danh_sách_lớp_học[THỜI GIAN KẾT THÚC]),Danh_sách_lớp_học[DUY NHẤT]),Danh_sách_lớp_học[DUY NHẤT],0),2),0)","v":0},{"$f":"IFERROR(INDEX(Danh_sách_lớp_học[],MATCH(SUMPRODUCT((Danh_sách_lớp_học[NGÀY]=Dạng_xem_theo_Lịch_biểu_Lớp[[#Headers],[THỨ BẢY]])*(ROUNDDOWN($B15,10)>=ROUNDDOWN(Danh_sách_lớp_học[THỜI GIAN BẮT ĐẦU],10))*($B15<=Danh_sách_lớp_học[THỜI GIAN KẾT THÚC]),Danh_sách_lớp_học[DUY NHẤT]),Danh_sách_lớp_học[DUY NHẤT],0),2),0)","v":0}]
[null,"11:00:00",{"$f":"IFERROR(INDEX(Danh_sách_lớp_học[],MATCH(SUMPRODUCT((Danh_sách_lớp_học[NGÀY]=Dạng_xem_theo_Lịch_biểu_Lớp[[#Headers],[CHỦ NHẬT]])*(ROUNDDOWN($B16,10)>=ROUNDDOWN(Danh_sách_lớp_học[THỜI GIAN BẮT ĐẦU],10))*($B16<=Danh_sách_lớp_học[THỜI GIAN KẾT THÚC]),Danh_sách_lớp_học[DUY NHẤT]),Danh_sách_lớp_học[DUY NHẤT],0),2),0)","v":0},{"$f":"IFERROR(INDEX(Danh_sách_lớp_học[],MATCH(SUMPRODUCT((Danh_sách_lớp_học[NGÀY]=Dạng_xem_theo_Lịch_biểu_Lớp[[#Headers],[THỨ HAI]])*(ROUNDDOWN($B16,10)>=ROUNDDOWN(Danh_sách_lớp_học[THỜI GIAN BẮT ĐẦU],10))*($B16<=Danh_sách_lớp_học[THỜI GIAN KẾT THÚC]),Danh_sách_lớp_học[DUY NHẤT]),Danh_sách_lớp_học[DUY NHẤT],0),2),0)","v":0},{"$f":"IFERROR(INDEX(Danh_sách_lớp_học[],MATCH(SUMPRODUCT((Danh_sách_lớp_học[NGÀY]=Dạng_xem_theo_Lịch_biểu_Lớp[[#Headers],[THỨ BA]])*(ROUNDDOWN($B16,10)>=ROUNDDOWN(Danh_sách_lớp_học[THỜI GIAN BẮT ĐẦU],10))*($B16<=Danh_sách_lớp_học[THỜI GIAN KẾT THÚC]),Danh_sách_lớp_học[DUY NHẤT]),Danh_sách_lớp_học[DUY NHẤT],0),2),0)","v":"HPE-295"},{"$f":"IFERROR(INDEX(Danh_sách_lớp_học[],MATCH(SUMPRODUCT((Danh_sách_lớp_học[NGÀY]=Dạng_xem_theo_Lịch_biểu_Lớp[[#Headers],[THỨ TƯ]])*(ROUNDDOWN($B16,10)>=ROUNDDOWN(Danh_sách_lớp_học[THỜI GIAN BẮT ĐẦU],10))*($B16<=Danh_sách_lớp_học[THỜI GIAN KẾT THÚC]),Danh_sách_lớp_học[DUY NHẤT]),Danh_sách_lớp_học[DUY NHẤT],0),2),0)","v":0},{"$f":"IFERROR(INDEX(Danh_sách_lớp_học[],MATCH(SUMPRODUCT((Danh_sách_lớp_học[NGÀY]=Dạng_xem_theo_Lịch_biểu_Lớp[[#Headers],[THỨ NĂM]])*(ROUNDDOWN($B16,10)>=ROUNDDOWN(Danh_sách_lớp_học[THỜI GIAN BẮT ĐẦU],10))*($B16<=Danh_sách_lớp_học[THỜI GIAN KẾT THÚC]),Danh_sách_lớp_học[DUY NHẤT]),Danh_sách_lớp_học[DUY NHẤT],0),2),0)","v":"HPE-295"},{"$f":"IFERROR(INDEX(Danh_sách_lớp_học[],MATCH(SUMPRODUCT((Danh_sách_lớp_học[NGÀY]=Dạng_xem_theo_Lịch_biểu_Lớp[[#Headers],[THỨ SÁU]])*(ROUNDDOWN($B16,10)>=ROUNDDOWN(Danh_sách_lớp_học[THỜI GIAN BẮT ĐẦU],10))*($B16<=Danh_sách_lớp_học[THỜI GIAN KẾT THÚC]),Danh_sách_lớp_học[DUY NHẤT]),Danh_sách_lớp_học[DUY NHẤT],0),2),0)","v":0},{"$f":"IFERROR(INDEX(Danh_sách_lớp_học[],MATCH(SUMPRODUCT((Danh_sách_lớp_học[NGÀY]=Dạng_xem_theo_Lịch_biểu_Lớp[[#Headers],[THỨ BẢY]])*(ROUNDDOWN($B16,10)>=ROUNDDOWN(Danh_sách_lớp_học[THỜI GIAN BẮT ĐẦU],10))*($B16<=Danh_sách_lớp_học[THỜI GIAN KẾT THÚC]),Danh_sách_lớp_học[DUY NHẤT]),Danh_sách_lớp_học[DUY NHẤT],0),2),0)","v":0}]
[null,"11:15:00",{"$f":"IFERROR(INDEX(Danh_sách_lớp_học[],MATCH(SUMPRODUCT((Danh_sách_lớp_học[NGÀY]=Dạng_xem_theo_Lịch_biểu_Lớp[[#Headers],[CHỦ NHẬT]])*(ROUNDDOWN($B17,10)>=ROUNDDOWN(Danh_sách_lớp_học[THỜI GIAN BẮT ĐẦU],10))*($B17<=Danh_sách_lớp_học[THỜI GIAN KẾT THÚC]),Danh_sách_lớp_học[DUY NHẤT]),Danh_sách_lớp_học[DUY NHẤT],0),2),0)","v":0},{"$f":"IFERROR(INDEX(Danh_sách_lớp_học[],MATCH(SUMPRODUCT((Danh_sách_lớp_học[NGÀY]=Dạng_xem_theo_Lịch_biểu_Lớp[[#Headers],[THỨ HAI]])*(ROUNDDOWN($B17,10)>=ROUNDDOWN(Danh_sách_lớp_học[THỜI GIAN BẮT ĐẦU],10))*($B17<=Danh_sách_lớp_học[THỜI GIAN KẾT THÚC]),Danh_sách_lớp_học[DUY NHẤT]),Danh_sách_lớp_học[DUY NHẤT],0),2),0)","v":0},{"$f":"IFERROR(INDEX(Danh_sách_lớp_học[],MATCH(SUMPRODUCT((Danh_sách_lớp_học[NGÀY]=Dạng_xem_theo_Lịch_biểu_Lớp[[#Headers],[THỨ BA]])*(ROUNDDOWN($B17,10)>=ROUNDDOWN(Danh_sách_lớp_học[THỜI GIAN BẮT ĐẦU],10))*($B17<=Danh_sách_lớp_học[THỜI GIAN KẾT THÚC]),Danh_sách_lớp_học[DUY NHẤT]),Danh_sách_lớp_học[DUY NHẤT],0),2),0)","v":"HPE-295"},{"$f":"IFERROR(INDEX(Danh_sách_lớp_học[],MATCH(SUMPRODUCT((Danh_sách_lớp_học[NGÀY]=Dạng_xem_theo_Lịch_biểu_Lớp[[#Headers],[THỨ TƯ]])*(ROUNDDOWN($B17,10)>=ROUNDDOWN(Danh_sách_lớp_học[THỜI GIAN BẮT ĐẦU],10))*($B17<=Danh_sách_lớp_học[THỜI GIAN KẾT THÚC]),Danh_sách_lớp_học[DUY NHẤT]),Danh_sách_lớp_học[DUY NHẤT],0),2),0)","v":0},{"$f":"IFERROR(INDEX(Danh_sách_lớp_học[],MATCH(SUMPRODUCT((Danh_sách_lớp_học[NGÀY]=Dạng_xem_theo_Lịch_biểu_Lớp[[#Headers],[THỨ NĂM]])*(ROUNDDOWN($B17,10)>=ROUNDDOWN(Danh_sách_lớp_học[THỜI GIAN BẮT ĐẦU],10))*($B17<=Danh_sách_lớp_học[THỜI GIAN KẾT THÚC]),Danh_sách_lớp_học[DUY NHẤT]),Danh_sách_lớp_học[DUY NHẤT],0),2),0)","v":"HPE-295"},{"$f":"IFERROR(INDEX(Danh_sách_lớp_học[],MATCH(SUMPRODUCT((Danh_sách_lớp_học[NGÀY]=Dạng_xem_theo_Lịch_biểu_Lớp[[#Headers],[THỨ SÁU]])*(ROUNDDOWN($B17,10)>=ROUNDDOWN(Danh_sách_lớp_học[THỜI GIAN BẮT ĐẦU],10))*($B17<=Danh_sách_lớp_học[THỜI GIAN KẾT THÚC]),Danh_sách_lớp_học[DUY NHẤT]),Danh_sách_lớp_học[DUY NHẤT],0),2),0)","v":0},{"$f":"IFERROR(INDEX(Danh_sách_lớp_học[],MATCH(SUMPRODUCT((Danh_sách_lớp_học[NGÀY]=Dạng_xem_theo_Lịch_biểu_Lớp[[#Headers],[THỨ BẢY]])*(ROUNDDOWN($B17,10)>=ROUNDDOWN(Danh_sách_lớp_học[THỜI GIAN BẮT ĐẦU],10))*($B17<=Danh_sách_lớp_học[THỜI GIAN KẾT THÚC]),Danh_sách_lớp_học[DUY NHẤT]),Danh_sách_lớp_học[DUY NHẤT],0),2),0)","v":0}]
[null,"11:30:00",{"$f":"IFERROR(INDEX(Danh_sách_lớp_học[],MATCH(SUMPRODUCT((Danh_sách_lớp_học[NGÀY]=Dạng_xem_theo_Lịch_biểu_Lớp[[#Headers],[CHỦ NHẬT]])*(ROUNDDOWN($B18,10)>=ROUNDDOWN(Danh_sách_lớp_học[THỜI GIAN BẮT ĐẦU],10))*($B18<=Danh_sách_lớp_học[THỜI GIAN KẾT THÚC]),Danh_sách_lớp_học[DUY NHẤT]),Danh_sách_lớp_học[DUY NHẤT],0),2),0)","v":0},{"$f":"IFERROR(INDEX(Danh_sách_lớp_học[],MATCH(SUMPRODUCT((Danh_sách_lớp_học[NGÀY]=Dạng_xem_theo_Lịch_biểu_Lớp[[#Headers],[THỨ HAI]])*(ROUNDDOWN($B18,10)>=ROUNDDOWN(Danh_sách_lớp_học[THỜI GIAN BẮT ĐẦU],10))*($B18<=Danh_sách_lớp_học[THỜI GIAN KẾT THÚC]),Danh_sách_lớp_học[DUY NHẤT]),Danh_sách_lớp_học[DUY NHẤT],0),2),0)","v":0},{"$f":"IFERROR(INDEX(Danh_sách_lớp_học[],MATCH(SUMPRODUCT((Danh_sách_lớp_học[NGÀY]=Dạng_xem_theo_Lịch_biểu_Lớp[[#Headers],[THỨ BA]])*(ROUNDDOWN($B18,10)>=ROUNDDOWN(Danh_sách_lớp_học[THỜI GIAN BẮT ĐẦU],10))*($B18<=Danh_sách_lớp_học[THỜI GIAN KẾT THÚC]),Danh_sách_lớp_học[DUY NHẤT]),Danh_sách_lớp_học[DUY NHẤT],0),2),0)","v":"HPE-295"},{"$f":"IFERROR(INDEX(Danh_sách_lớp_học[],MATCH(SUMPRODUCT((Danh_sách_lớp_học[NGÀY]=Dạng_xem_theo_Lịch_biểu_Lớp[[#Headers],[THỨ TƯ]])*(ROUNDDOWN($B18,10)>=ROUNDDOWN(Danh_sách_lớp_học[THỜI GIAN BẮT ĐẦU],10))*($B18<=Danh_sách_lớp_học[THỜI GIAN KẾT THÚC]),Danh_sách_lớp_học[DUY NHẤT]),Danh_sách_lớp_học[DUY NHẤT],0),2),0)","v":0},{"$f":"IFERROR(INDEX(Danh_sách_lớp_học[],MATCH(SUMPRODUCT((Danh_sách_lớp_học[NGÀY]=Dạng_xem_theo_Lịch_biểu_Lớp[[#Headers],[THỨ NĂM]])*(ROUNDDOWN($B18,10)>=ROUNDDOWN(Danh_sách_lớp_học[THỜI GIAN BẮT ĐẦU],10))*($B18<=Danh_sách_lớp_học[THỜI GIAN KẾT THÚC]),Danh_sách_lớp_học[DUY NHẤT]),Danh_sách_lớp_học[DUY NHẤT],0),2),0)","v":"HPE-295"},{"$f":"IFERROR(INDEX(Danh_sách_lớp_học[],MATCH(SUMPRODUCT((Danh_sách_lớp_học[NGÀY]=Dạng_xem_theo_Lịch_biểu_Lớp[[#Headers],[THỨ SÁU]])*(ROUNDDOWN($B18,10)>=ROUNDDOWN(Danh_sách_lớp_học[THỜI GIAN BẮT ĐẦU],10))*($B18<=Danh_sách_lớp_học[THỜI GIAN KẾT THÚC]),Danh_sách_lớp_học[DUY NHẤT]),Danh_sách_lớp_học[DUY NHẤT],0),2),0)","v":0},{"$f":"IFERROR(INDEX(Danh_sách_lớp_học[],MATCH(SUMPRODUCT((Danh_sách_lớp_học[NGÀY]=Dạng_xem_theo_Lịch_biểu_Lớp[[#Headers],[THỨ BẢY]])*(ROUNDDOWN($B18,10)>=ROUNDDOWN(Danh_sách_lớp_học[THỜI GIAN BẮT ĐẦU],10))*($B18<=Danh_sách_lớp_học[THỜI GIAN KẾT THÚC]),Danh_sách_lớp_học[DUY NHẤT]),Danh_sách_lớp_học[DUY NHẤT],0),2),0)","v":0}]
[null,"11:45:00",{"$f":"IFERROR(INDEX(Danh_sách_lớp_học[],MATCH(SUMPRODUCT((Danh_sách_lớp_học[NGÀY]=Dạng_xem_theo_Lịch_biểu_Lớp[[#Headers],[CHỦ NHẬT]])*(ROUNDDOWN($B19,10)>=ROUNDDOWN(Danh_sách_lớp_học[THỜI GIAN BẮT ĐẦU],10))*($B19<=Danh_sách_lớp_học[THỜI GIAN KẾT THÚC]),Danh_sách_lớp_học[DUY NHẤT]),Danh_sách_lớp_học[DUY NHẤT],0),2),0)","v":0},{"$f":"IFERROR(INDEX(Danh_sách_lớp_học[],MATCH(SUMPRODUCT((Danh_sách_lớp_học[NGÀY]=Dạng_xem_theo_Lịch_biểu_Lớp[[#Headers],[THỨ HAI]])*(ROUNDDOWN($B19,10)>=ROUNDDOWN(Danh_sách_lớp_học[THỜI GIAN BẮT ĐẦU],10))*($B19<=Danh_sách_lớp_học[THỜI GIAN KẾT THÚC]),Danh_sách_lớp_học[DUY NHẤT]),Danh_sách_lớp_học[DUY NHẤT],0),2),0)","v":0},{"$f":"IFERROR(INDEX(Danh_sách_lớp_học[],MATCH(SUMPRODUCT((Danh_sách_lớp_học[NGÀY]=Dạng_xem_theo_Lịch_biểu_Lớp[[#Headers],[THỨ BA]])*(ROUNDDOWN($B19,10)>=ROUNDDOWN(Danh_sách_lớp_học[THỜI GIAN BẮT ĐẦU],10))*($B19<=Danh_sách_lớp_học[THỜI GIAN KẾT THÚC]),Danh_sách_lớp_học[DUY NHẤT]),Danh_sách_lớp_học[DUY NHẤT],0),2),0)","v":"HPE-295"},{"$f":"IFERROR(INDEX(Danh_sách_lớp_học[],MATCH(SUMPRODUCT((Danh_sách_lớp_học[NGÀY]=Dạng_xem_theo_Lịch_biểu_Lớp[[#Headers],[THỨ TƯ]])*(ROUNDDOWN($B19,10)>=ROUNDDOWN(Danh_sách_lớp_học[THỜI GIAN BẮT ĐẦU],10))*($B19<=Danh_sách_lớp_học[THỜI GIAN KẾT THÚC]),Danh_sách_lớp_học[DUY NHẤT]),Danh_sách_lớp_học[DUY NHẤT],0),2),0)","v":0},{"$f":"IFERROR(INDEX(Danh_sách_lớp_học[],MATCH(SUMPRODUCT((Danh_sách_lớp_học[NGÀY]=Dạng_xem_theo_Lịch_biểu_Lớp[[#Headers],[THỨ NĂM]])*(ROUNDDOWN($B19,10)>=ROUNDDOWN(Danh_sách_lớp_học[THỜI GIAN BẮT ĐẦU],10))*($B19<=Danh_sách_lớp_học[THỜI GIAN KẾT THÚC]),Danh_sách_lớp_học[DUY NHẤT]),Danh_sách_lớp_học[DUY NHẤT],0),2),0)","v":"HPE-295"},{"$f":"IFERROR(INDEX(Danh_sách_lớp_học[],MATCH(SUMPRODUCT((Danh_sách_lớp_học[NGÀY]=Dạng_xem_theo_Lịch_biểu_Lớp[[#Headers],[THỨ SÁU]])*(ROUNDDOWN($B19,10)>=ROUNDDOWN(Danh_sách_lớp_học[THỜI GIAN BẮT ĐẦU],10))*($B19<=Danh_sách_lớp_học[THỜI GIAN KẾT THÚC]),Danh_sách_lớp_học[DUY NHẤT]),Danh_sách_lớp_học[DUY NHẤT],0),2),0)","v":0},{"$f":"IFERROR(INDEX(Danh_sách_lớp_học[],MATCH(SUMPRODUCT((Danh_sách_lớp_học[NGÀY]=Dạng_xem_theo_Lịch_biểu_Lớp[[#Headers],[THỨ BẢY]])*(ROUNDDOWN($B19,10)>=ROUNDDOWN(Danh_sách_lớp_học[THỜI GIAN BẮT ĐẦU],10))*($B19<=Danh_sách_lớp_học[THỜI GIAN KẾT THÚC]),Danh_sách_lớp_học[DUY NHẤT]),Danh_sách_lớp_học[DUY NHẤT],0),2),0)","v":0}]
[null,"12:00:00",{"$f":"IFERROR(INDEX(Danh_sách_lớp_học[],MATCH(SUMPRODUCT((Danh_sách_lớp_học[NGÀY]=Dạng_xem_theo_Lịch_biểu_Lớp[[#Headers],[CHỦ NHẬT]])*(ROUNDDOWN($B20,10)>=ROUNDDOWN(Danh_sách_lớp_học[THỜI GIAN BẮT ĐẦU],10))*($B20<=Danh_sách_lớp_học[THỜI GIAN KẾT THÚC]),Danh_sách_lớp_học[DUY NHẤT]),Danh_sách_lớp_học[DUY NHẤT],0),2),0)","v":0},{"$f":"IFERROR(INDEX(Danh_sách_lớp_học[],MATCH(SUMPRODUCT((Danh_sách_lớp_học[NGÀY]=Dạng_xem_theo_Lịch_biểu_Lớp[[#Headers],[THỨ HAI]])*(ROUNDDOWN($B20,10)>=ROUNDDOWN(Danh_sách_lớp_học[THỜI GIAN BẮT ĐẦU],10))*($B20<=Danh_sách_lớp_học[THỜI GIAN KẾT THÚC]),Danh_sách_lớp_học[DUY NHẤT]),Danh_sách_lớp_học[DUY NHẤT],0),2),0)","v":0},{"$f":"IFERROR(INDEX(Danh_sách_lớp_học[],MATCH(SUMPRODUCT((Danh_sách_lớp_học[NGÀY]=Dạng_xem_theo_Lịch_biểu_Lớp[[#Headers],[THỨ BA]])*(ROUNDDOWN($B20,10)>=ROUNDDOWN(Danh_sách_lớp_học[THỜI GIAN BẮT ĐẦU],10))*($B20<=Danh_sách_lớp_học[THỜI GIAN KẾT THÚC]),Danh_sách_lớp_học[DUY NHẤT]),Danh_sách_lớp_học[DUY NHẤT],0),2),0)","v":"HPE-295"},{"$f":"IFERROR(INDEX(Danh_sách_lớp_học[],MATCH(SUMPRODUCT((Danh_sách_lớp_học[NGÀY]=Dạng_xem_theo_Lịch_biểu_Lớp[[#Headers],[THỨ TƯ]])*(ROUNDDOWN($B20,10)>=ROUNDDOWN(Danh_sách_lớp_học[THỜI GIAN BẮT ĐẦU],10))*($B20<=Danh_sách_lớp_học[THỜI GIAN KẾT THÚC]),Danh_sách_lớp_học[DUY NHẤT]),Danh_sách_lớp_học[DUY NHẤT],0),2),0)","v":0},{"$f":"IFERROR(INDEX(Danh_sách_lớp_học[],MATCH(SUMPRODUCT((Danh_sách_lớp_học[NGÀY]=Dạng_xem_theo_Lịch_biểu_Lớp[[#Headers],[THỨ NĂM]])*(ROUNDDOWN($B20,10)>=ROUNDDOWN(Danh_sách_lớp_học[THỜI GIAN BẮT ĐẦU],10))*($B20<=Danh_sách_lớp_học[THỜI GIAN KẾT THÚC]),Danh_sách_lớp_học[DUY NHẤT]),Danh_sách_lớp_học[DUY NHẤT],0),2),0)","v":"HPE-295"},{"$f":"IFERROR(INDEX(Danh_sách_lớp_học[],MATCH(SUMPRODUCT((Danh_sách_lớp_học[NGÀY]=Dạng_xem_theo_Lịch_biểu_Lớp[[#Headers],[THỨ SÁU]])*(ROUNDDOWN($B20,10)>=ROUNDDOWN(Danh_sách_lớp_học[THỜI GIAN BẮT ĐẦU],10))*($B20<=Danh_sách_lớp_học[THỜI GIAN KẾT THÚC]),Danh_sách_lớp_học[DUY NHẤT]),Danh_sách_lớp_học[DUY NHẤT],0),2),0)","v":0},{"$f":"IFERROR(INDEX(Danh_sách_lớp_học[],MATCH(SUMPRODUCT((Danh_sách_lớp_học[NGÀY]=Dạng_xem_theo_Lịch_biểu_Lớp[[#Headers],[THỨ BẢY]])*(ROUNDDOWN($B20,10)>=ROUNDDOWN(Danh_sách_lớp_học[THỜI GIAN BẮT ĐẦU],10))*($B20<=Danh_sách_lớp_học[THỜI GIAN KẾT THÚC]),Danh_sách_lớp_học[DUY NHẤT]),Danh_sách_lớp_học[DUY NHẤT],0),2),0)","v":0}]
[null,"12:15:00",{"$f":"IFERROR(INDEX(Danh_sách_lớp_học[],MATCH(SUMPRODUCT((Danh_sách_lớp_học[NGÀY]=Dạng_xem_theo_Lịch_biểu_Lớp[[#Headers],[CHỦ NHẬT]])*(ROUNDDOWN($B21,10)>=ROUNDDOWN(Danh_sách_lớp_học[THỜI GIAN BẮT ĐẦU],10))*($B21<=Danh_sách_lớp_học[THỜI GIAN KẾT THÚC]),Danh_sách_lớp_học[DUY NHẤT]),Danh_sách_lớp_học[DUY NHẤT],0),2),0)","v":0},{"$f":"IFERROR(INDEX(Danh_sách_lớp_học[],MATCH(SUMPRODUCT((Danh_sách_lớp_học[NGÀY]=Dạng_xem_theo_Lịch_biểu_Lớp[[#Headers],[THỨ HAI]])*(ROUNDDOWN($B21,10)>=ROUNDDOWN(Danh_sách_lớp_học[THỜI GIAN BẮT ĐẦU],10))*($B21<=Danh_sách_lớp_học[THỜI GIAN KẾT THÚC]),Danh_sách_lớp_học[DUY NHẤT]),Danh_sách_lớp_học[DUY NHẤT],0),2),0)","v":0},{"$f":"IFERROR(INDEX(Danh_sách_lớp_học[],MATCH(SUMPRODUCT((Danh_sách_lớp_học[NGÀY]=Dạng_xem_theo_Lịch_biểu_Lớp[[#Headers],[THỨ BA]])*(ROUNDDOWN($B21,10)>=ROUNDDOWN(Danh_sách_lớp_học[THỜI GIAN BẮT ĐẦU],10))*($B21<=Danh_sách_lớp_học[THỜI GIAN KẾT THÚC]),Danh_sách_lớp_học[DUY NHẤT]),Danh_sách_lớp_học[DUY NHẤT],0),2),0)","v":0},{"$f":"IFERROR(INDEX(Danh_sách_lớp_học[],MATCH(SUMPRODUCT((Danh_sách_lớp_học[NGÀY]=Dạng_xem_theo_Lịch_biểu_Lớp[[#Headers],[THỨ TƯ]])*(ROUNDDOWN($B21,10)>=ROUNDDOWN(Danh_sách_lớp_học[THỜI GIAN BẮT ĐẦU],10))*($B21<=Danh_sách_lớp_học[THỜI GIAN KẾT THÚC]),Danh_sách_lớp_học[DUY NHẤT]),Danh_sách_lớp_học[DUY NHẤT],0),2),0)","v":0},{"$f":"IFERROR(INDEX(Danh_sách_lớp_học[],MATCH(SUMPRODUCT((Danh_sách_lớp_học[NGÀY]=Dạng_xem_theo_Lịch_biểu_Lớp[[#Headers],[THỨ NĂM]])*(ROUNDDOWN($B21,10)>=ROUNDDOWN(Danh_sách_lớp_học[THỜI GIAN BẮT ĐẦU],10))*($B21<=Danh_sách_lớp_học[THỜI GIAN KẾT THÚC]),Danh_sách_lớp_học[DUY NHẤT]),Danh_sách_lớp_học[DUY NHẤT],0),2),0)","v":0},{"$f":"IFERROR(INDEX(Danh_sách_lớp_học[],MATCH(SUMPRODUCT((Danh_sách_lớp_học[NGÀY]=Dạng_xem_theo_Lịch_biểu_Lớp[[#Headers],[THỨ SÁU]])*(ROUNDDOWN($B21,10)>=ROUNDDOWN(Danh_sách_lớp_học[THỜI GIAN BẮT ĐẦU],10))*($B21<=Danh_sách_lớp_học[THỜI GIAN KẾT THÚC]),Danh_sách_lớp_học[DUY NHẤT]),Danh_sách_lớp_học[DUY NHẤT],0),2),0)","v":0},{"$f":"IFERROR(INDEX(Danh_sách_lớp_học[],MATCH(SUMPRODUCT((Danh_sách_lớp_học[NGÀY]=Dạng_xem_theo_Lịch_biểu_Lớp[[#Headers],[THỨ BẢY]])*(ROUNDDOWN($B21,10)>=ROUNDDOWN(Danh_sách_lớp_học[THỜI GIAN BẮT ĐẦU],10))*($B21<=Danh_sách_lớp_học[THỜI GIAN KẾT THÚC]),Danh_sách_lớp_học[DUY NHẤT]),Danh_sách_lớp_học[DUY NHẤT],0),2),0)","v":0}]
[null,"12:30:00",{"$f":"IFERROR(INDEX(Danh_sách_lớp_học[],MATCH(SUMPRODUCT((Danh_sách_lớp_học[NGÀY]=Dạng_xem_theo_Lịch_biểu_Lớp[[#Headers],[CHỦ NHẬT]])*(ROUNDDOWN($B22,10)>=ROUNDDOWN(Danh_sách_lớp_học[THỜI GIAN BẮT ĐẦU],10))*($B22<=Danh_sách_lớp_học[THỜI GIAN KẾT THÚC]),Danh_sách_lớp_học[DUY NHẤT]),Danh_sách_lớp_học[DUY NHẤT],0),2),0)","v":0},{"$f":"IFERROR(INDEX(Danh_sách_lớp_học[],MATCH(SUMPRODUCT((Danh_sách_lớp_học[NGÀY]=Dạng_xem_theo_Lịch_biểu_Lớp[[#Headers],[THỨ HAI]])*(ROUNDDOWN($B22,10)>=ROUNDDOWN(Danh_sách_lớp_học[THỜI GIAN BẮT ĐẦU],10))*($B22<=Danh_sách_lớp_học[THỜI GIAN KẾT THÚC]),Danh_sách_lớp_học[DUY NHẤT]),Danh_sách_lớp_học[DUY NHẤT],0),2),0)","v":0},{"$f":"IFERROR(INDEX(Danh_sách_lớp_học[],MATCH(SUMPRODUCT((Danh_sách_lớp_học[NGÀY]=Dạng_xem_theo_Lịch_biểu_Lớp[[#Headers],[THỨ BA]])*(ROUNDDOWN($B22,10)>=ROUNDDOWN(Danh_sách_lớp_học[THỜI GIAN BẮT ĐẦU],10))*($B22<=Danh_sách_lớp_học[THỜI GIAN KẾT THÚC]),Danh_sách_lớp_học[DUY NHẤT]),Danh_sách_lớp_học[DUY NHẤT],0),2),0)","v":0},{"$f":"IFERROR(INDEX(Danh_sách_lớp_học[],MATCH(SUMPRODUCT((Danh_sách_lớp_học[NGÀY]=Dạng_xem_theo_Lịch_biểu_Lớp[[#Headers],[THỨ TƯ]])*(ROUNDDOWN($B22,10)>=ROUNDDOWN(Danh_sách_lớp_học[THỜI GIAN BẮT ĐẦU],10))*($B22<=Danh_sách_lớp_học[THỜI GIAN KẾT THÚC]),Danh_sách_lớp_học[DUY NHẤT]),Danh_sách_lớp_học[DUY NHẤT],0),2),0)","v":0},{"$f":"IFERROR(INDEX(Danh_sách_lớp_học[],MATCH(SUMPRODUCT((Danh_sách_lớp_học[NGÀY]=Dạng_xem_theo_Lịch_biểu_Lớp[[#Headers],[THỨ NĂM]])*(ROUNDDOWN($B22,10)>=ROUNDDOWN(Danh_sách_lớp_học[THỜI GIAN BẮT ĐẦU],10))*($B22<=Danh_sách_lớp_học[THỜI GIAN KẾT THÚC]),Danh_sách_lớp_học[DUY NHẤT]),Danh_sách_lớp_học[DUY NHẤT],0),2),0)","v":0},{"$f":"IFERROR(INDEX(Danh_sách_lớp_học[],MATCH(SUMPRODUCT((Danh_sách_lớp_học[NGÀY]=Dạng_xem_theo_Lịch_biểu_Lớp[[#Headers],[THỨ SÁU]])*(ROUNDDOWN($B22,10)>=ROUNDDOWN(Danh_sách_lớp_học[THỜI GIAN BẮT ĐẦU],10))*($B22<=Danh_sách_lớp_học[THỜI GIAN KẾT THÚC]),Danh_sách_lớp_học[DUY NHẤT]),Danh_sách_lớp_học[DUY NHẤT],0),2),0)","v":0},{"$f":"IFERROR(INDEX(Danh_sách_lớp_học[],MATCH(SUMPRODUCT((Danh_sách_lớp_học[NGÀY]=Dạng_xem_theo_Lịch_biểu_Lớp[[#Headers],[THỨ BẢY]])*(ROUNDDOWN($B22,10)>=ROUNDDOWN(Danh_sách_lớp_học[THỜI GIAN BẮT ĐẦU],10))*($B22<=Danh_sách_lớp_học[THỜI GIAN KẾT THÚC]),Danh_sách_lớp_học[DUY NHẤT]),Danh_sách_lớp_học[DUY NHẤT],0),2),0)","v":0}]
[null,"12:45:00",{"$f":"IFERROR(INDEX(Danh_sách_lớp_học[],MATCH(SUMPRODUCT((Danh_sách_lớp_học[NGÀY]=Dạng_xem_theo_Lịch_biểu_Lớp[[#Headers],[CHỦ NHẬT]])*(ROUNDDOWN($B23,10)>=ROUNDDOWN(Danh_sách_lớp_học[THỜI GIAN BẮT ĐẦU],10))*($B23<=Danh_sách_lớp_học[THỜI GIAN KẾT THÚC]),Danh_sách_lớp_học[DUY NHẤT]),Danh_sách_lớp_học[DUY NHẤT],0),2),0)","v":0},{"$f":"IFERROR(INDEX(Danh_sách_lớp_học[],MATCH(SUMPRODUCT((Danh_sách_lớp_học[NGÀY]=Dạng_xem_theo_Lịch_biểu_Lớp[[#Headers],[THỨ HAI]])*(ROUNDDOWN($B23,10)>=ROUNDDOWN(Danh_sách_lớp_học[THỜI GIAN BẮT ĐẦU],10))*($B23<=Danh_sách_lớp_học[THỜI GIAN KẾT THÚC]),Danh_sách_lớp_học[DUY NHẤT]),Danh_sách_lớp_học[DUY NHẤT],0),2),0)","v":0},{"$f":"IFERROR(INDEX(Danh_sách_lớp_học[],MATCH(SUMPRODUCT((Danh_sách_lớp_học[NGÀY]=Dạng_xem_theo_Lịch_biểu_Lớp[[#Headers],[THỨ BA]])*(ROUNDDOWN($B23,10)>=ROUNDDOWN(Danh_sách_lớp_học[THỜI GIAN BẮT ĐẦU],10))*($B23<=Danh_sách_lớp_học[THỜI GIAN KẾT THÚC]),Danh_sách_lớp_học[DUY NHẤT]),Danh_sách_lớp_học[DUY NHẤT],0),2),0)","v":0},{"$f":"IFERROR(INDEX(Danh_sách_lớp_học[],MATCH(SUMPRODUCT((Danh_sách_lớp_học[NGÀY]=Dạng_xem_theo_Lịch_biểu_Lớp[[#Headers],[THỨ TƯ]])*(ROUNDDOWN($B23,10)>=ROUNDDOWN(Danh_sách_lớp_học[THỜI GIAN BẮT ĐẦU],10))*($B23<=Danh_sách_lớp_học[THỜI GIAN KẾT THÚC]),Danh_sách_lớp_học[DUY NHẤT]),Danh_sách_lớp_học[DUY NHẤT],0),2),0)","v":0},{"$f":"IFERROR(INDEX(Danh_sách_lớp_học[],MATCH(SUMPRODUCT((Danh_sách_lớp_học[NGÀY]=Dạng_xem_theo_Lịch_biểu_Lớp[[#Headers],[THỨ NĂM]])*(ROUNDDOWN($B23,10)>=ROUNDDOWN(Danh_sách_lớp_học[THỜI GIAN BẮT ĐẦU],10))*($B23<=Danh_sách_lớp_học[THỜI GIAN KẾT THÚC]),Danh_sách_lớp_học[DUY NHẤT]),Danh_sách_lớp_học[DUY NHẤT],0),2),0)","v":0},{"$f":"IFERROR(INDEX(Danh_sách_lớp_học[],MATCH(SUMPRODUCT((Danh_sách_lớp_học[NGÀY]=Dạng_xem_theo_Lịch_biểu_Lớp[[#Headers],[THỨ SÁU]])*(ROUNDDOWN($B23,10)>=ROUNDDOWN(Danh_sách_lớp_học[THỜI GIAN BẮT ĐẦU],10))*($B23<=Danh_sách_lớp_học[THỜI GIAN KẾT THÚC]),Danh_sách_lớp_học[DUY NHẤT]),Danh_sách_lớp_học[DUY NHẤT],0),2),0)","v":0},{"$f":"IFERROR(INDEX(Danh_sách_lớp_học[],MATCH(SUMPRODUCT((Danh_sách_lớp_học[NGÀY]=Dạng_xem_theo_Lịch_biểu_Lớp[[#Headers],[THỨ BẢY]])*(ROUNDDOWN($B23,10)>=ROUNDDOWN(Danh_sách_lớp_học[THỜI GIAN BẮT ĐẦU],10))*($B23<=Danh_sách_lớp_học[THỜI GIAN KẾT THÚC]),Danh_sách_lớp_học[DUY NHẤT]),Danh_sách_lớp_học[DUY NHẤT],0),2),0)","v":0}]
[null,"13:00:00",{"$f":"IFERROR(INDEX(Danh_sách_lớp_học[],MATCH(SUMPRODUCT((Danh_sách_lớp_học[NGÀY]=Dạng_xem_theo_Lịch_biểu_Lớp[[#Headers],[CHỦ NHẬT]])*(ROUNDDOWN($B24,10)>=ROUNDDOWN(Danh_sách_lớp_học[THỜI GIAN BẮT ĐẦU],10))*($B24<=Danh_sách_lớp_học[THỜI GIAN KẾT THÚC]),Danh_sách_lớp_học[DUY NHẤT]),Danh_sách_lớp_học[DUY NHẤT],0),2),0)","v":0},{"$f":"IFERROR(INDEX(Danh_sách_lớp_học[],MATCH(SUMPRODUCT((Danh_sách_lớp_học[NGÀY]=Dạng_xem_theo_Lịch_biểu_Lớp[[#Headers],[THỨ HAI]])*(ROUNDDOWN($B24,10)>=ROUNDDOWN(Danh_sách_lớp_học[THỜI GIAN BẮT ĐẦU],10))*($B24<=Danh_sách_lớp_học[THỜI GIAN KẾT THÚC]),Danh_sách_lớp_học[DUY NHẤT]),Danh_sách_lớp_học[DUY NHẤT],0),2),0)","v":"WR-121"},{"$f":"IFERROR(INDEX(Danh_sách_lớp_học[],MATCH(SUMPRODUCT((Danh_sách_lớp_học[NGÀY]=Dạng_xem_theo_Lịch_biểu_Lớp[[#Headers],[THỨ BA]])*(ROUNDDOWN($B24,10)>=ROUNDDOWN(Danh_sách_lớp_học[THỜI GIAN BẮT ĐẦU],10))*($B24<=Danh_sách_lớp_học[THỜI GIAN KẾT THÚC]),Danh_sách_lớp_học[DUY NHẤT]),Danh_sách_lớp_học[DUY NHẤT],0),2),0)","v":0},{"$f":"IFERROR(INDEX(Danh_sách_lớp_học[],MATCH(SUMPRODUCT((Danh_sách_lớp_học[NGÀY]=Dạng_xem_theo_Lịch_biểu_Lớp[[#Headers],[THỨ TƯ]])*(ROUNDDOWN($B24,10)>=ROUNDDOWN(Danh_sách_lớp_học[THỜI GIAN BẮT ĐẦU],10))*($B24<=Danh_sách_lớp_học[THỜI GIAN KẾT THÚC]),Danh_sách_lớp_học[DUY NHẤT]),Danh_sách_lớp_học[DUY NHẤT],0),2),0)","v":"WR-121"},{"$f":"IFERROR(INDEX(Danh_sách_lớp_học[],MATCH(SUMPRODUCT((Danh_sách_lớp_học[NGÀY]=Dạng_xem_theo_Lịch_biểu_Lớp[[#Headers],[THỨ NĂM]])*(ROUNDDOWN($B24,10)>=ROUNDDOWN(Danh_sách_lớp_học[THỜI GIAN BẮT ĐẦU],10))*($B24<=Danh_sách_lớp_học[THỜI GIAN KẾT THÚC]),Danh_sách_lớp_học[DUY NHẤT]),Danh_sách_lớp_học[DUY NHẤT],0),2),0)","v":0},{"$f":"IFERROR(INDEX(Danh_sách_lớp_học[],MATCH(SUMPRODUCT((Danh_sách_lớp_học[NGÀY]=Dạng_xem_theo_Lịch_biểu_Lớp[[#Headers],[THỨ SÁU]])*(ROUNDDOWN($B24,10)>=ROUNDDOWN(Danh_sách_lớp_học[THỜI GIAN BẮT ĐẦU],10))*($B24<=Danh_sách_lớp_học[THỜI GIAN KẾT THÚC]),Danh_sách_lớp_học[DUY NHẤT]),Danh_sách_lớp_học[DUY NHẤT],0),2),0)","v":0},{"$f":"IFERROR(INDEX(Danh_sách_lớp_học[],MATCH(SUMPRODUCT((Danh_sách_lớp_học[NGÀY]=Dạng_xem_theo_Lịch_biểu_Lớp[[#Headers],[THỨ BẢY]])*(ROUNDDOWN($B24,10)>=ROUNDDOWN(Danh_sách_lớp_học[THỜI GIAN BẮT ĐẦU],10))*($B24<=Danh_sách_lớp_học[THỜI GIAN KẾT THÚC]),Danh_sách_lớp_học[DUY NHẤT]),Danh_sách_lớp_học[DUY NHẤT],0),2),0)","v":0}]
[null,"13:15:00",{"$f":"IFERROR(INDEX(Danh_sách_lớp_học[],MATCH(SUMPRODUCT((Danh_sách_lớp_học[NGÀY]=Dạng_xem_theo_Lịch_biểu_Lớp[[#Headers],[CHỦ NHẬT]])*(ROUNDDOWN($B25,10)>=ROUNDDOWN(Danh_sách_lớp_học[THỜI GIAN BẮT ĐẦU],10))*($B25<=Danh_sách_lớp_học[THỜI GIAN KẾT THÚC]),Danh_sách_lớp_học[DUY NHẤT]),Danh_sách_lớp_học[DUY NHẤT],0),2),0)","v":0},{"$f":"IFERROR(INDEX(Danh_sách_lớp_học[],MATCH(SUMPRODUCT((Danh_sách_lớp_học[NGÀY]=Dạng_xem_theo_Lịch_biểu_Lớp[[#Headers],[THỨ HAI]])*(ROUNDDOWN($B25,10)>=ROUNDDOWN(Danh_sách_lớp_học[THỜI GIAN BẮT ĐẦU],10))*($B25<=Danh_sách_lớp_học[THỜI GIAN KẾT THÚC]),Danh_sách_lớp_học[DUY NHẤT]),Danh_sách_lớp_học[DUY NHẤT],0),2),0)","v":"WR-121"},{"$f":"IFERROR(INDEX(Danh_sách_lớp_học[],MATCH(SUMPRODUCT((Danh_sách_lớp_học[NGÀY]=Dạng_xem_theo_Lịch_biểu_Lớp[[#Headers],[THỨ BA]])*(ROUNDDOWN($B25,10)>=ROUNDDOWN(Danh_sách_lớp_học[THỜI GIAN BẮT ĐẦU],10))*($B25<=Danh_sách_lớp_học[THỜI GIAN KẾT THÚC]),Danh_sách_lớp_học[DUY NHẤT]),Danh_sách_lớp_học[DUY NHẤT],0),2),0)","v":0},{"$f":"IFERROR(INDEX(Danh_sách_lớp_học[],MATCH(SUMPRODUCT((Danh_sách_lớp_học[NGÀY]=Dạng_xem_theo_Lịch_biểu_Lớp[[#Headers],[THỨ TƯ]])*(ROUNDDOWN($B25,10)>=ROUNDDOWN(Danh_sách_lớp_học[THỜI GIAN BẮT ĐẦU],10))*($B25<=Danh_sách_lớp_học[THỜI GIAN KẾT THÚC]),Danh_sách_lớp_học[DUY NHẤT]),Danh_sách_lớp_học[DUY NHẤT],0),2),0)","v":"WR-121"},{"$f":"IFERROR(INDEX(Danh_sách_lớp_học[],MATCH(SUMPRODUCT((Danh_sách_lớp_học[NGÀY]=Dạng_xem_theo_Lịch_biểu_Lớp[[#Headers],[THỨ NĂM]])*(ROUNDDOWN($B25,10)>=ROUNDDOWN(Danh_sách_lớp_học[THỜI GIAN BẮT ĐẦU],10))*($B25<=Danh_sách_lớp_học[THỜI GIAN KẾT THÚC]),Danh_sách_lớp_học[DUY NHẤT]),Danh_sách_lớp_học[DUY NHẤT],0),2),0)","v":0},{"$f":"IFERROR(INDEX(Danh_sách_lớp_học[],MATCH(SUMPRODUCT((Danh_sách_lớp_học[NGÀY]=Dạng_xem_theo_Lịch_biểu_Lớp[[#Headers],[THỨ SÁU]])*(ROUNDDOWN($B25,10)>=ROUNDDOWN(Danh_sách_lớp_học[THỜI GIAN BẮT ĐẦU],10))*($B25<=Danh_sách_lớp_học[THỜI GIAN KẾT THÚC]),Danh_sách_lớp_học[DUY NHẤT]),Danh_sách_lớp_học[DUY NHẤT],0),2),0)","v":0},{"$f":"IFERROR(INDEX(Danh_sách_lớp_học[],MATCH(SUMPRODUCT((Danh_sách_lớp_học[NGÀY]=Dạng_xem_theo_Lịch_biểu_Lớp[[#Headers],[THỨ BẢY]])*(ROUNDDOWN($B25,10)>=ROUNDDOWN(Danh_sách_lớp_học[THỜI GIAN BẮT ĐẦU],10))*($B25<=Danh_sách_lớp_học[THỜI GIAN KẾT THÚC]),Danh_sách_lớp_học[DUY NHẤT]),Danh_sách_lớp_học[DUY NHẤT],0),2),0)","v":0}]
[null,"13:30:00",{"$f":"IFERROR(INDEX(Danh_sách_lớp_học[],MATCH(SUMPRODUCT((Danh_sách_lớp_học[NGÀY]=Dạng_xem_theo_Lịch_biểu_Lớp[[#Headers],[CHỦ NHẬT]])*(ROUNDDOWN($B26,10)>=ROUNDDOWN(Danh_sách_lớp_học[THỜI GIAN BẮT ĐẦU],10))*($B26<=Danh_sách_lớp_học[THỜI GIAN KẾT THÚC]),Danh_sách_lớp_học[DUY NHẤT]),Danh_sách_lớp_học[DUY NHẤT],0),2),0)","v":0},{"$f":"IFERROR(INDEX(Danh_sách_lớp_học[],MATCH(SUMPRODUCT((Danh_sách_lớp_học[NGÀY]=Dạng_xem_theo_Lịch_biểu_Lớp[[#Headers],[THỨ HAI]])*(ROUNDDOWN($B26,10)>=ROUNDDOWN(Danh_sách_lớp_học[THỜI GIAN BẮT ĐẦU],10))*($B26<=Danh_sách_lớp_học[THỜI GIAN KẾT THÚC]),Danh_sách_lớp_học[DUY NHẤT]),Danh_sách_lớp_học[DUY NHẤT],0),2),0)","v":"WR-121"},{"$f":"IFERROR(INDEX(Danh_sách_lớp_học[],MATCH(SUMPRODUCT((Danh_sách_lớp_học[NGÀY]=Dạng_xem_theo_Lịch_biểu_Lớp[[#Headers],[THỨ BA]])*(ROUNDDOWN($B26,10)>=ROUNDDOWN(Danh_sách_lớp_học[THỜI GIAN BẮT ĐẦU],10))*($B26<=Danh_sách_lớp_học[THỜI GIAN KẾT THÚC]),Danh_sách_lớp_học[DUY NHẤT]),Danh_sách_lớp_học[DUY NHẤT],0),2),0)","v":0},{"$f":"IFERROR(INDEX(Danh_sách_lớp_học[],MATCH(SUMPRODUCT((Danh_sách_lớp_học[NGÀY]=Dạng_xem_theo_Lịch_biểu_Lớp[[#Headers],[THỨ TƯ]])*(ROUNDDOWN($B26,10)>=ROUNDDOWN(Danh_sách_lớp_học[THỜI GIAN BẮT ĐẦU],10))*($B26<=Danh_sách_lớp_học[THỜI GIAN KẾT THÚC]),Danh_sách_lớp_học[DUY NHẤT]),Danh_sách_lớp_học[DUY NHẤT],0),2),0)","v":"WR-121"},{"$f":"IFERROR(INDEX(Danh_sách_lớp_học[],MATCH(SUMPRODUCT((Danh_sách_lớp_học[NGÀY]=Dạng_xem_theo_Lịch_biểu_Lớp[[#Headers],[THỨ NĂM]])*(ROUNDDOWN($B26,10)>=ROUNDDOWN(Danh_sách_lớp_học[THỜI GIAN BẮT ĐẦU],10))*($B26<=Danh_sách_lớp_học[THỜI GIAN KẾT THÚC]),Danh_sách_lớp_học[DUY NHẤT]),Danh_sách_lớp_học[DUY NHẤT],0),2),0)","v":0},{"$f":"IFERROR(INDEX(Danh_sách_lớp_học[],MATCH(SUMPRODUCT((Danh_sách_lớp_học[NGÀY]=Dạng_xem_theo_Lịch_biểu_Lớp[[#Headers],[THỨ SÁU]])*(ROUNDDOWN($B26,10)>=ROUNDDOWN(Danh_sách_lớp_học[THỜI GIAN BẮT ĐẦU],10))*($B26<=Danh_sách_lớp_học[THỜI GIAN KẾT THÚC]),Danh_sách_lớp_học[DUY NHẤT]),Danh_sách_lớp_học[DUY NHẤT],0),2),0)","v":0},{"$f":"IFERROR(INDEX(Danh_sách_lớp_học[],MATCH(SUMPRODUCT((Danh_sách_lớp_học[NGÀY]=Dạng_xem_theo_Lịch_biểu_Lớp[[#Headers],[THỨ BẢY]])*(ROUNDDOWN($B26,10)>=ROUNDDOWN(Danh_sách_lớp_học[THỜI GIAN BẮT ĐẦU],10))*($B26<=Danh_sách_lớp_học[THỜI GIAN KẾT THÚC]),Danh_sách_lớp_học[DUY NHẤT]),Danh_sách_lớp_học[DUY NHẤT],0),2),0)","v":0}]
[null,"13:45:00",{"$f":"IFERROR(INDEX(Danh_sách_lớp_học[],MATCH(SUMPRODUCT((Danh_sách_lớp_học[NGÀY]=Dạng_xem_theo_Lịch_biểu_Lớp[[#Headers],[CHỦ NHẬT]])*(ROUNDDOWN($B27,10)>=ROUNDDOWN(Danh_sách_lớp_học[THỜI GIAN BẮT ĐẦU],10))*($B27<=Danh_sách_lớp_học[THỜI GIAN KẾT THÚC]),Danh_sách_lớp_học[DUY NHẤT]),Danh_sách_lớp_học[DUY NHẤT],0),2),0)","v":0},{"$f":"IFERROR(INDEX(Danh_sách_lớp_học[],MATCH(SUMPRODUCT((Danh_sách_lớp_học[NGÀY]=Dạng_xem_theo_Lịch_biểu_Lớp[[#Headers],[THỨ HAI]])*(ROUNDDOWN($B27,10)>=ROUNDDOWN(Danh_sách_lớp_học[THỜI GIAN BẮT ĐẦU],10))*($B27<=Danh_sách_lớp_học[THỜI GIAN KẾT THÚC]),Danh_sách_lớp_học[DUY NHẤT]),Danh_sách_lớp_học[DUY NHẤT],0),2),0)","v":"WR-121"},{"$f":"IFERROR(INDEX(Danh_sách_lớp_học[],MATCH(SUMPRODUCT((Danh_sách_lớp_học[NGÀY]=Dạng_xem_theo_Lịch_biểu_Lớp[[#Headers],[THỨ BA]])*(ROUNDDOWN($B27,10)>=ROUNDDOWN(Danh_sách_lớp_học[THỜI GIAN BẮT ĐẦU],10))*($B27<=Danh_sách_lớp_học[THỜI GIAN KẾT THÚC]),Danh_sách_lớp_học[DUY NHẤT]),Danh_sách_lớp_học[DUY NHẤT],0),2),0)","v":0},{"$f":"IFERROR(INDEX(Danh_sách_lớp_học[],MATCH(SUMPRODUCT((Danh_sách_lớp_học[NGÀY]=Dạng_xem_theo_Lịch_biểu_Lớp[[#Headers],[THỨ TƯ]])*(ROUNDDOWN($B27,10)>=ROUNDDOWN(Danh_sách_lớp_học[THỜI GIAN BẮT ĐẦU],10))*($B27<=Danh_sách_lớp_học[THỜI GIAN KẾT THÚC]),Danh_sách_lớp_học[DUY NHẤT]),Danh_sách_lớp_học[DUY NHẤT],0),2),0)","v":"WR-121"},{"$f":"IFERROR(INDEX(Danh_sách_lớp_học[],MATCH(SUMPRODUCT((Danh_sách_lớp_học[NGÀY]=Dạng_xem_theo_Lịch_biểu_Lớp[[#Headers],[THỨ NĂM]])*(ROUNDDOWN($B27,10)>=ROUNDDOWN(Danh_sách_lớp_học[THỜI GIAN BẮT ĐẦU],10))*($B27<=Danh_sách_lớp_học[THỜI GIAN KẾT THÚC]),Danh_sách_lớp_học[DUY NHẤT]),Danh_sách_lớp_học[DUY NHẤT],0),2),0)","v":0},{"$f":"IFERROR(INDEX(Danh_sách_lớp_học[],MATCH(SUMPRODUCT((Danh_sách_lớp_học[NGÀY]=Dạng_xem_theo_Lịch_biểu_Lớp[[#Headers],[THỨ SÁU]])*(ROUNDDOWN($B27,10)>=ROUNDDOWN(Danh_sách_lớp_học[THỜI GIAN BẮT ĐẦU],10))*($B27<=Danh_sách_lớp_học[THỜI GIAN KẾT THÚC]),Danh_sách_lớp_học[DUY NHẤT]),Danh_sách_lớp_học[DUY NHẤT],0),2),0)","v":0},{"$f":"IFERROR(INDEX(Danh_sách_lớp_học[],MATCH(SUMPRODUCT((Danh_sách_lớp_học[NGÀY]=Dạng_xem_theo_Lịch_biểu_Lớp[[#Headers],[THỨ BẢY]])*(ROUNDDOWN($B27,10)>=ROUNDDOWN(Danh_sách_lớp_học[THỜI GIAN BẮT ĐẦU],10))*($B27<=Danh_sách_lớp_học[THỜI GIAN KẾT THÚC]),Danh_sách_lớp_học[DUY NHẤT]),Danh_sách_lớp_học[DUY NHẤT],0),2),0)","v":0}]
[null,"14:00:00",{"$f":"IFERROR(INDEX(Danh_sách_lớp_học[],MATCH(SUMPRODUCT((Danh_sách_lớp_học[NGÀY]=Dạng_xem_theo_Lịch_biểu_Lớp[[#Headers],[CHỦ NHẬT]])*(ROUNDDOWN($B28,10)>=ROUNDDOWN(Danh_sách_lớp_học[THỜI GIAN BẮT ĐẦU],10))*($B28<=Danh_sách_lớp_học[THỜI GIAN KẾT THÚC]),Danh_sách_lớp_học[DUY NHẤT]),Danh_sách_lớp_học[DUY NHẤT],0),2),0)","v":0},{"$f":"IFERROR(INDEX(Danh_sách_lớp_học[],MATCH(SUMPRODUCT((Danh_sách_lớp_học[NGÀY]=Dạng_xem_theo_Lịch_biểu_Lớp[[#Headers],[THỨ HAI]])*(ROUNDDOWN($B28,10)>=ROUNDDOWN(Danh_sách_lớp_học[THỜI GIAN BẮT ĐẦU],10))*($B28<=Danh_sách_lớp_học[THỜI GIAN KẾT THÚC]),Danh_sách_lớp_học[DUY NHẤT]),Danh_sách_lớp_học[DUY NHẤT],0),2),0)","v":"WR-121"},{"$f":"IFERROR(INDEX(Danh_sách_lớp_học[],MATCH(SUMPRODUCT((Danh_sách_lớp_học[NGÀY]=Dạng_xem_theo_Lịch_biểu_Lớp[[#Headers],[THỨ BA]])*(ROUNDDOWN($B28,10)>=ROUNDDOWN(Danh_sách_lớp_học[THỜI GIAN BẮT ĐẦU],10))*($B28<=Danh_sách_lớp_học[THỜI GIAN KẾT THÚC]),Danh_sách_lớp_học[DUY NHẤT]),Danh_sách_lớp_học[DUY NHẤT],0),2),0)","v":0},{"$f":"IFERROR(INDEX(Danh_sách_lớp_học[],MATCH(SUMPRODUCT((Danh_sách_lớp_học[NGÀY]=Dạng_xem_theo_Lịch_biểu_Lớp[[#Headers],[THỨ TƯ]])*(ROUNDDOWN($B28,10)>=ROUNDDOWN(Danh_sách_lớp_học[THỜI GIAN BẮT ĐẦU],10))*($B28<=Danh_sách_lớp_học[THỜI GIAN KẾT THÚC]),Danh_sách_lớp_học[DUY NHẤT]),Danh_sách_lớp_học[DUY NHẤT],0),2),0)","v":"WR-121"},{"$f":"IFERROR(INDEX(Danh_sách_lớp_học[],MATCH(SUMPRODUCT((Danh_sách_lớp_học[NGÀY]=Dạng_xem_theo_Lịch_biểu_Lớp[[#Headers],[THỨ NĂM]])*(ROUNDDOWN($B28,10)>=ROUNDDOWN(Danh_sách_lớp_học[THỜI GIAN BẮT ĐẦU],10))*($B28<=Danh_sách_lớp_học[THỜI GIAN KẾT THÚC]),Danh_sách_lớp_học[DUY NHẤT]),Danh_sách_lớp_học[DUY NHẤT],0),2),0)","v":0},{"$f":"IFERROR(INDEX(Danh_sách_lớp_học[],MATCH(SUMPRODUCT((Danh_sách_lớp_học[NGÀY]=Dạng_xem_theo_Lịch_biểu_Lớp[[#Headers],[THỨ SÁU]])*(ROUNDDOWN($B28,10)>=ROUNDDOWN(Danh_sách_lớp_học[THỜI GIAN BẮT ĐẦU],10))*($B28<=Danh_sách_lớp_học[THỜI GIAN KẾT THÚC]),Danh_sách_lớp_học[DUY NHẤT]),Danh_sách_lớp_học[DUY NHẤT],0),2),0)","v":0},{"$f":"IFERROR(INDEX(Danh_sách_lớp_học[],MATCH(SUMPRODUCT((Danh_sách_lớp_học[NGÀY]=Dạng_xem_theo_Lịch_biểu_Lớp[[#Headers],[THỨ BẢY]])*(ROUNDDOWN($B28,10)>=ROUNDDOWN(Danh_sách_lớp_học[THỜI GIAN BẮT ĐẦU],10))*($B28<=Danh_sách_lớp_học[THỜI GIAN KẾT THÚC]),Danh_sách_lớp_học[DUY NHẤT]),Danh_sách_lớp_học[DUY NHẤT],0),2),0)","v":0}]
[null,"14:15:00",{"$f":"IFERROR(INDEX(Danh_sách_lớp_học[],MATCH(SUMPRODUCT((Danh_sách_lớp_học[NGÀY]=Dạng_xem_theo_Lịch_biểu_Lớp[[#Headers],[CHỦ NHẬT]])*(ROUNDDOWN($B29,10)>=ROUNDDOWN(Danh_sách_lớp_học[THỜI GIAN BẮT ĐẦU],10))*($B29<=Danh_sách_lớp_học[THỜI GIAN KẾT THÚC]),Danh_sách_lớp_học[DUY NHẤT]),Danh_sách_lớp_học[DUY NHẤT],0),2),0)","v":0},{"$f":"IFERROR(INDEX(Danh_sách_lớp_học[],MATCH(SUMPRODUCT((Danh_sách_lớp_học[NGÀY]=Dạng_xem_theo_Lịch_biểu_Lớp[[#Headers],[THỨ HAI]])*(ROUNDDOWN($B29,10)>=ROUNDDOWN(Danh_sách_lớp_học[THỜI GIAN BẮT ĐẦU],10))*($B29<=Danh_sách_lớp_học[THỜI GIAN KẾT THÚC]),Danh_sách_lớp_học[DUY NHẤT]),Danh_sách_lớp_học[DUY NHẤT],0),2),0)","v":0},{"$f":"IFERROR(INDEX(Danh_sách_lớp_học[],MATCH(SUMPRODUCT((Danh_sách_lớp_học[NGÀY]=Dạng_xem_theo_Lịch_biểu_Lớp[[#Headers],[THỨ BA]])*(ROUNDDOWN($B29,10)>=ROUNDDOWN(Danh_sách_lớp_học[THỜI GIAN BẮT ĐẦU],10))*($B29<=Danh_sách_lớp_học[THỜI GIAN KẾT THÚC]),Danh_sách_lớp_học[DUY NHẤT]),Danh_sách_lớp_học[DUY NHẤT],0),2),0)","v":0},{"$f":"IFERROR(INDEX(Danh_sách_lớp_học[],MATCH(SUMPRODUCT((Danh_sách_lớp_học[NGÀY]=Dạng_xem_theo_Lịch_biểu_Lớp[[#Headers],[THỨ TƯ]])*(ROUNDDOWN($B29,10)>=ROUNDDOWN(Danh_sách_lớp_học[THỜI GIAN BẮT ĐẦU],10))*($B29<=Danh_sách_lớp_học[THỜI GIAN KẾT THÚC]),Danh_sách_lớp_học[DUY NHẤT]),Danh_sách_lớp_học[DUY NHẤT],0),2),0)","v":0},{"$f":"IFERROR(INDEX(Danh_sách_lớp_học[],MATCH(SUMPRODUCT((Danh_sách_lớp_học[NGÀY]=Dạng_xem_theo_Lịch_biểu_Lớp[[#Headers],[THỨ NĂM]])*(ROUNDDOWN($B29,10)>=ROUNDDOWN(Danh_sách_lớp_học[THỜI GIAN BẮT ĐẦU],10))*($B29<=Danh_sách_lớp_học[THỜI GIAN KẾT THÚC]),Danh_sách_lớp_học[DUY NHẤT]),Danh_sách_lớp_học[DUY NHẤT],0),2),0)","v":0},{"$f":"IFERROR(INDEX(Danh_sách_lớp_học[],MATCH(SUMPRODUCT((Danh_sách_lớp_học[NGÀY]=Dạng_xem_theo_Lịch_biểu_Lớp[[#Headers],[THỨ SÁU]])*(ROUNDDOWN($B29,10)>=ROUNDDOWN(Danh_sách_lớp_học[THỜI GIAN BẮT ĐẦU],10))*($B29<=Danh_sách_lớp_học[THỜI GIAN KẾT THÚC]),Danh_sách_lớp_học[DUY NHẤT]),Danh_sách_lớp_học[DUY NHẤT],0),2),0)","v":0},{"$f":"IFERROR(INDEX(Danh_sách_lớp_học[],MATCH(SUMPRODUCT((Danh_sách_lớp_học[NGÀY]=Dạng_xem_theo_Lịch_biểu_Lớp[[#Headers],[THỨ BẢY]])*(ROUNDDOWN($B29,10)>=ROUNDDOWN(Danh_sách_lớp_học[THỜI GIAN BẮT ĐẦU],10))*($B29<=Danh_sách_lớp_học[THỜI GIAN KẾT THÚC]),Danh_sách_lớp_học[DUY NHẤT]),Danh_sách_lớp_học[DUY NHẤT],0),2),0)","v":0}]
[null,"14:30:00",{"$f":"IFERROR(INDEX(Danh_sách_lớp_học[],MATCH(SUMPRODUCT((Danh_sách_lớp_học[NGÀY]=Dạng_xem_theo_Lịch_biểu_Lớp[[#Headers],[CHỦ NHẬT]])*(ROUNDDOWN($B30,10)>=ROUNDDOWN(Danh_sách_lớp_học[THỜI GIAN BẮT ĐẦU],10))*($B30<=Danh_sách_lớp_học[THỜI GIAN KẾT THÚC]),Danh_sách_lớp_học[DUY NHẤT]),Danh_sách_lớp_học[DUY NHẤT],0),2),0)","v":0},{"$f":"IFERROR(INDEX(Danh_sách_lớp_học[],MATCH(SUMPRODUCT((Danh_sách_lớp_học[NGÀY]=Dạng_xem_theo_Lịch_biểu_Lớp[[#Headers],[THỨ HAI]])*(ROUNDDOWN($B30,10)>=ROUNDDOWN(Danh_sách_lớp_học[THỜI GIAN BẮT ĐẦU],10))*($B30<=Danh_sách_lớp_học[THỜI GIAN KẾT THÚC]),Danh_sách_lớp_học[DUY NHẤT]),Danh_sách_lớp_học[DUY NHẤT],0),2),0)","v":0},{"$f":"IFERROR(INDEX(Danh_sách_lớp_học[],MATCH(SUMPRODUCT((Danh_sách_lớp_học[NGÀY]=Dạng_xem_theo_Lịch_biểu_Lớp[[#Headers],[THỨ BA]])*(ROUNDDOWN($B30,10)>=ROUNDDOWN(Danh_sách_lớp_học[THỜI GIAN BẮT ĐẦU],10))*($B30<=Danh_sách_lớp_học[THỜI GIAN KẾT THÚC]),Danh_sách_lớp_học[DUY NHẤT]),Danh_sách_lớp_học[DUY NHẤT],0),2),0)","v":0},{"$f":"IFERROR(INDEX(Danh_sách_lớp_học[],MATCH(SUMPRODUCT((Danh_sách_lớp_học[NGÀY]=Dạng_xem_theo_Lịch_biểu_Lớp[[#Headers],[THỨ TƯ]])*(ROUNDDOWN($B30,10)>=ROUNDDOWN(Danh_sách_lớp_học[THỜI GIAN BẮT ĐẦU],10))*($B30<=Danh_sách_lớp_học[THỜI GIAN KẾT THÚC]),Danh_sách_lớp_học[DUY NHẤT]),Danh_sách_lớp_học[DUY NHẤT],0),2),0)","v":0},{"$f":"IFERROR(INDEX(Danh_sách_lớp_học[],MATCH(SUMPRODUCT((Danh_sách_lớp_học[NGÀY]=Dạng_xem_theo_Lịch_biểu_Lớp[[#Headers],[THỨ NĂM]])*(ROUNDDOWN($B30,10)>=ROUNDDOWN(Danh_sách_lớp_học[THỜI GIAN BẮT ĐẦU],10))*($B30<=Danh_sách_lớp_học[THỜI GIAN KẾT THÚC]),Danh_sách_lớp_học[DUY NHẤT]),Danh_sách_lớp_học[DUY NHẤT],0),2),0)","v":0},{"$f":"IFERROR(INDEX(Danh_sách_lớp_học[],MATCH(SUMPRODUCT((Danh_sách_lớp_học[NGÀY]=Dạng_xem_theo_Lịch_biểu_Lớp[[#Headers],[THỨ SÁU]])*(ROUNDDOWN($B30,10)>=ROUNDDOWN(Danh_sách_lớp_học[THỜI GIAN BẮT ĐẦU],10))*($B30<=Danh_sách_lớp_học[THỜI GIAN KẾT THÚC]),Danh_sách_lớp_học[DUY NHẤT]),Danh_sách_lớp_học[DUY NHẤT],0),2),0)","v":0},{"$f":"IFERROR(INDEX(Danh_sách_lớp_học[],MATCH(SUMPRODUCT((Danh_sách_lớp_học[NGÀY]=Dạng_xem_theo_Lịch_biểu_Lớp[[#Headers],[THỨ BẢY]])*(ROUNDDOWN($B30,10)>=ROUNDDOWN(Danh_sách_lớp_học[THỜI GIAN BẮT ĐẦU],10))*($B30<=Danh_sách_lớp_học[THỜI GIAN KẾT THÚC]),Danh_sách_lớp_học[DUY NHẤT]),Danh_sách_lớp_học[DUY NHẤT],0),2),0)","v":0}]
[null,"14:45:00",{"$f":"IFERROR(INDEX(Danh_sách_lớp_học[],MATCH(SUMPRODUCT((Danh_sách_lớp_học[NGÀY]=Dạng_xem_theo_Lịch_biểu_Lớp[[#Headers],[CHỦ NHẬT]])*(ROUNDDOWN($B31,10)>=ROUNDDOWN(Danh_sách_lớp_học[THỜI GIAN BẮT ĐẦU],10))*($B31<=Danh_sách_lớp_học[THỜI GIAN KẾT THÚC]),Danh_sách_lớp_học[DUY NHẤT]),Danh_sách_lớp_học[DUY NHẤT],0),2),0)","v":0},{"$f":"IFERROR(INDEX(Danh_sách_lớp_học[],MATCH(SUMPRODUCT((Danh_sách_lớp_học[NGÀY]=Dạng_xem_theo_Lịch_biểu_Lớp[[#Headers],[THỨ HAI]])*(ROUNDDOWN($B31,10)>=ROUNDDOWN(Danh_sách_lớp_học[THỜI GIAN BẮT ĐẦU],10))*($B31<=Danh_sách_lớp_học[THỜI GIAN KẾT THÚC]),Danh_sách_lớp_học[DUY NHẤT]),Danh_sách_lớp_học[DUY NHẤT],0),2),0)","v":0},{"$f":"IFERROR(INDEX(Danh_sách_lớp_học[],MATCH(SUMPRODUCT((Danh_sách_lớp_học[NGÀY]=Dạng_xem_theo_Lịch_biểu_Lớp[[#Headers],[THỨ BA]])*(ROUNDDOWN($B31,10)>=ROUNDDOWN(Danh_sách_lớp_học[THỜI GIAN BẮT ĐẦU],10))*($B31<=Danh_sách_lớp_học[THỜI GIAN KẾT THÚC]),Danh_sách_lớp_học[DUY NHẤT]),Danh_sách_lớp_học[DUY NHẤT],0),2),0)","v":0},{"$f":"IFERROR(INDEX(Danh_sách_lớp_học[],MATCH(SUMPRODUCT((Danh_sách_lớp_học[NGÀY]=Dạng_xem_theo_Lịch_biểu_Lớp[[#Headers],[THỨ TƯ]])*(ROUNDDOWN($B31,10)>=ROUNDDOWN(Danh_sách_lớp_học[THỜI GIAN BẮT ĐẦU],10))*($B31<=Danh_sách_lớp_học[THỜI GIAN KẾT THÚC]),Danh_sách_lớp_học[DUY NHẤT]),Danh_sách_lớp_học[DUY NHẤT],0),2),0)","v":0},{"$f":"IFERROR(INDEX(Danh_sách_lớp_học[],MATCH(SUMPRODUCT((Danh_sách_lớp_học[NGÀY]=Dạng_xem_theo_Lịch_biểu_Lớp[[#Headers],[THỨ NĂM]])*(ROUNDDOWN($B31,10)>=ROUNDDOWN(Danh_sách_lớp_học[THỜI GIAN BẮT ĐẦU],10))*($B31<=Danh_sách_lớp_học[THỜI GIAN KẾT THÚC]),Danh_sách_lớp_học[DUY NHẤT]),Danh_sách_lớp_học[DUY NHẤT],0),2),0)","v":0},{"$f":"IFERROR(INDEX(Danh_sách_lớp_học[],MATCH(SUMPRODUCT((Danh_sách_lớp_học[NGÀY]=Dạng_xem_theo_Lịch_biểu_Lớp[[#Headers],[THỨ SÁU]])*(ROUNDDOWN($B31,10)>=ROUNDDOWN(Danh_sách_lớp_học[THỜI GIAN BẮT ĐẦU],10))*($B31<=Danh_sách_lớp_học[THỜI GIAN KẾT THÚC]),Danh_sách_lớp_học[DUY NHẤT]),Danh_sách_lớp_học[DUY NHẤT],0),2),0)","v":0},{"$f":"IFERROR(INDEX(Danh_sách_lớp_học[],MATCH(SUMPRODUCT((Danh_sách_lớp_học[NGÀY]=Dạng_xem_theo_Lịch_biểu_Lớp[[#Headers],[THỨ BẢY]])*(ROUNDDOWN($B31,10)>=ROUNDDOWN(Danh_sách_lớp_học[THỜI GIAN BẮT ĐẦU],10))*($B31<=Danh_sách_lớp_học[THỜI GIAN KẾT THÚC]),Danh_sách_lớp_học[DUY NHẤT]),Danh_sách_lớp_học[DUY NHẤT],0),2),0)","v":0}]
[null,"15:00:00",{"$f":"IFERROR(INDEX(Danh_sách_lớp_học[],MATCH(SUMPRODUCT((Danh_sách_lớp_học[NGÀY]=Dạng_xem_theo_Lịch_biểu_Lớp[[#Headers],[CHỦ NHẬT]])*(ROUNDDOWN($B32,10)>=ROUNDDOWN(Danh_sách_lớp_học[THỜI GIAN BẮT ĐẦU],10))*($B32<=Danh_sách_lớp_học[THỜI GIAN KẾT THÚC]),Danh_sách_lớp_học[DUY NHẤT]),Danh_sách_lớp_học[DUY NHẤT],0),2),0)","v":0},{"$f":"IFERROR(INDEX(Danh_sách_lớp_học[],MATCH(SUMPRODUCT((Danh_sách_lớp_học[NGÀY]=Dạng_xem_theo_Lịch_biểu_Lớp[[#Headers],[THỨ HAI]])*(ROUNDDOWN($B32,10)>=ROUNDDOWN(Danh_sách_lớp_học[THỜI GIAN BẮT ĐẦU],10))*($B32<=Danh_sách_lớp_học[THỜI GIAN KẾT THÚC]),Danh_sách_lớp_học[DUY NHẤT]),Danh_sách_lớp_học[DUY NHẤT],0),2),0)","v":0},{"$f":"IFERROR(INDEX(Danh_sách_lớp_học[],MATCH(SUMPRODUCT((Danh_sách_lớp_học[NGÀY]=Dạng_xem_theo_Lịch_biểu_Lớp[[#Headers],[THỨ BA]])*(ROUNDDOWN($B32,10)>=ROUNDDOWN(Danh_sách_lớp_học[THỜI GIAN BẮT ĐẦU],10))*($B32<=Danh_sách_lớp_học[THỜI GIAN KẾT THÚC]),Danh_sách_lớp_học[DUY NHẤT]),Danh_sách_lớp_học[DUY NHẤT],0),2),0)","v":0},{"$f":"IFERROR(INDEX(Danh_sách_lớp_học[],MATCH(SUMPRODUCT((Danh_sách_lớp_học[NGÀY]=Dạng_xem_theo_Lịch_biểu_Lớp[[#Headers],[THỨ TƯ]])*(ROUNDDOWN($B32,10)>=ROUNDDOWN(Danh_sách_lớp_học[THỜI GIAN BẮT ĐẦU],10))*($B32<=Danh_sách_lớp_học[THỜI GIAN KẾT THÚC]),Danh_sách_lớp_học[DUY NHẤT]),Danh_sách_lớp_học[DUY NHẤT],0),2),0)","v":0},{"$f":"IFERROR(INDEX(Danh_sách_lớp_học[],MATCH(SUMPRODUCT((Danh_sách_lớp_học[NGÀY]=Dạng_xem_theo_Lịch_biểu_Lớp[[#Headers],[THỨ NĂM]])*(ROUNDDOWN($B32,10)>=ROUNDDOWN(Danh_sách_lớp_học[THỜI GIAN BẮT ĐẦU],10))*($B32<=Danh_sách_lớp_học[THỜI GIAN KẾT THÚC]),Danh_sách_lớp_học[DUY NHẤT]),Danh_sách_lớp_học[DUY NHẤT],0),2),0)","v":0},{"$f":"IFERROR(INDEX(Danh_sách_lớp_học[],MATCH(SUMPRODUCT((Danh_sách_lớp_học[NGÀY]=Dạng_xem_theo_Lịch_biểu_Lớp[[#Headers],[THỨ SÁU]])*(ROUNDDOWN($B32,10)>=ROUNDDOWN(Danh_sách_lớp_học[THỜI GIAN BẮT ĐẦU],10))*($B32<=Danh_sách_lớp_học[THỜI GIAN KẾT THÚC]),Danh_sách_lớp_học[DUY NHẤT]),Danh_sách_lớp_học[DUY NHẤT],0),2),0)","v":0},{"$f":"IFERROR(INDEX(Danh_sách_lớp_học[],MATCH(SUMPRODUCT((Danh_sách_lớp_học[NGÀY]=Dạng_xem_theo_Lịch_biểu_Lớp[[#Headers],[THỨ BẢY]])*(ROUNDDOWN($B32,10)>=ROUNDDOWN(Danh_sách_lớp_học[THỜI GIAN BẮT ĐẦU],10))*($B32<=Danh_sách_lớp_học[THỜI GIAN KẾT THÚC]),Danh_sách_lớp_học[DUY NHẤT]),Danh_sách_lớp_học[DUY NHẤT],0),2),0)","v":0}]
[null,"15:15:00",{"$f":"IFERROR(INDEX(Danh_sách_lớp_học[],MATCH(SUMPRODUCT((Danh_sách_lớp_học[NGÀY]=Dạng_xem_theo_Lịch_biểu_Lớp[[#Headers],[CHỦ NHẬT]])*(ROUNDDOWN($B33,10)>=ROUNDDOWN(Danh_sách_lớp_học[THỜI GIAN BẮT ĐẦU],10))*($B33<=Danh_sách_lớp_học[THỜI GIAN KẾT THÚC]),Danh_sách_lớp_học[DUY NHẤT]),Danh_sách_lớp_học[DUY NHẤT],0),2),0)","v":0},{"$f":"IFERROR(INDEX(Danh_sách_lớp_học[],MATCH(SUMPRODUCT((Danh_sách_lớp_học[NGÀY]=Dạng_xem_theo_Lịch_biểu_Lớp[[#Headers],[THỨ HAI]])*(ROUNDDOWN($B33,10)>=ROUNDDOWN(Danh_sách_lớp_học[THỜI GIAN BẮT ĐẦU],10))*($B33<=Danh_sách_lớp_học[THỜI GIAN KẾT THÚC]),Danh_sách_lớp_học[DUY NHẤT]),Danh_sách_lớp_học[DUY NHẤT],0),2),0)","v":0},{"$f":"IFERROR(INDEX(Danh_sách_lớp_học[],MATCH(SUMPRODUCT((Danh_sách_lớp_học[NGÀY]=Dạng_xem_theo_Lịch_biểu_Lớp[[#Headers],[THỨ BA]])*(ROUNDDOWN($B33,10)>=ROUNDDOWN(Danh_sách_lớp_học[THỜI GIAN BẮT ĐẦU],10))*($B33<=Danh_sách_lớp_học[THỜI GIAN KẾT THÚC]),Danh_sách_lớp_học[DUY NHẤT]),Danh_sách_lớp_học[DUY NHẤT],0),2),0)","v":0},{"$f":"IFERROR(INDEX(Danh_sách_lớp_học[],MATCH(SUMPRODUCT((Danh_sách_lớp_học[NGÀY]=Dạng_xem_theo_Lịch_biểu_Lớp[[#Headers],[THỨ TƯ]])*(ROUNDDOWN($B33,10)>=ROUNDDOWN(Danh_sách_lớp_học[THỜI GIAN BẮT ĐẦU],10))*($B33<=Danh_sách_lớp_học[THỜI GIAN KẾT THÚC]),Danh_sách_lớp_học[DUY NHẤT]),Danh_sách_lớp_học[DUY NHẤT],0),2),0)","v":0},{"$f":"IFERROR(INDEX(Danh_sách_lớp_học[],MATCH(SUMPRODUCT((Danh_sách_lớp_học[NGÀY]=Dạng_xem_theo_Lịch_biểu_Lớp[[#Headers],[THỨ NĂM]])*(ROUNDDOWN($B33,10)>=ROUNDDOWN(Danh_sách_lớp_học[THỜI GIAN BẮT ĐẦU],10))*($B33<=Danh_sách_lớp_học[THỜI GIAN KẾT THÚC]),Danh_sách_lớp_học[DUY NHẤT]),Danh_sách_lớp_học[DUY NHẤT],0),2),0)","v":0},{"$f":"IFERROR(INDEX(Danh_sách_lớp_học[],MATCH(SUMPRODUCT((Danh_sách_lớp_học[NGÀY]=Dạng_xem_theo_Lịch_biểu_Lớp[[#Headers],[THỨ SÁU]])*(ROUNDDOWN($B33,10)>=ROUNDDOWN(Danh_sách_lớp_học[THỜI GIAN BẮT ĐẦU],10))*($B33<=Danh_sách_lớp_học[THỜI GIAN KẾT THÚC]),Danh_sách_lớp_học[DUY NHẤT]),Danh_sách_lớp_học[DUY NHẤT],0),2),0)","v":0},{"$f":"IFERROR(INDEX(Danh_sách_lớp_học[],MATCH(SUMPRODUCT((Danh_sách_lớp_học[NGÀY]=Dạng_xem_theo_Lịch_biểu_Lớp[[#Headers],[THỨ BẢY]])*(ROUNDDOWN($B33,10)>=ROUNDDOWN(Danh_sách_lớp_học[THỜI GIAN BẮT ĐẦU],10))*($B33<=Danh_sách_lớp_học[THỜI GIAN KẾT THÚC]),Danh_sách_lớp_học[DUY NHẤT]),Danh_sách_lớp_học[DUY NHẤT],0),2),0)","v":0}]
[null,"15:30:00",{"$f":"IFERROR(INDEX(Danh_sách_lớp_học[],MATCH(SUMPRODUCT((Danh_sách_lớp_học[NGÀY]=Dạng_xem_theo_Lịch_biểu_Lớp[[#Headers],[CHỦ NHẬT]])*(ROUNDDOWN($B34,10)>=ROUNDDOWN(Danh_sách_lớp_học[THỜI GIAN BẮT ĐẦU],10))*($B34<=Danh_sách_lớp_học[THỜI GIAN KẾT THÚC]),Danh_sách_lớp_học[DUY NHẤT]),Danh_sách_lớp_học[DUY NHẤT],0),2),0)","v":0},{"$f":"IFERROR(INDEX(Danh_sách_lớp_học[],MATCH(SUMPRODUCT((Danh_sách_lớp_học[NGÀY]=Dạng_xem_theo_Lịch_biểu_Lớp[[#Headers],[THỨ HAI]])*(ROUNDDOWN($B34,10)>=ROUNDDOWN(Danh_sách_lớp_học[THỜI GIAN BẮT ĐẦU],10))*($B34<=Danh_sách_lớp_học[THỜI GIAN KẾT THÚC]),Danh_sách_lớp_học[DUY NHẤT]),Danh_sách_lớp_học[DUY NHẤT],0),2),0)","v":0},{"$f":"IFERROR(INDEX(Danh_sách_lớp_học[],MATCH(SUMPRODUCT((Danh_sách_lớp_học[NGÀY]=Dạng_xem_theo_Lịch_biểu_Lớp[[#Headers],[THỨ BA]])*(ROUNDDOWN($B34,10)>=ROUNDDOWN(Danh_sách_lớp_học[THỜI GIAN BẮT ĐẦU],10))*($B34<=Danh_sách_lớp_học[THỜI GIAN KẾT THÚC]),Danh_sách_lớp_học[DUY NHẤT]),Danh_sách_lớp_học[DUY NHẤT],0),2),0)","v":0},{"$f":"IFERROR(INDEX(Danh_sách_lớp_học[],MATCH(SUMPRODUCT((Danh_sách_lớp_học[NGÀY]=Dạng_xem_theo_Lịch_biểu_Lớp[[#Headers],[THỨ TƯ]])*(ROUNDDOWN($B34,10)>=ROUNDDOWN(Danh_sách_lớp_học[THỜI GIAN BẮT ĐẦU],10))*($B34<=Danh_sách_lớp_học[THỜI GIAN KẾT THÚC]),Danh_sách_lớp_học[DUY NHẤT]),Danh_sách_lớp_học[DUY NHẤT],0),2),0)","v":0},{"$f":"IFERROR(INDEX(Danh_sách_lớp_học[],MATCH(SUMPRODUCT((Danh_sách_lớp_học[NGÀY]=Dạng_xem_theo_Lịch_biểu_Lớp[[#Headers],[THỨ NĂM]])*(ROUNDDOWN($B34,10)>=ROUNDDOWN(Danh_sách_lớp_học[THỜI GIAN BẮT ĐẦU],10))*($B34<=Danh_sách_lớp_học[THỜI GIAN KẾT THÚC]),Danh_sách_lớp_học[DUY NHẤT]),Danh_sách_lớp_học[DUY NHẤT],0),2),0)","v":0},{"$f":"IFERROR(INDEX(Danh_sách_lớp_học[],MATCH(SUMPRODUCT((Danh_sách_lớp_học[NGÀY]=Dạng_xem_theo_Lịch_biểu_Lớp[[#Headers],[THỨ SÁU]])*(ROUNDDOWN($B34,10)>=ROUNDDOWN(Danh_sách_lớp_học[THỜI GIAN BẮT ĐẦU],10))*($B34<=Danh_sách_lớp_học[THỜI GIAN KẾT THÚC]),Danh_sách_lớp_học[DUY NHẤT]),Danh_sách_lớp_học[DUY NHẤT],0),2),0)","v":0},{"$f":"IFERROR(INDEX(Danh_sách_lớp_học[],MATCH(SUMPRODUCT((Danh_sách_lớp_học[NGÀY]=Dạng_xem_theo_Lịch_biểu_Lớp[[#Headers],[THỨ BẢY]])*(ROUNDDOWN($B34,10)>=ROUNDDOWN(Danh_sách_lớp_học[THỜI GIAN BẮT ĐẦU],10))*($B34<=Danh_sách_lớp_học[THỜI GIAN KẾT THÚC]),Danh_sách_lớp_học[DUY NHẤT]),Danh_sách_lớp_học[DUY NHẤT],0),2),0)","v":0}]
[null,"15:45:00",{"$f":"IFERROR(INDEX(Danh_sách_lớp_học[],MATCH(SUMPRODUCT((Danh_sách_lớp_học[NGÀY]=Dạng_xem_theo_Lịch_biểu_Lớp[[#Headers],[CHỦ NHẬT]])*(ROUNDDOWN($B35,10)>=ROUNDDOWN(Danh_sách_lớp_học[THỜI GIAN BẮT ĐẦU],10))*($B35<=Danh_sách_lớp_học[THỜI GIAN KẾT THÚC]),Danh_sách_lớp_học[DUY NHẤT]),Danh_sách_lớp_học[DUY NHẤT],0),2),0)","v":0},{"$f":"IFERROR(INDEX(Danh_sách_lớp_học[],MATCH(SUMPRODUCT((Danh_sách_lớp_học[NGÀY]=Dạng_xem_theo_Lịch_biểu_Lớp[[#Headers],[THỨ HAI]])*(ROUNDDOWN($B35,10)>=ROUNDDOWN(Danh_sách_lớp_học[THỜI GIAN BẮT ĐẦU],10))*($B35<=Danh_sách_lớp_học[THỜI GIAN KẾT THÚC]),Danh_sách_lớp_học[DUY NHẤT]),Danh_sách_lớp_học[DUY NHẤT],0),2),0)","v":0},{"$f":"IFERROR(INDEX(Danh_sách_lớp_học[],MATCH(SUMPRODUCT((Danh_sách_lớp_học[NGÀY]=Dạng_xem_theo_Lịch_biểu_Lớp[[#Headers],[THỨ BA]])*(ROUNDDOWN($B35,10)>=ROUNDDOWN(Danh_sách_lớp_học[THỜI GIAN BẮT ĐẦU],10))*($B35<=Danh_sách_lớp_học[THỜI GIAN KẾT THÚC]),Danh_sách_lớp_học[DUY NHẤT]),Danh_sách_lớp_học[DUY NHẤT],0),2),0)","v":0},{"$f":"IFERROR(INDEX(Danh_sách_lớp_học[],MATCH(SUMPRODUCT((Danh_sách_lớp_học[NGÀY]=Dạng_xem_theo_Lịch_biểu_Lớp[[#Headers],[THỨ TƯ]])*(ROUNDDOWN($B35,10)>=ROUNDDOWN(Danh_sách_lớp_học[THỜI GIAN BẮT ĐẦU],10))*($B35<=Danh_sách_lớp_học[THỜI GIAN KẾT THÚC]),Danh_sách_lớp_học[DUY NHẤT]),Danh_sách_lớp_học[DUY NHẤT],0),2),0)","v":0},{"$f":"IFERROR(INDEX(Danh_sách_lớp_học[],MATCH(SUMPRODUCT((Danh_sách_lớp_học[NGÀY]=Dạng_xem_theo_Lịch_biểu_Lớp[[#Headers],[THỨ NĂM]])*(ROUNDDOWN($B35,10)>=ROUNDDOWN(Danh_sách_lớp_học[THỜI GIAN BẮT ĐẦU],10))*($B35<=Danh_sách_lớp_học[THỜI GIAN KẾT THÚC]),Danh_sách_lớp_học[DUY NHẤT]),Danh_sách_lớp_học[DUY NHẤT],0),2),0)","v":0},{"$f":"IFERROR(INDEX(Danh_sách_lớp_học[],MATCH(SUMPRODUCT((Danh_sách_lớp_học[NGÀY]=Dạng_xem_theo_Lịch_biểu_Lớp[[#Headers],[THỨ SÁU]])*(ROUNDDOWN($B35,10)>=ROUNDDOWN(Danh_sách_lớp_học[THỜI GIAN BẮT ĐẦU],10))*($B35<=Danh_sách_lớp_học[THỜI GIAN KẾT THÚC]),Danh_sách_lớp_học[DUY NHẤT]),Danh_sách_lớp_học[DUY NHẤT],0),2),0)","v":0},{"$f":"IFERROR(INDEX(Danh_sách_lớp_học[],MATCH(SUMPRODUCT((Danh_sách_lớp_học[NGÀY]=Dạng_xem_theo_Lịch_biểu_Lớp[[#Headers],[THỨ BẢY]])*(ROUNDDOWN($B35,10)>=ROUNDDOWN(Danh_sách_lớp_học[THỜI GIAN BẮT ĐẦU],10))*($B35<=Danh_sách_lớp_học[THỜI GIAN KẾT THÚC]),Danh_sách_lớp_học[DUY NHẤT]),Danh_sách_lớp_học[DUY NHẤT],0),2),0)","v":0}]
[null,"16:00:00",{"$f":"IFERROR(INDEX(Danh_sách_lớp_học[],MATCH(SUMPRODUCT((Danh_sách_lớp_học[NGÀY]=Dạng_xem_theo_Lịch_biểu_Lớp[[#Headers],[CHỦ NHẬT]])*(ROUNDDOWN($B36,10)>=ROUNDDOWN(Danh_sách_lớp_học[THỜI GIAN BẮT ĐẦU],10))*($B36<=Danh_sách_lớp_học[THỜI GIAN KẾT THÚC]),Danh_sách_lớp_học[DUY NHẤT]),Danh_sách_lớp_học[DUY NHẤT],0),2),0)","v":0},{"$f":"IFERROR(INDEX(Danh_sách_lớp_học[],MATCH(SUMPRODUCT((Danh_sách_lớp_học[NGÀY]=Dạng_xem_theo_Lịch_biểu_Lớp[[#Headers],[THỨ HAI]])*(ROUNDDOWN($B36,10)>=ROUNDDOWN(Danh_sách_lớp_học[THỜI GIAN BẮT ĐẦU],10))*($B36<=Danh_sách_lớp_học[THỜI GIAN KẾT THÚC]),Danh_sách_lớp_học[DUY NHẤT]),Danh_sách_lớp_học[DUY NHẤT],0),2),0)","v":"SP-111"},{"$f":"IFERROR(INDEX(Danh_sách_lớp_học[],MATCH(SUMPRODUCT((Danh_sách_lớp_học[NGÀY]=Dạng_xem_theo_Lịch_biểu_Lớp[[#Headers],[THỨ BA]])*(ROUNDDOWN($B36,10)>=ROUNDDOWN(Danh_sách_lớp_học[THỜI GIAN BẮT ĐẦU],10))*($B36<=Danh_sách_lớp_học[THỜI GIAN KẾT THÚC]),Danh_sách_lớp_học[DUY NHẤT]),Danh_sách_lớp_học[DUY NHẤT],0),2),0)","v":0},{"$f":"IFERROR(INDEX(Danh_sách_lớp_học[],MATCH(SUMPRODUCT((Danh_sách_lớp_học[NGÀY]=Dạng_xem_theo_Lịch_biểu_Lớp[[#Headers],[THỨ TƯ]])*(ROUNDDOWN($B36,10)>=ROUNDDOWN(Danh_sách_lớp_học[THỜI GIAN BẮT ĐẦU],10))*($B36<=Danh_sách_lớp_học[THỜI GIAN KẾT THÚC]),Danh_sách_lớp_học[DUY NHẤT]),Danh_sách_lớp_học[DUY NHẤT],0),2),0)","v":0},{"$f":"IFERROR(INDEX(Danh_sách_lớp_học[],MATCH(SUMPRODUCT((Danh_sách_lớp_học[NGÀY]=Dạng_xem_theo_Lịch_biểu_Lớp[[#Headers],[THỨ NĂM]])*(ROUNDDOWN($B36,10)>=ROUNDDOWN(Danh_sách_lớp_học[THỜI GIAN BẮT ĐẦU],10))*($B36<=Danh_sách_lớp_học[THỜI GIAN KẾT THÚC]),Danh_sách_lớp_học[DUY NHẤT]),Danh_sách_lớp_học[DUY NHẤT],0),2),0)","v":0},{"$f":"IFERROR(INDEX(Danh_sách_lớp_học[],MATCH(SUMPRODUCT((Danh_sách_lớp_học[NGÀY]=Dạng_xem_theo_Lịch_biểu_Lớp[[#Headers],[THỨ SÁU]])*(ROUNDDOWN($B36,10)>=ROUNDDOWN(Danh_sách_lớp_học[THỜI GIAN BẮT ĐẦU],10))*($B36<=Danh_sách_lớp_học[THỜI GIAN KẾT THÚC]),Danh_sách_lớp_học[DUY NHẤT]),Danh_sách_lớp_học[DUY NHẤT],0),2),0)","v":0},{"$f":"IFERROR(INDEX(Danh_sách_lớp_học[],MATCH(SUMPRODUCT((Danh_sách_lớp_học[NGÀY]=Dạng_xem_theo_Lịch_biểu_Lớp[[#Headers],[THỨ BẢY]])*(ROUNDDOWN($B36,10)>=ROUNDDOWN(Danh_sách_lớp_học[THỜI GIAN BẮT ĐẦU],10))*($B36<=Danh_sách_lớp_học[THỜI GIAN KẾT THÚC]),Danh_sách_lớp_học[DUY NHẤT]),Danh_sách_lớp_học[DUY NHẤT],0),2),0)","v":0}]
[null,{"$f":"B36+TăngDần","v":"16:15:00"},{"$f":"IFERROR(INDEX(Danh_sách_lớp_học[],MATCH(SUMPRODUCT((Danh_sách_lớp_học[NGÀY]=Dạng_xem_theo_Lịch_biểu_Lớp[[#Headers],[CHỦ NHẬT]])*(ROUNDDOWN($B37,10)>=ROUNDDOWN(Danh_sách_lớp_học[THỜI GIAN BẮT ĐẦU],10))*($B37<=Danh_sách_lớp_học[THỜI GIAN KẾT THÚC]),Danh_sách_lớp_học[DUY NHẤT]),Danh_sách_lớp_học[DUY NHẤT],0),2),0)","v":0},{"$f":"IFERROR(INDEX(Danh_sách_lớp_học[],MATCH(SUMPRODUCT((Danh_sách_lớp_học[NGÀY]=Dạng_xem_theo_Lịch_biểu_Lớp[[#Headers],[THỨ HAI]])*(ROUNDDOWN($B37,10)>=ROUNDDOWN(Danh_sách_lớp_học[THỜI GIAN BẮT ĐẦU],10))*($B37<=Danh_sách_lớp_học[THỜI GIAN KẾT THÚC]),Danh_sách_lớp_học[DUY NHẤT]),Danh_sách_lớp_học[DUY NHẤT],0),2),0)","v":"SP-111"},{"$f":"IFERROR(INDEX(Danh_sách_lớp_học[],MATCH(SUMPRODUCT((Danh_sách_lớp_học[NGÀY]=Dạng_xem_theo_Lịch_biểu_Lớp[[#Headers],[THỨ BA]])*(ROUNDDOWN($B37,10)>=ROUNDDOWN(Danh_sách_lớp_học[THỜI GIAN BẮT ĐẦU],10))*($B37<=Danh_sách_lớp_học[THỜI GIAN KẾT THÚC]),Danh_sách_lớp_học[DUY NHẤT]),Danh_sách_lớp_học[DUY NHẤT],0),2),0)","v":0},{"$f":"IFERROR(INDEX(Danh_sách_lớp_học[],MATCH(SUMPRODUCT((Danh_sách_lớp_học[NGÀY]=Dạng_xem_theo_Lịch_biểu_Lớp[[#Headers],[THỨ TƯ]])*(ROUNDDOWN($B37,10)>=ROUNDDOWN(Danh_sách_lớp_học[THỜI GIAN BẮT ĐẦU],10))*($B37<=Danh_sách_lớp_học[THỜI GIAN KẾT THÚC]),Danh_sách_lớp_học[DUY NHẤT]),Danh_sách_lớp_học[DUY NHẤT],0),2),0)","v":0},{"$f":"IFERROR(INDEX(Danh_sách_lớp_học[],MATCH(SUMPRODUCT((Danh_sách_lớp_học[NGÀY]=Dạng_xem_theo_Lịch_biểu_Lớp[[#Headers],[THỨ NĂM]])*(ROUNDDOWN($B37,10)>=ROUNDDOWN(Danh_sách_lớp_học[THỜI GIAN BẮT ĐẦU],10))*($B37<=Danh_sách_lớp_học[THỜI GIAN KẾT THÚC]),Danh_sách_lớp_học[DUY NHẤT]),Danh_sách_lớp_học[DUY NHẤT],0),2),0)","v":0},{"$f":"IFERROR(INDEX(Danh_sách_lớp_học[],MATCH(SUMPRODUCT((Danh_sách_lớp_học[NGÀY]=Dạng_xem_theo_Lịch_biểu_Lớp[[#Headers],[THỨ SÁU]])*(ROUNDDOWN($B37,10)>=ROUNDDOWN(Danh_sách_lớp_học[THỜI GIAN BẮT ĐẦU],10))*($B37<=Danh_sách_lớp_học[THỜI GIAN KẾT THÚC]),Danh_sách_lớp_học[DUY NHẤT]),Danh_sách_lớp_học[DUY NHẤT],0),2),0)","v":0},{"$f":"IFERROR(INDEX(Danh_sách_lớp_học[],MATCH(SUMPRODUCT((Danh_sách_lớp_học[NGÀY]=Dạng_xem_theo_Lịch_biểu_Lớp[[#Headers],[THỨ BẢY]])*(ROUNDDOWN($B37,10)>=ROUNDDOWN(Danh_sách_lớp_học[THỜI GIAN BẮT ĐẦU],10))*($B37<=Danh_sách_lớp_học[THỜI GIAN KẾT THÚC]),Danh_sách_lớp_học[DUY NHẤT]),Danh_sách_lớp_học[DUY NHẤT],0),2),0)","v":0}]
[null,"16:30:00",{"$f":"IFERROR(INDEX(Danh_sách_lớp_học[],MATCH(SUMPRODUCT((Danh_sách_lớp_học[NGÀY]=Dạng_xem_theo_Lịch_biểu_Lớp[[#Headers],[CHỦ NHẬT]])*(ROUNDDOWN($B38,10)>=ROUNDDOWN(Danh_sách_lớp_học[THỜI GIAN BẮT ĐẦU],10))*($B38<=Danh_sách_lớp_học[THỜI GIAN KẾT THÚC]),Danh_sách_lớp_học[DUY NHẤT]),Danh_sách_lớp_học[DUY NHẤT],0),2),0)","v":0},{"$f":"IFERROR(INDEX(Danh_sách_lớp_học[],MATCH(SUMPRODUCT((Danh_sách_lớp_học[NGÀY]=Dạng_xem_theo_Lịch_biểu_Lớp[[#Headers],[THỨ HAI]])*(ROUNDDOWN($B38,10)>=ROUNDDOWN(Danh_sách_lớp_học[THỜI GIAN BẮT ĐẦU],10))*($B38<=Danh_sách_lớp_học[THỜI GIAN KẾT THÚC]),Danh_sách_lớp_học[DUY NHẤT]),Danh_sách_lớp_học[DUY NHẤT],0),2),0)","v":"SP-111"},{"$f":"IFERROR(INDEX(Danh_sách_lớp_học[],MATCH(SUMPRODUCT((Danh_sách_lớp_học[NGÀY]=Dạng_xem_theo_Lịch_biểu_Lớp[[#Headers],[THỨ BA]])*(ROUNDDOWN($B38,10)>=ROUNDDOWN(Danh_sách_lớp_học[THỜI GIAN BẮT ĐẦU],10))*($B38<=Danh_sách_lớp_học[THỜI GIAN KẾT THÚC]),Danh_sách_lớp_học[DUY NHẤT]),Danh_sách_lớp_học[DUY NHẤT],0),2),0)","v":0},{"$f":"IFERROR(INDEX(Danh_sách_lớp_học[],MATCH(SUMPRODUCT((Danh_sách_lớp_học[NGÀY]=Dạng_xem_theo_Lịch_biểu_Lớp[[#Headers],[THỨ TƯ]])*(ROUNDDOWN($B38,10)>=ROUNDDOWN(Danh_sách_lớp_học[THỜI GIAN BẮT ĐẦU],10))*($B38<=Danh_sách_lớp_học[THỜI GIAN KẾT THÚC]),Danh_sách_lớp_học[DUY NHẤT]),Danh_sách_lớp_học[DUY NHẤT],0),2),0)","v":0},{"$f":"IFERROR(INDEX(Danh_sách_lớp_học[],MATCH(SUMPRODUCT((Danh_sách_lớp_học[NGÀY]=Dạng_xem_theo_Lịch_biểu_Lớp[[#Headers],[THỨ NĂM]])*(ROUNDDOWN($B38,10)>=ROUNDDOWN(Danh_sách_lớp_học[THỜI GIAN BẮT ĐẦU],10))*($B38<=Danh_sách_lớp_học[THỜI GIAN KẾT THÚC]),Danh_sách_lớp_học[DUY NHẤT]),Danh_sách_lớp_học[DUY NHẤT],0),2),0)","v":0},{"$f":"IFERROR(INDEX(Danh_sách_lớp_học[],MATCH(SUMPRODUCT((Danh_sách_lớp_học[NGÀY]=Dạng_xem_theo_Lịch_biểu_Lớp[[#Headers],[THỨ SÁU]])*(ROUNDDOWN($B38,10)>=ROUNDDOWN(Danh_sách_lớp_học[THỜI GIAN BẮT ĐẦU],10))*($B38<=Danh_sách_lớp_học[THỜI GIAN KẾT THÚC]),Danh_sách_lớp_học[DUY NHẤT]),Danh_sách_lớp_học[DUY NHẤT],0),2),0)","v":0},{"$f":"IFERROR(INDEX(Danh_sách_lớp_học[],MATCH(SUMPRODUCT((Danh_sách_lớp_học[NGÀY]=Dạng_xem_theo_Lịch_biểu_Lớp[[#Headers],[THỨ BẢY]])*(ROUNDDOWN($B38,10)>=ROUNDDOWN(Danh_sách_lớp_học[THỜI GIAN BẮT ĐẦU],10))*($B38<=Danh_sách_lớp_học[THỜI GIAN KẾT THÚC]),Danh_sách_lớp_học[DUY NHẤT]),Danh_sách_lớp_học[DUY NHẤT],0),2),0)","v":0}]
[null,"16:45:00",{"$f":"IFERROR(INDEX(Danh_sách_lớp_học[],MATCH(SUMPRODUCT((Danh_sách_lớp_học[NGÀY]=Dạng_xem_theo_Lịch_biểu_Lớp[[#Headers],[CHỦ NHẬT]])*(ROUNDDOWN($B39,10)>=ROUNDDOWN(Danh_sách_lớp_học[THỜI GIAN BẮT ĐẦU],10))*($B39<=Danh_sách_lớp_học[THỜI GIAN KẾT THÚC]),Danh_sách_lớp_học[DUY NHẤT]),Danh_sách_lớp_học[DUY NHẤT],0),2),0)","v":0},{"$f":"IFERROR(INDEX(Danh_sách_lớp_học[],MATCH(SUMPRODUCT((Danh_sách_lớp_học[NGÀY]=Dạng_xem_theo_Lịch_biểu_Lớp[[#Headers],[THỨ HAI]])*(ROUNDDOWN($B39,10)>=ROUNDDOWN(Danh_sách_lớp_học[THỜI GIAN BẮT ĐẦU],10))*($B39<=Danh_sách_lớp_học[THỜI GIAN KẾT THÚC]),Danh_sách_lớp_học[DUY NHẤT]),Danh_sách_lớp_học[DUY NHẤT],0),2),0)","v":"SP-111"},{"$f":"IFERROR(INDEX(Danh_sách_lớp_học[],MATCH(SUMPRODUCT((Danh_sách_lớp_học[NGÀY]=Dạng_xem_theo_Lịch_biểu_Lớp[[#Headers],[THỨ BA]])*(ROUNDDOWN($B39,10)>=ROUNDDOWN(Danh_sách_lớp_học[THỜI GIAN BẮT ĐẦU],10))*($B39<=Danh_sách_lớp_học[THỜI GIAN KẾT THÚC]),Danh_sách_lớp_học[DUY NHẤT]),Danh_sách_lớp_học[DUY NHẤT],0),2),0)","v":0},{"$f":"IFERROR(INDEX(Danh_sách_lớp_học[],MATCH(SUMPRODUCT((Danh_sách_lớp_học[NGÀY]=Dạng_xem_theo_Lịch_biểu_Lớp[[#Headers],[THỨ TƯ]])*(ROUNDDOWN($B39,10)>=ROUNDDOWN(Danh_sách_lớp_học[THỜI GIAN BẮT ĐẦU],10))*($B39<=Danh_sách_lớp_học[THỜI GIAN KẾT THÚC]),Danh_sách_lớp_học[DUY NHẤT]),Danh_sách_lớp_học[DUY NHẤT],0),2),0)","v":0},{"$f":"IFERROR(INDEX(Danh_sách_lớp_học[],MATCH(SUMPRODUCT((Danh_sách_lớp_học[NGÀY]=Dạng_xem_theo_Lịch_biểu_Lớp[[#Headers],[THỨ NĂM]])*(ROUNDDOWN($B39,10)>=ROUNDDOWN(Danh_sách_lớp_học[THỜI GIAN BẮT ĐẦU],10))*($B39<=Danh_sách_lớp_học[THỜI GIAN KẾT THÚC]),Danh_sách_lớp_học[DUY NHẤT]),Danh_sách_lớp_học[DUY NHẤT],0),2),0)","v":0},{"$f":"IFERROR(INDEX(Danh_sách_lớp_học[],MATCH(SUMPRODUCT((Danh_sách_lớp_học[NGÀY]=Dạng_xem_theo_Lịch_biểu_Lớp[[#Headers],[THỨ SÁU]])*(ROUNDDOWN($B39,10)>=ROUNDDOWN(Danh_sách_lớp_học[THỜI GIAN BẮT ĐẦU],10))*($B39<=Danh_sách_lớp_học[THỜI GIAN KẾT THÚC]),Danh_sách_lớp_học[DUY NHẤT]),Danh_sách_lớp_học[DUY NHẤT],0),2),0)","v":0},{"$f":"IFERROR(INDEX(Danh_sách_lớp_học[],MATCH(SUMPRODUCT((Danh_sách_lớp_học[NGÀY]=Dạng_xem_theo_Lịch_biểu_Lớp[[#Headers],[THỨ BẢY]])*(ROUNDDOWN($B39,10)>=ROUNDDOWN(Danh_sách_lớp_học[THỜI GIAN BẮT ĐẦU],10))*($B39<=Danh_sách_lớp_học[THỜI GIAN KẾT THÚC]),Danh_sách_lớp_học[DUY NHẤT]),Danh_sách_lớp_học[DUY NHẤT],0),2),0)","v":0}]
[null,"17:00:00",{"$f":"IFERROR(INDEX(Danh_sách_lớp_học[],MATCH(SUMPRODUCT((Danh_sách_lớp_học[NGÀY]=Dạng_xem_theo_Lịch_biểu_Lớp[[#Headers],[CHỦ NHẬT]])*(ROUNDDOWN($B40,10)>=ROUNDDOWN(Danh_sách_lớp_học[THỜI GIAN BẮT ĐẦU],10))*($B40<=Danh_sách_lớp_học[THỜI GIAN KẾT THÚC]),Danh_sách_lớp_học[DUY NHẤT]),Danh_sách_lớp_học[DUY NHẤT],0),2),0)","v":0},{"$f":"IFERROR(INDEX(Danh_sách_lớp_học[],MATCH(SUMPRODUCT((Danh_sách_lớp_học[NGÀY]=Dạng_xem_theo_Lịch_biểu_Lớp[[#Headers],[THỨ HAI]])*(ROUNDDOWN($B40,10)>=ROUNDDOWN(Danh_sách_lớp_học[THỜI GIAN BẮT ĐẦU],10))*($B40<=Danh_sách_lớp_học[THỜI GIAN KẾT THÚC]),Danh_sách_lớp_học[DUY NHẤT]),Danh_sách_lớp_học[DUY NHẤT],0),2),0)","v":"SP-111"},{"$f":"IFERROR(INDEX(Danh_sách_lớp_học[],MATCH(SUMPRODUCT((Danh_sách_lớp_học[NGÀY]=Dạng_xem_theo_Lịch_biểu_Lớp[[#Headers],[THỨ BA]])*(ROUNDDOWN($B40,10)>=ROUNDDOWN(Danh_sách_lớp_học[THỜI GIAN BẮT ĐẦU],10))*($B40<=Danh_sách_lớp_học[THỜI GIAN KẾT THÚC]),Danh_sách_lớp_học[DUY NHẤT]),Danh_sách_lớp_học[DUY NHẤT],0),2),0)","v":0},{"$f":"IFERROR(INDEX(Danh_sách_lớp_học[],MATCH(SUMPRODUCT((Danh_sách_lớp_học[NGÀY]=Dạng_xem_theo_Lịch_biểu_Lớp[[#Headers],[THỨ TƯ]])*(ROUNDDOWN($B40,10)>=ROUNDDOWN(Danh_sách_lớp_học[THỜI GIAN BẮT ĐẦU],10))*($B40<=Danh_sách_lớp_học[THỜI GIAN KẾT THÚC]),Danh_sách_lớp_học[DUY NHẤT]),Danh_sách_lớp_học[DUY NHẤT],0),2),0)","v":0},{"$f":"IFERROR(INDEX(Danh_sách_lớp_học[],MATCH(SUMPRODUCT((Danh_sách_lớp_học[NGÀY]=Dạng_xem_theo_Lịch_biểu_Lớp[[#Headers],[THỨ NĂM]])*(ROUNDDOWN($B40,10)>=ROUNDDOWN(Danh_sách_lớp_học[THỜI GIAN BẮT ĐẦU],10))*($B40<=Danh_sách_lớp_học[THỜI GIAN KẾT THÚC]),Danh_sách_lớp_học[DUY NHẤT]),Danh_sách_lớp_học[DUY NHẤT],0),2),0)","v":0},{"$f":"IFERROR(INDEX(Danh_sách_lớp_học[],MATCH(SUMPRODUCT((Danh_sách_lớp_học[NGÀY]=Dạng_xem_theo_Lịch_biểu_Lớp[[#Headers],[THỨ SÁU]])*(ROUNDDOWN($B40,10)>=ROUNDDOWN(Danh_sách_lớp_học[THỜI GIAN BẮT ĐẦU],10))*($B40<=Danh_sách_lớp_học[THỜI GIAN KẾT THÚC]),Danh_sách_lớp_học[DUY NHẤT]),Danh_sách_lớp_học[DUY NHẤT],0),2),0)","v":0},{"$f":"IFERROR(INDEX(Danh_sách_lớp_học[],MATCH(SUMPRODUCT((Danh_sách_lớp_học[NGÀY]=Dạng_xem_theo_Lịch_biểu_Lớp[[#Headers],[THỨ BẢY]])*(ROUNDDOWN($B40,10)>=ROUNDDOWN(Danh_sách_lớp_học[THỜI GIAN BẮT ĐẦU],10))*($B40<=Danh_sách_lớp_học[THỜI GIAN KẾT THÚC]),Danh_sách_lớp_học[DUY NHẤT]),Danh_sách_lớp_học[DUY NHẤT],0),2),0)","v":0}]
[null,"17:15:00",{"$f":"IFERROR(INDEX(Danh_sách_lớp_học[],MATCH(SUMPRODUCT((Danh_sách_lớp_học[NGÀY]=Dạng_xem_theo_Lịch_biểu_Lớp[[#Headers],[CHỦ NHẬT]])*(ROUNDDOWN($B41,10)>=ROUNDDOWN(Danh_sách_lớp_học[THỜI GIAN BẮT ĐẦU],10))*($B41<=Danh_sách_lớp_học[THỜI GIAN KẾT THÚC]),Danh_sách_lớp_học[DUY NHẤT]),Danh_sách_lớp_học[DUY NHẤT],0),2),0)","v":0},{"$f":"IFERROR(INDEX(Danh_sách_lớp_học[],MATCH(SUMPRODUCT((Danh_sách_lớp_học[NGÀY]=Dạng_xem_theo_Lịch_biểu_Lớp[[#Headers],[THỨ HAI]])*(ROUNDDOWN($B41,10)>=ROUNDDOWN(Danh_sách_lớp_học[THỜI GIAN BẮT ĐẦU],10))*($B41<=Danh_sách_lớp_học[THỜI GIAN KẾT THÚC]),Danh_sách_lớp_học[DUY NHẤT]),Danh_sách_lớp_học[DUY NHẤT],0),2),0)","v":0},{"$f":"IFERROR(INDEX(Danh_sách_lớp_học[],MATCH(SUMPRODUCT((Danh_sách_lớp_học[NGÀY]=Dạng_xem_theo_Lịch_biểu_Lớp[[#Headers],[THỨ BA]])*(ROUNDDOWN($B41,10)>=ROUNDDOWN(Danh_sách_lớp_học[THỜI GIAN BẮT ĐẦU],10))*($B41<=Danh_sách_lớp_học[THỜI GIAN KẾT THÚC]),Danh_sách_lớp_học[DUY NHẤT]),Danh_sách_lớp_học[DUY NHẤT],0),2),0)","v":0},{"$f":"IFERROR(INDEX(Danh_sách_lớp_học[],MATCH(SUMPRODUCT((Danh_sách_lớp_học[NGÀY]=Dạng_xem_theo_Lịch_biểu_Lớp[[#Headers],[THỨ TƯ]])*(ROUNDDOWN($B41,10)>=ROUNDDOWN(Danh_sách_lớp_học[THỜI GIAN BẮT ĐẦU],10))*($B41<=Danh_sách_lớp_học[THỜI GIAN KẾT THÚC]),Danh_sách_lớp_học[DUY NHẤT]),Danh_sách_lớp_học[DUY NHẤT],0),2),0)","v":0},{"$f":"IFERROR(INDEX(Danh_sách_lớp_học[],MATCH(SUMPRODUCT((Danh_sách_lớp_học[NGÀY]=Dạng_xem_theo_Lịch_biểu_Lớp[[#Headers],[THỨ NĂM]])*(ROUNDDOWN($B41,10)>=ROUNDDOWN(Danh_sách_lớp_học[THỜI GIAN BẮT ĐẦU],10))*($B41<=Danh_sách_lớp_học[THỜI GIAN KẾT THÚC]),Danh_sách_lớp_học[DUY NHẤT]),Danh_sách_lớp_học[DUY NHẤT],0),2),0)","v":0},{"$f":"IFERROR(INDEX(Danh_sách_lớp_học[],MATCH(SUMPRODUCT((Danh_sách_lớp_học[NGÀY]=Dạng_xem_theo_Lịch_biểu_Lớp[[#Headers],[THỨ SÁU]])*(ROUNDDOWN($B41,10)>=ROUNDDOWN(Danh_sách_lớp_học[THỜI GIAN BẮT ĐẦU],10))*($B41<=Danh_sách_lớp_học[THỜI GIAN KẾT THÚC]),Danh_sách_lớp_học[DUY NHẤT]),Danh_sách_lớp_học[DUY NHẤT],0),2),0)","v":0},{"$f":"IFERROR(INDEX(Danh_sách_lớp_học[],MATCH(SUMPRODUCT((Danh_sách_lớp_học[NGÀY]=Dạng_xem_theo_Lịch_biểu_Lớp[[#Headers],[THỨ BẢY]])*(ROUNDDOWN($B41,10)>=ROUNDDOWN(Danh_sách_lớp_học[THỜI GIAN BẮT ĐẦU],10))*($B41<=Danh_sách_lớp_học[THỜI GIAN KẾT THÚC]),Danh_sách_lớp_học[DUY NHẤT]),Danh_sách_lớp_học[DUY NHẤT],0),2),0)","v":0}]
[null,"17:30:00",{"$f":"IFERROR(INDEX(Danh_sách_lớp_học[],MATCH(SUMPRODUCT((Danh_sách_lớp_học[NGÀY]=Dạng_xem_theo_Lịch_biểu_Lớp[[#Headers],[CHỦ NHẬT]])*(ROUNDDOWN($B42,10)>=ROUNDDOWN(Danh_sách_lớp_học[THỜI GIAN BẮT ĐẦU],10))*($B42<=Danh_sách_lớp_học[THỜI GIAN KẾT THÚC]),Danh_sách_lớp_học[DUY NHẤT]),Danh_sách_lớp_học[DUY NHẤT],0),2),0)","v":0},{"$f":"IFERROR(INDEX(Danh_sách_lớp_học[],MATCH(SUMPRODUCT((Danh_sách_lớp_học[NGÀY]=Dạng_xem_theo_Lịch_biểu_Lớp[[#Headers],[THỨ HAI]])*(ROUNDDOWN($B42,10)>=ROUNDDOWN(Danh_sách_lớp_học[THỜI GIAN BẮT ĐẦU],10))*($B42<=Danh_sách_lớp_học[THỜI GIAN KẾT THÚC]),Danh_sách_lớp_học[DUY NHẤT]),Danh_sách_lớp_học[DUY NHẤT],0),2),0)","v":0},{"$f":"IFERROR(INDEX(Danh_sách_lớp_học[],MATCH(SUMPRODUCT((Danh_sách_lớp_học[NGÀY]=Dạng_xem_theo_Lịch_biểu_Lớp[[#Headers],[THỨ BA]])*(ROUNDDOWN($B42,10)>=ROUNDDOWN(Danh_sách_lớp_học[THỜI GIAN BẮT ĐẦU],10))*($B42<=Danh_sách_lớp_học[THỜI GIAN KẾT THÚC]),Danh_sách_lớp_học[DUY NHẤT]),Danh_sách_lớp_học[DUY NHẤT],0),2),0)","v":0},{"$f":"IFERROR(INDEX(Danh_sách_lớp_học[],MATCH(SUMPRODUCT((Danh_sách_lớp_học[NGÀY]=Dạng_xem_theo_Lịch_biểu_Lớp[[#Headers],[THỨ TƯ]])*(ROUNDDOWN($B42,10)>=ROUNDDOWN(Danh_sách_lớp_học[THỜI GIAN BẮT ĐẦU],10))*($B42<=Danh_sách_lớp_học[THỜI GIAN KẾT THÚC]),Danh_sách_lớp_học[DUY NHẤT]),Danh_sách_lớp_học[DUY NHẤT],0),2),0)","v":0},{"$f":"IFERROR(INDEX(Danh_sách_lớp_học[],MATCH(SUMPRODUCT((Danh_sách_lớp_học[NGÀY]=Dạng_xem_theo_Lịch_biểu_Lớp[[#Headers],[THỨ NĂM]])*(ROUNDDOWN($B42,10)>=ROUNDDOWN(Danh_sách_lớp_học[THỜI GIAN BẮT ĐẦU],10))*($B42<=Danh_sách_lớp_học[THỜI GIAN KẾT THÚC]),Danh_sách_lớp_học[DUY NHẤT]),Danh_sách_lớp_học[DUY NHẤT],0),2),0)","v":0},{"$f":"IFERROR(INDEX(Danh_sách_lớp_học[],MATCH(SUMPRODUCT((Danh_sách_lớp_học[NGÀY]=Dạng_xem_theo_Lịch_biểu_Lớp[[#Headers],[THỨ SÁU]])*(ROUNDDOWN($B42,10)>=ROUNDDOWN(Danh_sách_lớp_học[THỜI GIAN BẮT ĐẦU],10))*($B42<=Danh_sách_lớp_học[THỜI GIAN KẾT THÚC]),Danh_sách_lớp_học[DUY NHẤT]),Danh_sách_lớp_học[DUY NHẤT],0),2),0)","v":0},{"$f":"IFERROR(INDEX(Danh_sách_lớp_học[],MATCH(SUMPRODUCT((Danh_sách_lớp_học[NGÀY]=Dạng_xem_theo_Lịch_biểu_Lớp[[#Headers],[THỨ BẢY]])*(ROUNDDOWN($B42,10)>=ROUNDDOWN(Danh_sách_lớp_học[THỜI GIAN BẮT ĐẦU],10))*($B42<=Danh_sách_lớp_học[THỜI GIAN KẾT THÚC]),Danh_sách_lớp_học[DUY NHẤT]),Danh_sách_lớp_học[DUY NHẤT],0),2),0)","v":0}]
[null,"17:45:00",{"$f":"IFERROR(INDEX(Danh_sách_lớp_học[],MATCH(SUMPRODUCT((Danh_sách_lớp_học[NGÀY]=Dạng_xem_theo_Lịch_biểu_Lớp[[#Headers],[CHỦ NHẬT]])*(ROUNDDOWN($B43,10)>=ROUNDDOWN(Danh_sách_lớp_học[THỜI GIAN BẮT ĐẦU],10))*($B43<=Danh_sách_lớp_học[THỜI GIAN KẾT THÚC]),Danh_sách_lớp_học[DUY NHẤT]),Danh_sách_lớp_học[DUY NHẤT],0),2),0)","v":0},{"$f":"IFERROR(INDEX(Danh_sách_lớp_học[],MATCH(SUMPRODUCT((Danh_sách_lớp_học[NGÀY]=Dạng_xem_theo_Lịch_biểu_Lớp[[#Headers],[THỨ HAI]])*(ROUNDDOWN($B43,10)>=ROUNDDOWN(Danh_sách_lớp_học[THỜI GIAN BẮT ĐẦU],10))*($B43<=Danh_sách_lớp_học[THỜI GIAN KẾT THÚC]),Danh_sách_lớp_học[DUY NHẤT]),Danh_sách_lớp_học[DUY NHẤT],0),2),0)","v":0},{"$f":"IFERROR(INDEX(Danh_sách_lớp_học[],MATCH(SUMPRODUCT((Danh_sách_lớp_học[NGÀY]=Dạng_xem_theo_Lịch_biểu_Lớp[[#Headers],[THỨ BA]])*(ROUNDDOWN($B43,10)>=ROUNDDOWN(Danh_sách_lớp_học[THỜI GIAN BẮT ĐẦU],10))*($B43<=Danh_sách_lớp_học[THỜI GIAN KẾT THÚC]),Danh_sách_lớp_học[DUY NHẤT]),Danh_sách_lớp_học[DUY NHẤT],0),2),0)","v":0},{"$f":"IFERROR(INDEX(Danh_sách_lớp_học[],MATCH(SUMPRODUCT((Danh_sách_lớp_học[NGÀY]=Dạng_xem_theo_Lịch_biểu_Lớp[[#Headers],[THỨ TƯ]])*(ROUNDDOWN($B43,10)>=ROUNDDOWN(Danh_sách_lớp_học[THỜI GIAN BẮT ĐẦU],10))*($B43<=Danh_sách_lớp_học[THỜI GIAN KẾT THÚC]),Danh_sách_lớp_học[DUY NHẤT]),Danh_sách_lớp_học[DUY NHẤT],0),2),0)","v":0},{"$f":"IFERROR(INDEX(Danh_sách_lớp_học[],MATCH(SUMPRODUCT((Danh_sách_lớp_học[NGÀY]=Dạng_xem_theo_Lịch_biểu_Lớp[[#Headers],[THỨ NĂM]])*(ROUNDDOWN($B43,10)>=ROUNDDOWN(Danh_sách_lớp_học[THỜI GIAN BẮT ĐẦU],10))*($B43<=Danh_sách_lớp_học[THỜI GIAN KẾT THÚC]),Danh_sách_lớp_học[DUY NHẤT]),Danh_sách_lớp_học[DUY NHẤT],0),2),0)","v":0},{"$f":"IFERROR(INDEX(Danh_sách_lớp_học[],MATCH(SUMPRODUCT((Danh_sách_lớp_học[NGÀY]=Dạng_xem_theo_Lịch_biểu_Lớp[[#Headers],[THỨ SÁU]])*(ROUNDDOWN($B43,10)>=ROUNDDOWN(Danh_sách_lớp_học[THỜI GIAN BẮT ĐẦU],10))*($B43<=Danh_sách_lớp_học[THỜI GIAN KẾT THÚC]),Danh_sách_lớp_học[DUY NHẤT]),Danh_sách_lớp_học[DUY NHẤT],0),2),0)","v":0},{"$f":"IFERROR(INDEX(Danh_sách_lớp_học[],MATCH(SUMPRODUCT((Danh_sách_lớp_học[NGÀY]=Dạng_xem_theo_Lịch_biểu_Lớp[[#Headers],[THỨ BẢY]])*(ROUNDDOWN($B43,10)>=ROUNDDOWN(Danh_sách_lớp_học[THỜI GIAN BẮT ĐẦU],10))*($B43<=Danh_sách_lớp_học[THỜI GIAN KẾT THÚC]),Danh_sách_lớp_học[DUY NHẤT]),Danh_sách_lớp_học[DUY NHẤT],0),2),0)","v":0}]
[null,"18:00:00",{"$f":"IFERROR(INDEX(Danh_sách_lớp_học[],MATCH(SUMPRODUCT((Danh_sách_lớp_học[NGÀY]=Dạng_xem_theo_Lịch_biểu_Lớp[[#Headers],[CHỦ NHẬT]])*(ROUNDDOWN($B44,10)>=ROUNDDOWN(Danh_sách_lớp_học[THỜI GIAN BẮT ĐẦU],10))*($B44<=Danh_sách_lớp_học[THỜI GIAN KẾT THÚC]),Danh_sách_lớp_học[DUY NHẤT]),Danh_sách_lớp_học[DUY NHẤT],0),2),0)","v":0},{"$f":"IFERROR(INDEX(Danh_sách_lớp_học[],MATCH(SUMPRODUCT((Danh_sách_lớp_học[NGÀY]=Dạng_xem_theo_Lịch_biểu_Lớp[[#Headers],[THỨ HAI]])*(ROUNDDOWN($B44,10)>=ROUNDDOWN(Danh_sách_lớp_học[THỜI GIAN BẮT ĐẦU],10))*($B44<=Danh_sách_lớp_học[THỜI GIAN KẾT THÚC]),Danh_sách_lớp_học[DUY NHẤT]),Danh_sách_lớp_học[DUY NHẤT],0),2),0)","v":0},{"$f":"IFERROR(INDEX(Danh_sách_lớp_học[],MATCH(SUMPRODUCT((Danh_sách_lớp_học[NGÀY]=Dạng_xem_theo_Lịch_biểu_Lớp[[#Headers],[THỨ BA]])*(ROUNDDOWN($B44,10)>=ROUNDDOWN(Danh_sách_lớp_học[THỜI GIAN BẮT ĐẦU],10))*($B44<=Danh_sách_lớp_học[THỜI GIAN KẾT THÚC]),Danh_sách_lớp_học[DUY NHẤT]),Danh_sách_lớp_học[DUY NHẤT],0),2),0)","v":0},{"$f":"IFERROR(INDEX(Danh_sách_lớp_học[],MATCH(SUMPRODUCT((Danh_sách_lớp_học[NGÀY]=Dạng_xem_theo_Lịch_biểu_Lớp[[#Headers],[THỨ TƯ]])*(ROUNDDOWN($B44,10)>=ROUNDDOWN(Danh_sách_lớp_học[THỜI GIAN BẮT ĐẦU],10))*($B44<=Danh_sách_lớp_học[THỜI GIAN KẾT THÚC]),Danh_sách_lớp_học[DUY NHẤT]),Danh_sách_lớp_học[DUY NHẤT],0),2),0)","v":0},{"$f":"IFERROR(INDEX(Danh_sách_lớp_học[],MATCH(SUMPRODUCT((Danh_sách_lớp_học[NGÀY]=Dạng_xem_theo_Lịch_biểu_Lớp[[#Headers],[THỨ NĂM]])*(ROUNDDOWN($B44,10)>=ROUNDDOWN(Danh_sách_lớp_học[THỜI GIAN BẮT ĐẦU],10))*($B44<=Danh_sách_lớp_học[THỜI GIAN KẾT THÚC]),Danh_sách_lớp_học[DUY NHẤT]),Danh_sách_lớp_học[DUY NHẤT],0),2),0)","v":0},{"$f":"IFERROR(INDEX(Danh_sách_lớp_học[],MATCH(SUMPRODUCT((Danh_sách_lớp_học[NGÀY]=Dạng_xem_theo_Lịch_biểu_Lớp[[#Headers],[THỨ SÁU]])*(ROUNDDOWN($B44,10)>=ROUNDDOWN(Danh_sách_lớp_học[THỜI GIAN BẮT ĐẦU],10))*($B44<=Danh_sách_lớp_học[THỜI GIAN KẾT THÚC]),Danh_sách_lớp_học[DUY NHẤT]),Danh_sách_lớp_học[DUY NHẤT],0),2),0)","v":0},{"$f":"IFERROR(INDEX(Danh_sách_lớp_học[],MATCH(SUMPRODUCT((Danh_sách_lớp_học[NGÀY]=Dạng_xem_theo_Lịch_biểu_Lớp[[#Headers],[THỨ BẢY]])*(ROUNDDOWN($B44,10)>=ROUNDDOWN(Danh_sách_lớp_học[THỜI GIAN BẮT ĐẦU],10))*($B44<=Danh_sách_lớp_học[THỜI GIAN KẾT THÚC]),Danh_sách_lớp_học[DUY NHẤT]),Danh_sách_lớp_học[DUY NHẤT],0),2),0)","v":0}]
[null,"18:15:00",{"$f":"IFERROR(INDEX(Danh_sách_lớp_học[],MATCH(SUMPRODUCT((Danh_sách_lớp_học[NGÀY]=Dạng_xem_theo_Lịch_biểu_Lớp[[#Headers],[CHỦ NHẬT]])*(ROUNDDOWN($B45,10)>=ROUNDDOWN(Danh_sách_lớp_học[THỜI GIAN BẮT ĐẦU],10))*($B45<=Danh_sách_lớp_học[THỜI GIAN KẾT THÚC]),Danh_sách_lớp_học[DUY NHẤT]),Danh_sách_lớp_học[DUY NHẤT],0),2),0)","v":0},{"$f":"IFERROR(INDEX(Danh_sách_lớp_học[],MATCH(SUMPRODUCT((Danh_sách_lớp_học[NGÀY]=Dạng_xem_theo_Lịch_biểu_Lớp[[#Headers],[THỨ HAI]])*(ROUNDDOWN($B45,10)>=ROUNDDOWN(Danh_sách_lớp_học[THỜI GIAN BẮT ĐẦU],10))*($B45<=Danh_sách_lớp_học[THỜI GIAN KẾT THÚC]),Danh_sách_lớp_học[DUY NHẤT]),Danh_sách_lớp_học[DUY NHẤT],0),2),0)","v":0},{"$f":"IFERROR(INDEX(Danh_sách_lớp_học[],MATCH(SUMPRODUCT((Danh_sách_lớp_học[NGÀY]=Dạng_xem_theo_Lịch_biểu_Lớp[[#Headers],[THỨ BA]])*(ROUNDDOWN($B45,10)>=ROUNDDOWN(Danh_sách_lớp_học[THỜI GIAN BẮT ĐẦU],10))*($B45<=Danh_sách_lớp_học[THỜI GIAN KẾT THÚC]),Danh_sách_lớp_học[DUY NHẤT]),Danh_sách_lớp_học[DUY NHẤT],0),2),0)","v":0},{"$f":"IFERROR(INDEX(Danh_sách_lớp_học[],MATCH(SUMPRODUCT((Danh_sách_lớp_học[NGÀY]=Dạng_xem_theo_Lịch_biểu_Lớp[[#Headers],[THỨ TƯ]])*(ROUNDDOWN($B45,10)>=ROUNDDOWN(Danh_sách_lớp_học[THỜI GIAN BẮT ĐẦU],10))*($B45<=Danh_sách_lớp_học[THỜI GIAN KẾT THÚC]),Danh_sách_lớp_học[DUY NHẤT]),Danh_sách_lớp_học[DUY NHẤT],0),2),0)","v":0},{"$f":"IFERROR(INDEX(Danh_sách_lớp_học[],MATCH(SUMPRODUCT((Danh_sách_lớp_học[NGÀY]=Dạng_xem_theo_Lịch_biểu_Lớp[[#Headers],[THỨ NĂM]])*(ROUNDDOWN($B45,10)>=ROUNDDOWN(Danh_sách_lớp_học[THỜI GIAN BẮT ĐẦU],10))*($B45<=Danh_sách_lớp_học[THỜI GIAN KẾT THÚC]),Danh_sách_lớp_học[DUY NHẤT]),Danh_sách_lớp_học[DUY NHẤT],0),2),0)","v":0},{"$f":"IFERROR(INDEX(Danh_sách_lớp_học[],MATCH(SUMPRODUCT((Danh_sách_lớp_học[NGÀY]=Dạng_xem_theo_Lịch_biểu_Lớp[[#Headers],[THỨ SÁU]])*(ROUNDDOWN($B45,10)>=ROUNDDOWN(Danh_sách_lớp_học[THỜI GIAN BẮT ĐẦU],10))*($B45<=Danh_sách_lớp_học[THỜI GIAN KẾT THÚC]),Danh_sách_lớp_học[DUY NHẤT]),Danh_sách_lớp_học[DUY NHẤT],0),2),0)","v":0},{"$f":"IFERROR(INDEX(Danh_sách_lớp_học[],MATCH(SUMPRODUCT((Danh_sách_lớp_học[NGÀY]=Dạng_xem_theo_Lịch_biểu_Lớp[[#Headers],[THỨ BẢY]])*(ROUNDDOWN($B45,10)>=ROUNDDOWN(Danh_sách_lớp_học[THỜI GIAN BẮT ĐẦU],10))*($B45<=Danh_sách_lớp_học[THỜI GIAN KẾT THÚC]),Danh_sách_lớp_học[DUY NHẤT]),Danh_sách_lớp_học[DUY NHẤT],0),2),0)","v":0}]
[null,"18:30:00",{"$f":"IFERROR(INDEX(Danh_sách_lớp_học[],MATCH(SUMPRODUCT((Danh_sách_lớp_học[NGÀY]=Dạng_xem_theo_Lịch_biểu_Lớp[[#Headers],[CHỦ NHẬT]])*(ROUNDDOWN($B46,10)>=ROUNDDOWN(Danh_sách_lớp_học[THỜI GIAN BẮT ĐẦU],10))*($B46<=Danh_sách_lớp_học[THỜI GIAN KẾT THÚC]),Danh_sách_lớp_học[DUY NHẤT]),Danh_sách_lớp_học[DUY NHẤT],0),2),0)","v":0},{"$f":"IFERROR(INDEX(Danh_sách_lớp_học[],MATCH(SUMPRODUCT((Danh_sách_lớp_học[NGÀY]=Dạng_xem_theo_Lịch_biểu_Lớp[[#Headers],[THỨ HAI]])*(ROUNDDOWN($B46,10)>=ROUNDDOWN(Danh_sách_lớp_học[THỜI GIAN BẮT ĐẦU],10))*($B46<=Danh_sách_lớp_học[THỜI GIAN KẾT THÚC]),Danh_sách_lớp_học[DUY NHẤT]),Danh_sách_lớp_học[DUY NHẤT],0),2),0)","v":0},{"$f":"IFERROR(INDEX(Danh_sách_lớp_học[],MATCH(SUMPRODUCT((Danh_sách_lớp_học[NGÀY]=Dạng_xem_theo_Lịch_biểu_Lớp[[#Headers],[THỨ BA]])*(ROUNDDOWN($B46,10)>=ROUNDDOWN(Danh_sách_lớp_học[THỜI GIAN BẮT ĐẦU],10))*($B46<=Danh_sách_lớp_học[THỜI GIAN KẾT THÚC]),Danh_sách_lớp_học[DUY NHẤT]),Danh_sách_lớp_học[DUY NHẤT],0),2),0)","v":0},{"$f":"IFERROR(INDEX(Danh_sách_lớp_học[],MATCH(SUMPRODUCT((Danh_sách_lớp_học[NGÀY]=Dạng_xem_theo_Lịch_biểu_Lớp[[#Headers],[THỨ TƯ]])*(ROUNDDOWN($B46,10)>=ROUNDDOWN(Danh_sách_lớp_học[THỜI GIAN BẮT ĐẦU],10))*($B46<=Danh_sách_lớp_học[THỜI GIAN KẾT THÚC]),Danh_sách_lớp_học[DUY NHẤT]),Danh_sách_lớp_học[DUY NHẤT],0),2),0)","v":0},{"$f":"IFERROR(INDEX(Danh_sách_lớp_học[],MATCH(SUMPRODUCT((Danh_sách_lớp_học[NGÀY]=Dạng_xem_theo_Lịch_biểu_Lớp[[#Headers],[THỨ NĂM]])*(ROUNDDOWN($B46,10)>=ROUNDDOWN(Danh_sách_lớp_học[THỜI GIAN BẮT ĐẦU],10))*($B46<=Danh_sách_lớp_học[THỜI GIAN KẾT THÚC]),Danh_sách_lớp_học[DUY NHẤT]),Danh_sách_lớp_học[DUY NHẤT],0),2),0)","v":0},{"$f":"IFERROR(INDEX(Danh_sách_lớp_học[],MATCH(SUMPRODUCT((Danh_sách_lớp_học[NGÀY]=Dạng_xem_theo_Lịch_biểu_Lớp[[#Headers],[THỨ SÁU]])*(ROUNDDOWN($B46,10)>=ROUNDDOWN(Danh_sách_lớp_học[THỜI GIAN BẮT ĐẦU],10))*($B46<=Danh_sách_lớp_học[THỜI GIAN KẾT THÚC]),Danh_sách_lớp_học[DUY NHẤT]),Danh_sách_lớp_học[DUY NHẤT],0),2),0)","v":0},{"$f":"IFERROR(INDEX(Danh_sách_lớp_học[],MATCH(SUMPRODUCT((Danh_sách_lớp_học[NGÀY]=Dạng_xem_theo_Lịch_biểu_Lớp[[#Headers],[THỨ BẢY]])*(ROUNDDOWN($B46,10)>=ROUNDDOWN(Danh_sách_lớp_học[THỜI GIAN BẮT ĐẦU],10))*($B46<=Danh_sách_lớp_học[THỜI GIAN KẾT THÚC]),Danh_sách_lớp_học[DUY NHẤT]),Danh_sách_lớp_học[DUY NHẤT],0),2),0)","v":0}]
[null,"18:45:00",{"$f":"IFERROR(INDEX(Danh_sách_lớp_học[],MATCH(SUMPRODUCT((Danh_sách_lớp_học[NGÀY]=Dạng_xem_theo_Lịch_biểu_Lớp[[#Headers],[CHỦ NHẬT]])*(ROUNDDOWN($B47,10)>=ROUNDDOWN(Danh_sách_lớp_học[THỜI GIAN BẮT ĐẦU],10))*($B47<=Danh_sách_lớp_học[THỜI GIAN KẾT THÚC]),Danh_sách_lớp_học[DUY NHẤT]),Danh_sách_lớp_học[DUY NHẤT],0),2),0)","v":0},{"$f":"IFERROR(INDEX(Danh_sách_lớp_học[],MATCH(SUMPRODUCT((Danh_sách_lớp_học[NGÀY]=Dạng_xem_theo_Lịch_biểu_Lớp[[#Headers],[THỨ HAI]])*(ROUNDDOWN($B47,10)>=ROUNDDOWN(Danh_sách_lớp_học[THỜI GIAN BẮT ĐẦU],10))*($B47<=Danh_sách_lớp_học[THỜI GIAN KẾT THÚC]),Danh_sách_lớp_học[DUY NHẤT]),Danh_sách_lớp_học[DUY NHẤT],0),2),0)","v":0},{"$f":"IFERROR(INDEX(Danh_sách_lớp_học[],MATCH(SUMPRODUCT((Danh_sách_lớp_học[NGÀY]=Dạng_xem_theo_Lịch_biểu_Lớp[[#Headers],[THỨ BA]])*(ROUNDDOWN($B47,10)>=ROUNDDOWN(Danh_sách_lớp_học[THỜI GIAN BẮT ĐẦU],10))*($B47<=Danh_sách_lớp_học[THỜI GIAN KẾT THÚC]),Danh_sách_lớp_học[DUY NHẤT]),Danh_sách_lớp_học[DUY NHẤT],0),2),0)","v":0},{"$f":"IFERROR(INDEX(Danh_sách_lớp_học[],MATCH(SUMPRODUCT((Danh_sách_lớp_học[NGÀY]=Dạng_xem_theo_Lịch_biểu_Lớp[[#Headers],[THỨ TƯ]])*(ROUNDDOWN($B47,10)>=ROUNDDOWN(Danh_sách_lớp_học[THỜI GIAN BẮT ĐẦU],10))*($B47<=Danh_sách_lớp_học[THỜI GIAN KẾT THÚC]),Danh_sách_lớp_học[DUY NHẤT]),Danh_sách_lớp_học[DUY NHẤT],0),2),0)","v":0},{"$f":"IFERROR(INDEX(Danh_sách_lớp_học[],MATCH(SUMPRODUCT((Danh_sách_lớp_học[NGÀY]=Dạng_xem_theo_Lịch_biểu_Lớp[[#Headers],[THỨ NĂM]])*(ROUNDDOWN($B47,10)>=ROUNDDOWN(Danh_sách_lớp_học[THỜI GIAN BẮT ĐẦU],10))*($B47<=Danh_sách_lớp_học[THỜI GIAN KẾT THÚC]),Danh_sách_lớp_học[DUY NHẤT]),Danh_sách_lớp_học[DUY NHẤT],0),2),0)","v":0},{"$f":"IFERROR(INDEX(Danh_sách_lớp_học[],MATCH(SUMPRODUCT((Danh_sách_lớp_học[NGÀY]=Dạng_xem_theo_Lịch_biểu_Lớp[[#Headers],[THỨ SÁU]])*(ROUNDDOWN($B47,10)>=ROUNDDOWN(Danh_sách_lớp_học[THỜI GIAN BẮT ĐẦU],10))*($B47<=Danh_sách_lớp_học[THỜI GIAN KẾT THÚC]),Danh_sách_lớp_học[DUY NHẤT]),Danh_sách_lớp_học[DUY NHẤT],0),2),0)","v":0},{"$f":"IFERROR(INDEX(Danh_sách_lớp_học[],MATCH(SUMPRODUCT((Danh_sách_lớp_học[NGÀY]=Dạng_xem_theo_Lịch_biểu_Lớp[[#Headers],[THỨ BẢY]])*(ROUNDDOWN($B47,10)>=ROUNDDOWN(Danh_sách_lớp_học[THỜI GIAN BẮT ĐẦU],10))*($B47<=Danh_sách_lớp_học[THỜI GIAN KẾT THÚC]),Danh_sách_lớp_học[DUY NHẤT]),Danh_sách_lớp_học[DUY NHẤT],0),2),0)","v":0}]
[null,"19:00:00",{"$f":"IFERROR(INDEX(Danh_sách_lớp_học[],MATCH(SUMPRODUCT((Danh_sách_lớp_học[NGÀY]=Dạng_xem_theo_Lịch_biểu_Lớp[[#Headers],[CHỦ NHẬT]])*(ROUNDDOWN($B48,10)>=ROUNDDOWN(Danh_sách_lớp_học[THỜI GIAN BẮT ĐẦU],10))*($B48<=Danh_sách_lớp_học[THỜI GIAN KẾT THÚC]),Danh_sách_lớp_học[DUY NHẤT]),Danh_sách_lớp_học[DUY NHẤT],0),2),0)","v":0},{"$f":"IFERROR(INDEX(Danh_sách_lớp_học[],MATCH(SUMPRODUCT((Danh_sách_lớp_học[NGÀY]=Dạng_xem_theo_Lịch_biểu_Lớp[[#Headers],[THỨ HAI]])*(ROUNDDOWN($B48,10)>=ROUNDDOWN(Danh_sách_lớp_học[THỜI GIAN BẮT ĐẦU],10))*($B48<=Danh_sách_lớp_học[THỜI GIAN KẾT THÚC]),Danh_sách_lớp_học[DUY NHẤT]),Danh_sách_lớp_học[DUY NHẤT],0),2),0)","v":0},{"$f":"IFERROR(INDEX(Danh_sách_lớp_học[],MATCH(SUMPRODUCT((Danh_sách_lớp_học[NGÀY]=Dạng_xem_theo_Lịch_biểu_Lớp[[#Headers],[THỨ BA]])*(ROUNDDOWN($B48,10)>=ROUNDDOWN(Danh_sách_lớp_học[THỜI GIAN BẮT ĐẦU],10))*($B48<=Danh_sách_lớp_học[THỜI GIAN KẾT THÚC]),Danh_sách_lớp_học[DUY NHẤT]),Danh_sách_lớp_học[DUY NHẤT],0),2),0)","v":0},{"$f":"IFERROR(INDEX(Danh_sách_lớp_học[],MATCH(SUMPRODUCT((Danh_sách_lớp_học[NGÀY]=Dạng_xem_theo_Lịch_biểu_Lớp[[#Headers],[THỨ TƯ]])*(ROUNDDOWN($B48,10)>=ROUNDDOWN(Danh_sách_lớp_học[THỜI GIAN BẮT ĐẦU],10))*($B48<=Danh_sách_lớp_học[THỜI GIAN KẾT THÚC]),Danh_sách_lớp_học[DUY NHẤT]),Danh_sách_lớp_học[DUY NHẤT],0),2),0)","v":0},{"$f":"IFERROR(INDEX(Danh_sách_lớp_học[],MATCH(SUMPRODUCT((Danh_sách_lớp_học[NGÀY]=Dạng_xem_theo_Lịch_biểu_Lớp[[#Headers],[THỨ NĂM]])*(ROUNDDOWN($B48,10)>=ROUNDDOWN(Danh_sách_lớp_học[THỜI GIAN BẮT ĐẦU],10))*($B48<=Danh_sách_lớp_học[THỜI GIAN KẾT THÚC]),Danh_sách_lớp_học[DUY NHẤT]),Danh_sách_lớp_học[DUY NHẤT],0),2),0)","v":0},{"$f":"IFERROR(INDEX(Danh_sách_lớp_học[],MATCH(SUMPRODUCT((Danh_sách_lớp_học[NGÀY]=Dạng_xem_theo_Lịch_biểu_Lớp[[#Headers],[THỨ SÁU]])*(ROUNDDOWN($B48,10)>=ROUNDDOWN(Danh_sách_lớp_học[THỜI GIAN BẮT ĐẦU],10))*($B48<=Danh_sách_lớp_học[THỜI GIAN KẾT THÚC]),Danh_sách_lớp_học[DUY NHẤT]),Danh_sách_lớp_học[DUY NHẤT],0),2),0)","v":0},{"$f":"IFERROR(INDEX(Danh_sách_lớp_học[],MATCH(SUMPRODUCT((Danh_sách_lớp_học[NGÀY]=Dạng_xem_theo_Lịch_biểu_Lớp[[#Headers],[THỨ BẢY]])*(ROUNDDOWN($B48,10)>=ROUNDDOWN(Danh_sách_lớp_học[THỜI GIAN BẮT ĐẦU],10))*($B48<=Danh_sách_lớp_học[THỜI GIAN KẾT THÚC]),Danh_sách_lớp_học[DUY NHẤT]),Danh_sách_lớp_học[DUY NHẤT],0),2),0)","v":0}]
[null,"19:15:00",{"$f":"IFERROR(INDEX(Danh_sách_lớp_học[],MATCH(SUMPRODUCT((Danh_sách_lớp_học[NGÀY]=Dạng_xem_theo_Lịch_biểu_Lớp[[#Headers],[CHỦ NHẬT]])*(ROUNDDOWN($B49,10)>=ROUNDDOWN(Danh_sách_lớp_học[THỜI GIAN BẮT ĐẦU],10))*($B49<=Danh_sách_lớp_học[THỜI GIAN KẾT THÚC]),Danh_sách_lớp_học[DUY NHẤT]),Danh_sách_lớp_học[DUY NHẤT],0),2),0)","v":0},{"$f":"IFERROR(INDEX(Danh_sách_lớp_học[],MATCH(SUMPRODUCT((Danh_sách_lớp_học[NGÀY]=Dạng_xem_theo_Lịch_biểu_Lớp[[#Headers],[THỨ HAI]])*(ROUNDDOWN($B49,10)>=ROUNDDOWN(Danh_sách_lớp_học[THỜI GIAN BẮT ĐẦU],10))*($B49<=Danh_sách_lớp_học[THỜI GIAN KẾT THÚC]),Danh_sách_lớp_học[DUY NHẤT]),Danh_sách_lớp_học[DUY NHẤT],0),2),0)","v":0},{"$f":"IFERROR(INDEX(Danh_sách_lớp_học[],MATCH(SUMPRODUCT((Danh_sách_lớp_học[NGÀY]=Dạng_xem_theo_Lịch_biểu_Lớp[[#Headers],[THỨ BA]])*(ROUNDDOWN($B49,10)>=ROUNDDOWN(Danh_sách_lớp_học[THỜI GIAN BẮT ĐẦU],10))*($B49<=Danh_sách_lớp_học[THỜI GIAN KẾT THÚC]),Danh_sách_lớp_học[DUY NHẤT]),Danh_sách_lớp_học[DUY NHẤT],0),2),0)","v":0},{"$f":"IFERROR(INDEX(Danh_sách_lớp_học[],MATCH(SUMPRODUCT((Danh_sách_lớp_học[NGÀY]=Dạng_xem_theo_Lịch_biểu_Lớp[[#Headers],[THỨ TƯ]])*(ROUNDDOWN($B49,10)>=ROUNDDOWN(Danh_sách_lớp_học[THỜI GIAN BẮT ĐẦU],10))*($B49<=Danh_sách_lớp_học[THỜI GIAN KẾT THÚC]),Danh_sách_lớp_học[DUY NHẤT]),Danh_sách_lớp_học[DUY NHẤT],0),2),0)","v":0},{"$f":"IFERROR(INDEX(Danh_sách_lớp_học[],MATCH(SUMPRODUCT((Danh_sách_lớp_học[NGÀY]=Dạng_xem_theo_Lịch_biểu_Lớp[[#Headers],[THỨ NĂM]])*(ROUNDDOWN($B49,10)>=ROUNDDOWN(Danh_sách_lớp_học[THỜI GIAN BẮT ĐẦU],10))*($B49<=Danh_sách_lớp_học[THỜI GIAN KẾT THÚC]),Danh_sách_lớp_học[DUY NHẤT]),Danh_sách_lớp_học[DUY NHẤT],0),2),0)","v":0},{"$f":"IFERROR(INDEX(Danh_sách_lớp_học[],MATCH(SUMPRODUCT((Danh_sách_lớp_học[NGÀY]=Dạng_xem_theo_Lịch_biểu_Lớp[[#Headers],[THỨ SÁU]])*(ROUNDDOWN($B49,10)>=ROUNDDOWN(Danh_sách_lớp_học[THỜI GIAN BẮT ĐẦU],10))*($B49<=Danh_sách_lớp_học[THỜI GIAN KẾT THÚC]),Danh_sách_lớp_học[DUY NHẤT]),Danh_sách_lớp_học[DUY NHẤT],0),2),0)","v":0},{"$f":"IFERROR(INDEX(Danh_sách_lớp_học[],MATCH(SUMPRODUCT((Danh_sách_lớp_học[NGÀY]=Dạng_xem_theo_Lịch_biểu_Lớp[[#Headers],[THỨ BẢY]])*(ROUNDDOWN($B49,10)>=ROUNDDOWN(Danh_sách_lớp_học[THỜI GIAN BẮT ĐẦU],10))*($B49<=Danh_sách_lớp_học[THỜI GIAN KẾT THÚC]),Danh_sách_lớp_học[DUY NHẤT]),Danh_sách_lớp_học[DUY NHẤT],0),2),0)","v":0}]
[null,"19:30:00",{"$f":"IFERROR(INDEX(Danh_sách_lớp_học[],MATCH(SUMPRODUCT((Danh_sách_lớp_học[NGÀY]=Dạng_xem_theo_Lịch_biểu_Lớp[[#Headers],[CHỦ NHẬT]])*(ROUNDDOWN($B50,10)>=ROUNDDOWN(Danh_sách_lớp_học[THỜI GIAN BẮT ĐẦU],10))*($B50<=Danh_sách_lớp_học[THỜI GIAN KẾT THÚC]),Danh_sách_lớp_học[DUY NHẤT]),Danh_sách_lớp_học[DUY NHẤT],0),2),0)","v":0},{"$f":"IFERROR(INDEX(Danh_sách_lớp_học[],MATCH(SUMPRODUCT((Danh_sách_lớp_học[NGÀY]=Dạng_xem_theo_Lịch_biểu_Lớp[[#Headers],[THỨ HAI]])*(ROUNDDOWN($B50,10)>=ROUNDDOWN(Danh_sách_lớp_học[THỜI GIAN BẮT ĐẦU],10))*($B50<=Danh_sách_lớp_học[THỜI GIAN KẾT THÚC]),Danh_sách_lớp_học[DUY NHẤT]),Danh_sách_lớp_học[DUY NHẤT],0),2),0)","v":0},{"$f":"IFERROR(INDEX(Danh_sách_lớp_học[],MATCH(SUMPRODUCT((Danh_sách_lớp_học[NGÀY]=Dạng_xem_theo_Lịch_biểu_Lớp[[#Headers],[THỨ BA]])*(ROUNDDOWN($B50,10)>=ROUNDDOWN(Danh_sách_lớp_học[THỜI GIAN BẮT ĐẦU],10))*($B50<=Danh_sách_lớp_học[THỜI GIAN KẾT THÚC]),Danh_sách_lớp_học[DUY NHẤT]),Danh_sách_lớp_học[DUY NHẤT],0),2),0)","v":0},{"$f":"IFERROR(INDEX(Danh_sách_lớp_học[],MATCH(SUMPRODUCT((Danh_sách_lớp_học[NGÀY]=Dạng_xem_theo_Lịch_biểu_Lớp[[#Headers],[THỨ TƯ]])*(ROUNDDOWN($B50,10)>=ROUNDDOWN(Danh_sách_lớp_học[THỜI GIAN BẮT ĐẦU],10))*($B50<=Danh_sách_lớp_học[THỜI GIAN KẾT THÚC]),Danh_sách_lớp_học[DUY NHẤT]),Danh_sách_lớp_học[DUY NHẤT],0),2),0)","v":0},{"$f":"IFERROR(INDEX(Danh_sách_lớp_học[],MATCH(SUMPRODUCT((Danh_sách_lớp_học[NGÀY]=Dạng_xem_theo_Lịch_biểu_Lớp[[#Headers],[THỨ NĂM]])*(ROUNDDOWN($B50,10)>=ROUNDDOWN(Danh_sách_lớp_học[THỜI GIAN BẮT ĐẦU],10))*($B50<=Danh_sách_lớp_học[THỜI GIAN KẾT THÚC]),Danh_sách_lớp_học[DUY NHẤT]),Danh_sách_lớp_học[DUY NHẤT],0),2),0)","v":0},{"$f":"IFERROR(INDEX(Danh_sách_lớp_học[],MATCH(SUMPRODUCT((Danh_sách_lớp_học[NGÀY]=Dạng_xem_theo_Lịch_biểu_Lớp[[#Headers],[THỨ SÁU]])*(ROUNDDOWN($B50,10)>=ROUNDDOWN(Danh_sách_lớp_học[THỜI GIAN BẮT ĐẦU],10))*($B50<=Danh_sách_lớp_học[THỜI GIAN KẾT THÚC]),Danh_sách_lớp_học[DUY NHẤT]),Danh_sách_lớp_học[DUY NHẤT],0),2),0)","v":0},{"$f":"IFERROR(INDEX(Danh_sách_lớp_học[],MATCH(SUMPRODUCT((Danh_sách_lớp_học[NGÀY]=Dạng_xem_theo_Lịch_biểu_Lớp[[#Headers],[THỨ BẢY]])*(ROUNDDOWN($B50,10)>=ROUNDDOWN(Danh_sách_lớp_học[THỜI GIAN BẮT ĐẦU],10))*($B50<=Danh_sách_lớp_học[THỜI GIAN KẾT THÚC]),Danh_sách_lớp_học[DUY NHẤT]),Danh_sách_lớp_học[DUY NHẤT],0),2),0)","v":0}]
[null,"19:45:00",{"$f":"IFERROR(INDEX(Danh_sách_lớp_học[],MATCH(SUMPRODUCT((Danh_sách_lớp_học[NGÀY]=Dạng_xem_theo_Lịch_biểu_Lớp[[#Headers],[CHỦ NHẬT]])*(ROUNDDOWN($B51,10)>=ROUNDDOWN(Danh_sách_lớp_học[THỜI GIAN BẮT ĐẦU],10))*($B51<=Danh_sách_lớp_học[THỜI GIAN KẾT THÚC]),Danh_sách_lớp_học[DUY NHẤT]),Danh_sách_lớp_học[DUY NHẤT],0),2),0)","v":0},{"$f":"IFERROR(INDEX(Danh_sách_lớp_học[],MATCH(SUMPRODUCT((Danh_sách_lớp_học[NGÀY]=Dạng_xem_theo_Lịch_biểu_Lớp[[#Headers],[THỨ HAI]])*(ROUNDDOWN($B51,10)>=ROUNDDOWN(Danh_sách_lớp_học[THỜI GIAN BẮT ĐẦU],10))*($B51<=Danh_sách_lớp_học[THỜI GIAN KẾT THÚC]),Danh_sách_lớp_học[DUY NHẤT]),Danh_sách_lớp_học[DUY NHẤT],0),2),0)","v":0},{"$f":"IFERROR(INDEX(Danh_sách_lớp_học[],MATCH(SUMPRODUCT((Danh_sách_lớp_học[NGÀY]=Dạng_xem_theo_Lịch_biểu_Lớp[[#Headers],[THỨ BA]])*(ROUNDDOWN($B51,10)>=ROUNDDOWN(Danh_sách_lớp_học[THỜI GIAN BẮT ĐẦU],10))*($B51<=Danh_sách_lớp_học[THỜI GIAN KẾT THÚC]),Danh_sách_lớp_học[DUY NHẤT]),Danh_sách_lớp_học[DUY NHẤT],0),2),0)","v":0},{"$f":"IFERROR(INDEX(Danh_sách_lớp_học[],MATCH(SUMPRODUCT((Danh_sách_lớp_học[NGÀY]=Dạng_xem_theo_Lịch_biểu_Lớp[[#Headers],[THỨ TƯ]])*(ROUNDDOWN($B51,10)>=ROUNDDOWN(Danh_sách_lớp_học[THỜI GIAN BẮT ĐẦU],10))*($B51<=Danh_sách_lớp_học[THỜI GIAN KẾT THÚC]),Danh_sách_lớp_học[DUY NHẤT]),Danh_sách_lớp_học[DUY NHẤT],0),2),0)","v":0},{"$f":"IFERROR(INDEX(Danh_sách_lớp_học[],MATCH(SUMPRODUCT((Danh_sách_lớp_học[NGÀY]=Dạng_xem_theo_Lịch_biểu_Lớp[[#Headers],[THỨ NĂM]])*(ROUNDDOWN($B51,10)>=ROUNDDOWN(Danh_sách_lớp_học[THỜI GIAN BẮT ĐẦU],10))*($B51<=Danh_sách_lớp_học[THỜI GIAN KẾT THÚC]),Danh_sách_lớp_học[DUY NHẤT]),Danh_sách_lớp_học[DUY NHẤT],0),2),0)","v":0},{"$f":"IFERROR(INDEX(Danh_sách_lớp_học[],MATCH(SUMPRODUCT((Danh_sách_lớp_học[NGÀY]=Dạng_xem_theo_Lịch_biểu_Lớp[[#Headers],[THỨ SÁU]])*(ROUNDDOWN($B51,10)>=ROUNDDOWN(Danh_sách_lớp_học[THỜI GIAN BẮT ĐẦU],10))*($B51<=Danh_sách_lớp_học[THỜI GIAN KẾT THÚC]),Danh_sách_lớp_học[DUY NHẤT]),Danh_sách_lớp_học[DUY NHẤT],0),2),0)","v":0},{"$f":"IFERROR(INDEX(Danh_sách_lớp_học[],MATCH(SUMPRODUCT((Danh_sách_lớp_học[NGÀY]=Dạng_xem_theo_Lịch_biểu_Lớp[[#Headers],[THỨ BẢY]])*(ROUNDDOWN($B51,10)>=ROUNDDOWN(Danh_sách_lớp_học[THỜI GIAN BẮT ĐẦU],10))*($B51<=Danh_sách_lớp_học[THỜI GIAN KẾT THÚC]),Danh_sách_lớp_học[DUY NHẤT]),Danh_sách_lớp_học[DUY NHẤT],0),2),0)","v":0}]
[null,"20:00:00",{"$f":"IFERROR(INDEX(Danh_sách_lớp_học[],MATCH(SUMPRODUCT((Danh_sách_lớp_học[NGÀY]=Dạng_xem_theo_Lịch_biểu_Lớp[[#Headers],[CHỦ NHẬT]])*(ROUNDDOWN($B52,10)>=ROUNDDOWN(Danh_sách_lớp_học[THỜI GIAN BẮT ĐẦU],10))*($B52<=Danh_sách_lớp_học[THỜI GIAN KẾT THÚC]),Danh_sách_lớp_học[DUY NHẤT]),Danh_sách_lớp_học[DUY NHẤT],0),2),0)","v":0},{"$f":"IFERROR(INDEX(Danh_sách_lớp_học[],MATCH(SUMPRODUCT((Danh_sách_lớp_học[NGÀY]=Dạng_xem_theo_Lịch_biểu_Lớp[[#Headers],[THỨ HAI]])*(ROUNDDOWN($B52,10)>=ROUNDDOWN(Danh_sách_lớp_học[THỜI GIAN BẮT ĐẦU],10))*($B52<=Danh_sách_lớp_học[THỜI GIAN KẾT THÚC]),Danh_sách_lớp_học[DUY NHẤT]),Danh_sách_lớp_học[DUY NHẤT],0),2),0)","v":0},{"$f":"IFERROR(INDEX(Danh_sách_lớp_học[],MATCH(SUMPRODUCT((Danh_sách_lớp_học[NGÀY]=Dạng_xem_theo_Lịch_biểu_Lớp[[#Headers],[THỨ BA]])*(ROUNDDOWN($B52,10)>=ROUNDDOWN(Danh_sách_lớp_học[THỜI GIAN BẮT ĐẦU],10))*($B52<=Danh_sách_lớp_học[THỜI GIAN KẾT THÚC]),Danh_sách_lớp_học[DUY NHẤT]),Danh_sách_lớp_học[DUY NHẤT],0),2),0)","v":0},{"$f":"IFERROR(INDEX(Danh_sách_lớp_học[],MATCH(SUMPRODUCT((Danh_sách_lớp_học[NGÀY]=Dạng_xem_theo_Lịch_biểu_Lớp[[#Headers],[THỨ TƯ]])*(ROUNDDOWN($B52,10)>=ROUNDDOWN(Danh_sách_lớp_học[THỜI GIAN BẮT ĐẦU],10))*($B52<=Danh_sách_lớp_học[THỜI GIAN KẾT THÚC]),Danh_sách_lớp_học[DUY NHẤT]),Danh_sách_lớp_học[DUY NHẤT],0),2),0)","v":0},{"$f":"IFERROR(INDEX(Danh_sách_lớp_học[],MATCH(SUMPRODUCT((Danh_sách_lớp_học[NGÀY]=Dạng_xem_theo_Lịch_biểu_Lớp[[#Headers],[THỨ NĂM]])*(ROUNDDOWN($B52,10)>=ROUNDDOWN(Danh_sách_lớp_học[THỜI GIAN BẮT ĐẦU],10))*($B52<=Danh_sách_lớp_học[THỜI GIAN KẾT THÚC]),Danh_sách_lớp_học[DUY NHẤT]),Danh_sách_lớp_học[DUY NHẤT],0),2),0)","v":0},{"$f":"IFERROR(INDEX(Danh_sách_lớp_học[],MATCH(SUMPRODUCT((Danh_sách_lớp_học[NGÀY]=Dạng_xem_theo_Lịch_biểu_Lớp[[#Headers],[THỨ SÁU]])*(ROUNDDOWN($B52,10)>=ROUNDDOWN(Danh_sách_lớp_học[THỜI GIAN BẮT ĐẦU],10))*($B52<=Danh_sách_lớp_học[THỜI GIAN KẾT THÚC]),Danh_sách_lớp_học[DUY NHẤT]),Danh_sách_lớp_học[DUY NHẤT],0),2),0)","v":0},{"$f":"IFERROR(INDEX(Danh_sách_lớp_học[],MATCH(SUMPRODUCT((Danh_sách_lớp_học[NGÀY]=Dạng_xem_theo_Lịch_biểu_Lớp[[#Headers],[THỨ BẢY]])*(ROUNDDOWN($B52,10)>=ROUNDDOWN(Danh_sách_lớp_học[THỜI GIAN BẮT ĐẦU],10))*($B52<=Danh_sách_lớp_học[THỜI GIAN KẾT THÚC]),Danh_sách_lớp_học[DUY NHẤT]),Danh_sách_lớp_học[DUY NHẤT],0),2),0)","v":0}]
[null,"20:15:00",{"$f":"IFERROR(INDEX(Danh_sách_lớp_học[],MATCH(SUMPRODUCT((Danh_sách_lớp_học[NGÀY]=Dạng_xem_theo_Lịch_biểu_Lớp[[#Headers],[CHỦ NHẬT]])*(ROUNDDOWN($B53,10)>=ROUNDDOWN(Danh_sách_lớp_học[THỜI GIAN BẮT ĐẦU],10))*($B53<=Danh_sách_lớp_học[THỜI GIAN KẾT THÚC]),Danh_sách_lớp_học[DUY NHẤT]),Danh_sách_lớp_học[DUY NHẤT],0),2),0)","v":0},{"$f":"IFERROR(INDEX(Danh_sách_lớp_học[],MATCH(SUMPRODUCT((Danh_sách_lớp_học[NGÀY]=Dạng_xem_theo_Lịch_biểu_Lớp[[#Headers],[THỨ HAI]])*(ROUNDDOWN($B53,10)>=ROUNDDOWN(Danh_sách_lớp_học[THỜI GIAN BẮT ĐẦU],10))*($B53<=Danh_sách_lớp_học[THỜI GIAN KẾT THÚC]),Danh_sách_lớp_học[DUY NHẤT]),Danh_sách_lớp_học[DUY NHẤT],0),2),0)","v":0},{"$f":"IFERROR(INDEX(Danh_sách_lớp_học[],MATCH(SUMPRODUCT((Danh_sách_lớp_học[NGÀY]=Dạng_xem_theo_Lịch_biểu_Lớp[[#Headers],[THỨ BA]])*(ROUNDDOWN($B53,10)>=ROUNDDOWN(Danh_sách_lớp_học[THỜI GIAN BẮT ĐẦU],10))*($B53<=Danh_sách_lớp_học[THỜI GIAN KẾT THÚC]),Danh_sách_lớp_học[DUY NHẤT]),Danh_sách_lớp_học[DUY NHẤT],0),2),0)","v":0},{"$f":"IFERROR(INDEX(Danh_sách_lớp_học[],MATCH(SUMPRODUCT((Danh_sách_lớp_học[NGÀY]=Dạng_xem_theo_Lịch_biểu_Lớp[[#Headers],[THỨ TƯ]])*(ROUNDDOWN($B53,10)>=ROUNDDOWN(Danh_sách_lớp_học[THỜI GIAN BẮT ĐẦU],10))*($B53<=Danh_sách_lớp_học[THỜI GIAN KẾT THÚC]),Danh_sách_lớp_học[DUY NHẤT]),Danh_sách_lớp_học[DUY NHẤT],0),2),0)","v":0},{"$f":"IFERROR(INDEX(Danh_sách_lớp_học[],MATCH(SUMPRODUCT((Danh_sách_lớp_học[NGÀY]=Dạng_xem_theo_Lịch_biểu_Lớp[[#Headers],[THỨ NĂM]])*(ROUNDDOWN($B53,10)>=ROUNDDOWN(Danh_sách_lớp_học[THỜI GIAN BẮT ĐẦU],10))*($B53<=Danh_sách_lớp_học[THỜI GIAN KẾT THÚC]),Danh_sách_lớp_học[DUY NHẤT]),Danh_sách_lớp_học[DUY NHẤT],0),2),0)","v":0},{"$f":"IFERROR(INDEX(Danh_sách_lớp_học[],MATCH(SUMPRODUCT((Danh_sách_lớp_học[NGÀY]=Dạng_xem_theo_Lịch_biểu_Lớp[[#Headers],[THỨ SÁU]])*(ROUNDDOWN($B53,10)>=ROUNDDOWN(Danh_sách_lớp_học[THỜI GIAN BẮT ĐẦU],10))*($B53<=Danh_sách_lớp_học[THỜI GIAN KẾT THÚC]),Danh_sách_lớp_học[DUY NHẤT]),Danh_sách_lớp_học[DUY NHẤT],0),2),0)","v":0},{"$f":"IFERROR(INDEX(Danh_sách_lớp_học[],MATCH(SUMPRODUCT((Danh_sách_lớp_học[NGÀY]=Dạng_xem_theo_Lịch_biểu_Lớp[[#Headers],[THỨ BẢY]])*(ROUNDDOWN($B53,10)>=ROUNDDOWN(Danh_sách_lớp_học[THỜI GIAN BẮT ĐẦU],10))*($B53<=Danh_sách_lớp_học[THỜI GIAN KẾT THÚC]),Danh_sách_lớp_học[DUY NHẤT]),Danh_sách_lớp_học[DUY NHẤT],0),2),0)","v":0}]
[null,"20:30:00",{"$f":"IFERROR(INDEX(Danh_sách_lớp_học[],MATCH(SUMPRODUCT((Danh_sách_lớp_học[NGÀY]=Dạng_xem_theo_Lịch_biểu_Lớp[[#Headers],[CHỦ NHẬT]])*(ROUNDDOWN($B54,10)>=ROUNDDOWN(Danh_sách_lớp_học[THỜI GIAN BẮT ĐẦU],10))*($B54<=Danh_sách_lớp_học[THỜI GIAN KẾT THÚC]),Danh_sách_lớp_học[DUY NHẤT]),Danh_sách_lớp_học[DUY NHẤT],0),2),0)","v":0},{"$f":"IFERROR(INDEX(Danh_sách_lớp_học[],MATCH(SUMPRODUCT((Danh_sách_lớp_học[NGÀY]=Dạng_xem_theo_Lịch_biểu_Lớp[[#Headers],[THỨ HAI]])*(ROUNDDOWN($B54,10)>=ROUNDDOWN(Danh_sách_lớp_học[THỜI GIAN BẮT ĐẦU],10))*($B54<=Danh_sách_lớp_học[THỜI GIAN KẾT THÚC]),Danh_sách_lớp_học[DUY NHẤT]),Danh_sách_lớp_học[DUY NHẤT],0),2),0)","v":0},{"$f":"IFERROR(INDEX(Danh_sách_lớp_học[],MATCH(SUMPRODUCT((Danh_sách_lớp_học[NGÀY]=Dạng_xem_theo_Lịch_biểu_Lớp[[#Headers],[THỨ BA]])*(ROUNDDOWN($B54,10)>=ROUNDDOWN(Danh_sách_lớp_học[THỜI GIAN BẮT ĐẦU],10))*($B54<=Danh_sách_lớp_học[THỜI GIAN KẾT THÚC]),Danh_sách_lớp_học[DUY NHẤT]),Danh_sách_lớp_học[DUY NHẤT],0),2),0)","v":0},{"$f":"IFERROR(INDEX(Danh_sách_lớp_học[],MATCH(SUMPRODUCT((Danh_sách_lớp_học[NGÀY]=Dạng_xem_theo_Lịch_biểu_Lớp[[#Headers],[THỨ TƯ]])*(ROUNDDOWN($B54,10)>=ROUNDDOWN(Danh_sách_lớp_học[THỜI GIAN BẮT ĐẦU],10))*($B54<=Danh_sách_lớp_học[THỜI GIAN KẾT THÚC]),Danh_sách_lớp_học[DUY NHẤT]),Danh_sách_lớp_học[DUY NHẤT],0),2),0)","v":0},{"$f":"IFERROR(INDEX(Danh_sách_lớp_học[],MATCH(SUMPRODUCT((Danh_sách_lớp_học[NGÀY]=Dạng_xem_theo_Lịch_biểu_Lớp[[#Headers],[THỨ NĂM]])*(ROUNDDOWN($B54,10)>=ROUNDDOWN(Danh_sách_lớp_học[THỜI GIAN BẮT ĐẦU],10))*($B54<=Danh_sách_lớp_học[THỜI GIAN KẾT THÚC]),Danh_sách_lớp_học[DUY NHẤT]),Danh_sách_lớp_học[DUY NHẤT],0),2),0)","v":0},{"$f":"IFERROR(INDEX(Danh_sách_lớp_học[],MATCH(SUMPRODUCT((Danh_sách_lớp_học[NGÀY]=Dạng_xem_theo_Lịch_biểu_Lớp[[#Headers],[THỨ SÁU]])*(ROUNDDOWN($B54,10)>=ROUNDDOWN(Danh_sách_lớp_học[THỜI GIAN BẮT ĐẦU],10))*($B54<=Danh_sách_lớp_học[THỜI GIAN KẾT THÚC]),Danh_sách_lớp_học[DUY NHẤT]),Danh_sách_lớp_học[DUY NHẤT],0),2),0)","v":0},{"$f":"IFERROR(INDEX(Danh_sách_lớp_học[],MATCH(SUMPRODUCT((Danh_sách_lớp_học[NGÀY]=Dạng_xem_theo_Lịch_biểu_Lớp[[#Headers],[THỨ BẢY]])*(ROUNDDOWN($B54,10)>=ROUNDDOWN(Danh_sách_lớp_học[THỜI GIAN BẮT ĐẦU],10))*($B54<=Danh_sách_lớp_học[THỜI GIAN KẾT THÚC]),Danh_sách_lớp_học[DUY NHẤT]),Danh_sách_lớp_học[DUY NHẤT],0),2),0)","v":0}]
[null,"20:45:00",{"$f":"IFERROR(INDEX(Danh_sách_lớp_học[],MATCH(SUMPRODUCT((Danh_sách_lớp_học[NGÀY]=Dạng_xem_theo_Lịch_biểu_Lớp[[#Headers],[CHỦ NHẬT]])*(ROUNDDOWN($B55,10)>=ROUNDDOWN(Danh_sách_lớp_học[THỜI GIAN BẮT ĐẦU],10))*($B55<=Danh_sách_lớp_học[THỜI GIAN KẾT THÚC]),Danh_sách_lớp_học[DUY NHẤT]),Danh_sách_lớp_học[DUY NHẤT],0),2),0)","v":0},{"$f":"IFERROR(INDEX(Danh_sách_lớp_học[],MATCH(SUMPRODUCT((Danh_sách_lớp_học[NGÀY]=Dạng_xem_theo_Lịch_biểu_Lớp[[#Headers],[THỨ HAI]])*(ROUNDDOWN($B55,10)>=ROUNDDOWN(Danh_sách_lớp_học[THỜI GIAN BẮT ĐẦU],10))*($B55<=Danh_sách_lớp_học[THỜI GIAN KẾT THÚC]),Danh_sách_lớp_học[DUY NHẤT]),Danh_sách_lớp_học[DUY NHẤT],0),2),0)","v":0},{"$f":"IFERROR(INDEX(Danh_sách_lớp_học[],MATCH(SUMPRODUCT((Danh_sách_lớp_học[NGÀY]=Dạng_xem_theo_Lịch_biểu_Lớp[[#Headers],[THỨ BA]])*(ROUNDDOWN($B55,10)>=ROUNDDOWN(Danh_sách_lớp_học[THỜI GIAN BẮT ĐẦU],10))*($B55<=Danh_sách_lớp_học[THỜI GIAN KẾT THÚC]),Danh_sách_lớp_học[DUY NHẤT]),Danh_sách_lớp_học[DUY NHẤT],0),2),0)","v":0},{"$f":"IFERROR(INDEX(Danh_sách_lớp_học[],MATCH(SUMPRODUCT((Danh_sách_lớp_học[NGÀY]=Dạng_xem_theo_Lịch_biểu_Lớp[[#Headers],[THỨ TƯ]])*(ROUNDDOWN($B55,10)>=ROUNDDOWN(Danh_sách_lớp_học[THỜI GIAN BẮT ĐẦU],10))*($B55<=Danh_sách_lớp_học[THỜI GIAN KẾT THÚC]),Danh_sách_lớp_học[DUY NHẤT]),Danh_sách_lớp_học[DUY NHẤT],0),2),0)","v":0},{"$f":"IFERROR(INDEX(Danh_sách_lớp_học[],MATCH(SUMPRODUCT((Danh_sách_lớp_học[NGÀY]=Dạng_xem_theo_Lịch_biểu_Lớp[[#Headers],[THỨ NĂM]])*(ROUNDDOWN($B55,10)>=ROUNDDOWN(Danh_sách_lớp_học[THỜI GIAN BẮT ĐẦU],10))*($B55<=Danh_sách_lớp_học[THỜI GIAN KẾT THÚC]),Danh_sách_lớp_học[DUY NHẤT]),Danh_sách_lớp_học[DUY NHẤT],0),2),0)","v":0},{"$f":"IFERROR(INDEX(Danh_sách_lớp_học[],MATCH(SUMPRODUCT((Danh_sách_lớp_học[NGÀY]=Dạng_xem_theo_Lịch_biểu_Lớp[[#Headers],[THỨ SÁU]])*(ROUNDDOWN($B55,10)>=ROUNDDOWN(Danh_sách_lớp_học[THỜI GIAN BẮT ĐẦU],10))*($B55<=Danh_sách_lớp_học[THỜI GIAN KẾT THÚC]),Danh_sách_lớp_học[DUY NHẤT]),Danh_sách_lớp_học[DUY NHẤT],0),2),0)","v":0},{"$f":"IFERROR(INDEX(Danh_sách_lớp_học[],MATCH(SUMPRODUCT((Danh_sách_lớp_học[NGÀY]=Dạng_xem_theo_Lịch_biểu_Lớp[[#Headers],[THỨ BẢY]])*(ROUNDDOWN($B55,10)>=ROUNDDOWN(Danh_sách_lớp_học[THỜI GIAN BẮT ĐẦU],10))*($B55<=Danh_sách_lớp_học[THỜI GIAN KẾT THÚC]),Danh_sách_lớp_học[DUY NHẤT]),Danh_sách_lớp_học[DUY NHẤT],0),2),0)","v":0}]
[null,"21:00:00",{"$f":"IFERROR(INDEX(Danh_sách_lớp_học[],MATCH(SUMPRODUCT((Danh_sách_lớp_học[NGÀY]=Dạng_xem_theo_Lịch_biểu_Lớp[[#Headers],[CHỦ NHẬT]])*(ROUNDDOWN($B56,10)>=ROUNDDOWN(Danh_sách_lớp_học[THỜI GIAN BẮT ĐẦU],10))*($B56<=Danh_sách_lớp_học[THỜI GIAN KẾT THÚC]),Danh_sách_lớp_học[DUY NHẤT]),Danh_sách_lớp_học[DUY NHẤT],0),2),0)","v":0},{"$f":"IFERROR(INDEX(Danh_sách_lớp_học[],MATCH(SUMPRODUCT((Danh_sách_lớp_học[NGÀY]=Dạng_xem_theo_Lịch_biểu_Lớp[[#Headers],[THỨ HAI]])*(ROUNDDOWN($B56,10)>=ROUNDDOWN(Danh_sách_lớp_học[THỜI GIAN BẮT ĐẦU],10))*($B56<=Danh_sách_lớp_học[THỜI GIAN KẾT THÚC]),Danh_sách_lớp_học[DUY NHẤT]),Danh_sách_lớp_học[DUY NHẤT],0),2),0)","v":0},{"$f":"IFERROR(INDEX(Danh_sách_lớp_học[],MATCH(SUMPRODUCT((Danh_sách_lớp_học[NGÀY]=Dạng_xem_theo_Lịch_biểu_Lớp[[#Headers],[THỨ BA]])*(ROUNDDOWN($B56,10)>=ROUNDDOWN(Danh_sách_lớp_học[THỜI GIAN BẮT ĐẦU],10))*($B56<=Danh_sách_lớp_học[THỜI GIAN KẾT THÚC]),Danh_sách_lớp_học[DUY NHẤT]),Danh_sách_lớp_học[DUY NHẤT],0),2),0)","v":0},{"$f":"IFERROR(INDEX(Danh_sách_lớp_học[],MATCH(SUMPRODUCT((Danh_sách_lớp_học[NGÀY]=Dạng_xem_theo_Lịch_biểu_Lớp[[#Headers],[THỨ TƯ]])*(ROUNDDOWN($B56,10)>=ROUNDDOWN(Danh_sách_lớp_học[THỜI GIAN BẮT ĐẦU],10))*($B56<=Danh_sách_lớp_học[THỜI GIAN KẾT THÚC]),Danh_sách_lớp_học[DUY NHẤT]),Danh_sách_lớp_học[DUY NHẤT],0),2),0)","v":0},{"$f":"IFERROR(INDEX(Danh_sách_lớp_học[],MATCH(SUMPRODUCT((Danh_sách_lớp_học[NGÀY]=Dạng_xem_theo_Lịch_biểu_Lớp[[#Headers],[THỨ NĂM]])*(ROUNDDOWN($B56,10)>=ROUNDDOWN(Danh_sách_lớp_học[THỜI GIAN BẮT ĐẦU],10))*($B56<=Danh_sách_lớp_học[THỜI GIAN KẾT THÚC]),Danh_sách_lớp_học[DUY NHẤT]),Danh_sách_lớp_học[DUY NHẤT],0),2),0)","v":0},{"$f":"IFERROR(INDEX(Danh_sách_lớp_học[],MATCH(SUMPRODUCT((Danh_sách_lớp_học[NGÀY]=Dạng_xem_theo_Lịch_biểu_Lớp[[#Headers],[THỨ SÁU]])*(ROUNDDOWN($B56,10)>=ROUNDDOWN(Danh_sách_lớp_học[THỜI GIAN BẮT ĐẦU],10))*($B56<=Danh_sách_lớp_học[THỜI GIAN KẾT THÚC]),Danh_sách_lớp_học[DUY NHẤT]),Danh_sách_lớp_học[DUY NHẤT],0),2),0)","v":0},{"$f":"IFERROR(INDEX(Danh_sách_lớp_học[],MATCH(SUMPRODUCT((Danh_sách_lớp_học[NGÀY]=Dạng_xem_theo_Lịch_biểu_Lớp[[#Headers],[THỨ BẢY]])*(ROUNDDOWN($B56,10)>=ROUNDDOWN(Danh_sách_lớp_học[THỜI GIAN BẮT ĐẦU],10))*($B56<=Danh_sách_lớp_học[THỜI GIAN KẾT THÚC]),Danh_sách_lớp_học[DUY NHẤT]),Danh_sách_lớp_học[DUY NHẤT],0),2),0)","v":0}]

{"sheet":"Danh sách lớp học","index":1,"n_rows":10,"n_cols":8,"rows_kept":10,"merged":[[0,1,0,5],[0,6,0,7]]}
[null,"DANH SÁCH LỚP HỌC",{"$nulls":4},"Dạng xem theo Lịch biểu Lớp"]
[null,"LỚP","ID","NGÀY","ĐỊA ĐIỂM","THỜI GIAN BẮT ĐẦU","THỜI GIAN KẾT THÚC","DUY NHẤT"]
[null,"Viết tài liệu Kỹ thuật","WR-121","THỨ HAI","Tòa nhà A","13:00:00","14:00:00",{"$f":"ROW()-ROW(Danh_sách_lớp_học[[#Headers],[DUY NHẤT]])","v":1}]
[null,"Viết tài liệu Kỹ thuật","WR-121","THỨ TƯ","Tòa nhà A","13:00:00","14:00:00",{"$f":"ROW()-ROW(Danh_sách_lớp_học[[#Headers],[DUY NHẤT]])","v":2}]
[null,"Nói trước Đám đông","SP-111","THỨ HAI","Tòa nhà B","16:00:00","17:00:00",{"$f":"ROW()-ROW(Danh_sách_lớp_học[[#Headers],[DUY NHẤT]])","v":3}]
[null,"Sức khỏe & Thể dục","HPE-295","THỨ BA","Tòa nhà B","11:00:00","12:00:00",{"$f":"ROW()-ROW(Danh_sách_lớp_học[[#Headers],[DUY NHẤT]])","v":4}]
[null,"Sức khỏe & Thể dục","HPE-295","THỨ NĂM","Tòa nhà B","11:00:00","12:00:00",{"$f":"ROW()-ROW(Danh_sách_lớp_học[[#Headers],[DUY NHẤT]])","v":5}]
[null,"Đại số","MTH-113","THỨ HAI","Tòa nhà C","08:10:00","09:15:00",{"$f":"ROW()-ROW(Danh_sách_lớp_học[[#Headers],[DUY NHẤT]])","v":6}]
[null,"Đại số","MTH-113","THỨ TƯ","Tòa nhà C","08:10:00","09:15:00",{"$f":"ROW()-ROW(Danh_sách_lớp_học[[#Headers],[DUY NHẤT]])","v":7}]
[null,"Đại số","MTH-113","THỨ SÁU","Tòa nhà C","08:10:00","09:15:00",{"$f":"ROW()-ROW(Danh_sách_lớp_học[[#Headers],[DUY NHẤT]])","v":8}]